Workbook

Sheet Order Form (hidden)
A1: How to order:
B2: Submission Details: e-mail all orders to licenses@lsretail.com or submit a request via JIRA
B5: In order to ensure the fastest order processing, the following completed Order Form is now required for all eligible orders to LS Retail:
B6: 1. Orders received on out-of-date pricelists will not be processed and will be returned to the sender for correction.
B7: 2. Underlined fields in RED are mandatory.
B8: 3. Alterations to the format of this coversheet may result in delays or non-acceptance.
B9: 4. To submit the order, please fill out this form and email to licenses@lsretail.com or submit a request via JIRA.
B10: 5. This order may not be processed if your account has overdue balances or you have exceeded your credit limit.
B11: To check your account statement and credit limit please send email to accounting@lsretail.com
B12: 6. You can view your partner discounts on LS Retail Business Center.
A14: Order details:
B15: Order date
B16: Purchase order (PO) number
B17: Special Deal / Promo
B18: MA/GVA/PVLA | C18: No | D18: =IF(C18="No","","Please contact your partner for discounts") -> 
A20: Partner details:
B21: Partner name
B22: Partner MPN no.
A24: Customer details:
B25: Order Type: | C25: New License | D25: Select appropriate order type, New license, Additonal Modules
B26: Customer name
B27: Customer INN/TIN number
B28: Doing business as
B29: Customer no. (if Applicable)
B30: Link to Existing SaaS Active Directory | C30: No
B31: =IF(Link_To_Existing_SaaS_Active_Directory="Yes","Microsoft Tenant ID:","Request for a Preferred Domain name (Option 1)") -> Request for a Preferred Domain name (Option 1) | D31: =IF(Link_To_Existing_SaaS_Active_Directory="Yes","","onmicrosoft.com") -> onmicrosoft.com
B32: =IF(Link_To_Existing_SaaS_Active_Directory="Yes","Domain Name:","Request for a Preferred Domain name (Option 2)") -> Request for a Preferred Domain name (Option 2) | D32: =IF(Link_To_Existing_SaaS_Active_Directory="Yes","","onmicrosoft.com") -> onmicrosoft.com
B33: =IF(Link_To_Existing_SaaS_Active_Directory="Yes","Domain Name:","Request for a Preferred Domain name 3") -> Request for a Preferred Domain name 3 | D33: =IF(Link_To_Existing_SaaS_Active_Directory="Yes","","onmicrosoft.com") -> onmicrosoft.com
B34: =IF((OR(New_License="New License",Transition="Transition")),"Address 1","") -> Address 1
B35: =IF(New_License="New License","Address 2",IF(New_License="Transition","Address 2","")) -> Address 2
B36: =IF((OR(New_License="New License",Transition="Transition")),"City","") -> City
B37: =IF((OR(New_License="New License",Transition="Transition")),"Postal/Zip","") -> Postal/Zip
B38: =IF((OR(New_License="New License",Transition="Transition")),"State/Province","") -> State/Province
B39: =IF((OR(New_License="New License",Transition="Transition")),"Country","") -> Country | C39: United States
B40: =IF((OR(New_License="New License",Transition="Transition")),"Email","") -> Email
B41: =IF((OR(New_License="New License",Transition="Transition")),"Phone","") -> Phone
B42: =IF((OR(New_License="New License",Transition="Transition")),"Contact name","") -> Contact name
B43: =IF(New_License="New License","Customer Website",IF(New_License="Transition","Customer Website","")) -> Customer Website
B44: =IF(New_License="New License","Enhancement Plan Required for ","") -> Enhancement Plan Required for
B45: =IF((OR(New_License="New License",Transition="Transition")),"Product line","") -> Product line | C45: LS Central on Business Central SaaS
B46: =IF(New_License="New License","NACE code","") -> NACE code
B47: =IF((OR(New_License="New License",Transition="Transition")),"Type of business","") -> Type of business | C47: Please select the correct Type of Business
B48: =IF(New_License="New License","LS Retail Version no.","") -> LS Retail Version no.
B49: =IF((OR(New_License="New License",Transition="Transition")),"Date of Customer Acceptance of LS Retail SaaS customer terms (including Microsoft Customer Agreement)","") -> Date of Customer Acceptance of LS Retail SaaS customer terms (including Microsoft Customer Agreement) | C49: =TODAY() -> 2024-04-15
C50: =IF((OR(New_License="New License",Transition="Transition")),"*LS Retail Customer Terms (link opens in a new tab)","") -> *LS Retail Customer Terms (link opens in a new tab)
A52: Disclaimer:
A53: This pricelist is intended for general information purposes only, and is provided AS IS. Any risk arising from the use of the information shall rest with the recipient and nothing herein shall be construed as constituting any kind of warranty or representation, express, implied or statutory. Users are responsible for information that is input using the pricing calculator embedded in this pricelist. LS Retail does not warrant or make any representations regarding the use, validity or accuracy of this pricelist and the result of the calculations.
A54: Here you can find information on the availability of LS Central on BC SaaS local versions
A55: LS Central on Business Central SaaS is available for customers located in United States, Canada, United Kingdom, Denmark, Germany and Iceland
A56: All new LS Retail licenses are automatically listed as a reference customer upon processing of the initial order. Contact licenses@lsretail.com to opt out of this program.

Sheet Monthly LS Central on BC SaaS (hidden)
B1: LS Central on Business Central SaaS Price Quote Sheet | H1: ="Effective from "&TEXT(Lists!L18,"dd.mm.yyyy") -> Effective from Effective from 1 September 2023 | J1: LS Retail Confidential
B4: ="Customer Location: " -> Customer Location: | C4: United States
B5: ="Country Code: " -> Country Code: | C5: W1
B6: ="Customer Region: " -> Customer Region: | C6: =FactorOld!C1 -> NAOM
G9: Subscription Term | H9: Monthly
B10: ="Currency: " -> Currency: | C10: USD | G10: Mode of Billing | H10: Monthly
H12: Total Value | I12: License Currency
C13: Check here to opt in for a 3 year price guarantee which comes with a 3-year commmitment period | H13: =H75 -> 0 | I13: =FactorOld!P1 -> USD
B14: Qty | C14: Monthly Modules | D14: Granule ID | E14: SKU | G14: =Factor!P1&" Monthly" -> USD Monthly | H14: Total | I14: Prerequisites/Notes: Minimum order 1 Essential or Premium User and 1 LS Central Base - Per Full User, 1 Store and 1 LS Retail Device SAL
C15: Promotion | I15: Minimum order 1 Essential or Premium User and 1 LS Central Base - Per Full User and 1 LS Retail Device SAL | J15: The modules listed here are only the Get Me Started promotion modules - if you need to add more modules please add them in the price list below
C16: Get me Started | J16: To enable the Get Me Started promotion please enter "1" - no other number should be inserted in this part below
B17: =+IF($B$16=1,1,0) -> 0 | C17: =" "&IF(ISTEXT('Price List'!B4),'Price List'!B4,"") -> Dynamics 365 Business Central Essential | E17: =+'Price List'!C4 -> BC-D365-SAAS-E | G17: =HLOOKUP($C$10,'Price List'!$B$1:$G$132,ROW('Price List'!B4),FALSE) -> 84 | H17: =G17*B17*(1-0.15) -> 0 | J17: You cannot mix and match Essential and Premium Users select either one and if customer needs more please add them below
B18: =+IF($B$16=1,1,0) -> 0 | C18: =" "&IF(ISTEXT('Price List'!B5),'Price List'!B5,"") -> Dynamics 365 Business Central Premium | E18: =+'Price List'!C5 -> BC-D365-SAAS-P | G18: =HLOOKUP($C$10,'Price List'!$B$1:$G$132,ROW('Price List'!B5),FALSE) -> 120 | H18: =G18*B18*(1-0.15) -> 0 | J18: You cannot mix and match Essential and Premium Users select either one and if customer needs more please add them below
B19: =+IF($B$16=1,1,0) -> 0 | C19: =" "&IF(ISTEXT('Price List'!B30),'Price List'!B30,"") -> LS Central Base - Per Full User | E19: ='Price List'!C30 -> BC-D365-SAAS-BASE | G19: =HLOOKUP($C$10,'Price List'!$B$1:$G$132,ROW('Price List'!B30),FALSE) -> 36 | H19: =G19*B19*(1-0.15) -> 0 | J19: If customer needs additional LS Central Base - Per full user please add them below
B20: 0 | C20: =" "&IF(ISTEXT('Price List'!B42),'Price List'!B42,"") -> Device SAL for Retail & Hospitality | E20: ='Price List'!C42 -> BC-D365-SAAS-POS | G20: =HLOOKUP($C$10,'Price List'!$B$1:$G$132,ROW('Price List'!B42),FALSE) -> 102 | H20: =G20*B20*(1-0.15) -> 0 | J20: If customer needs additional Retail Device SAL for Retail & Hospitality please add them below
B22: =SUM(B16,B23:B24) -> 0 | C22: =" "&IF(ISTEXT('Price List'!B3),'Price List'!B3,"") -> ERP Users
C23: =" "&IF(ISTEXT('Price List'!B4),'Price List'!B4,"") -> Dynamics 365 Business Central Essential | D23: =IF('Price List'!#REF!,'Price List'!#REF!,"") ->  | E23: =+'Price List'!C4 -> BC-D365-SAAS-E | G23: =HLOOKUP($C$10,'Price List'!$B$1:$I$132,ROW('Price List'!B4),FALSE) -> 84 | H23: =+B23*G23 -> 0 | I23: You cannot mix and match Essential and Premium Users, Includes 2 GB database capacity
C24: =" "&IF(ISTEXT('Price List'!B5),'Price List'!B5,"") -> Dynamics 365 Business Central Premium | D24: =IF('Price List'!C42,'Price List'!C42,"") ->  | E24: =+'Price List'!C5 -> BC-D365-SAAS-P | G24: =HLOOKUP($C$10,'Price List'!$B$1:$I$132,ROW('Price List'!B5),FALSE) -> 120 | H24: =+B24*G24 -> 0 | I24: You cannot mix and match Essential and Premium Users, Includes 3 GB database capacity
C25: =" "&IF(ISTEXT('Price List'!B6),'Price List'!B6,"") -> Dynamics 365 Business Central Team Member | D25: =IF('Price List'!C5,'Price List'!C5,"") ->  | E25: =+'Price List'!C6 -> BC-D365-SAAS-TM | G25: =HLOOKUP($C$10,'Price List'!$B$1:$I$132,ROW('Price List'!B6),FALSE) -> 9.6 | H25: 0
C26: =" "&IF(ISTEXT('Price List'!B7),'Price List'!B7,"") -> Dynamics 365 Business Central External Accountant | D26: =IF('Price List'!C43,'Price List'!C43,"") ->  | E26: =+'Price List'!C7 -> BC-D365-SAAS-EA | G26: =HLOOKUP($C$10,'Price List'!$B$1:$I$132,ROW('Price List'!B7),FALSE) -> 0 | H26: 0 | I26: One included per tenant
C27: =" "&IF(ISTEXT('Price List'!B8),'Price List'!B8,"") -> Dynamics 365 Business Central Sales Professional attach | E27: =+'Price List'!C8 -> BC-D365-SAAS-SPA | G27: =HLOOKUP($C$10,'Price List'!$B$1:$I$132,ROW('Price List'!B8),FALSE) -> 24 | H27: 0 | I27: This module can be attached to a Essential or Premium user, You have to own an Essential or Premium user to attach this module to.
C28: =" "&IF(ISTEXT('Price List'!B9),'Price List'!B9,"") -> Dynamics 365 Business Central Customer Service Professional attach | E28: =+'Price List'!C9 -> BC-D365-SAAS-CSPA | G28: =HLOOKUP($C$10,'Price List'!$B$1:$I$132,ROW('Price List'!B9),FALSE) -> 24 | H28: 0 | I28: This module can be attached to a Essential or Premium user, You have to own an Essential or Premium user to attach this module to.
C29: =" "&IF(ISTEXT('Price List'!B18),'Price List'!B18,"") -> Other Modules
C30: =" "&IF(ISTEXT('Price List'!B19),'Price List'!B19,"") -> Dynamics 365 Business Central Database Capacity | E30: =+'Price List'!C19 -> BC-D365-SAAS-CDC | G30: =HLOOKUP($C$10,'Price List'!$B$1:$I$132,ROW('Price List'!B19),FALSE) -> 12 | H30: =+B30*G30 -> 0 | I30: Additional Database Capacity is sold per GB
C31: =" "&IF(ISTEXT('Price List'!B20),'Price List'!B20,"") -> Dynamics 365 Business Central Database Capacity Additional 100 GB | D31: =IF('Price List'!C4,'Price List'!C4,"") ->  | E31: =+'Price List'!C20 -> BC-D365-SAAS-CDCA | G31: =HLOOKUP($C$10,'Price List'!$B$1:$I$132,ROW('Price List'!B20),FALSE) -> 600 | H31: 0
C32: =" "&IF(ISTEXT('Price List'!B21),'Price List'!B21,"") -> Dynamics 365 Business Central Database Capacity Overage | D32: =IF('Price List'!C5,'Price List'!C5,"") ->  | E32: =+'Price List'!C21 -> BC-D365-SAAS-CDCO | G32: =HLOOKUP($C$10,'Price List'!$B$1:$I$132,ROW('Price List'!B21),FALSE) -> 6 | H32: =+B32*G32 -> 0 | I32: Pre-requirement is Business Central Database Capacity Additional 100 GB
C33: =" "&IF(ISTEXT('Price List'!B22),'Price List'!B22,"") -> Dynamics 365 Business Central Additional Environment Addon* | D33: =IF('Price List'!C44,'Price List'!C44,"") ->  | E33: =+'Price List'!C22 -> BC-D365-SAAS-CAE | G33: =HLOOKUP($C$10,'Price List'!$B$1:$I$132,ROW('Price List'!B22),FALSE) -> 360 | H33: =+B33*G33 -> 0 | I33: Please indicate the country where the Additional Environment will be setup; *Additional Environments can only be setup in countries where LS Central SaaS clusters are running
B34: =SUM(B35+B16) -> 0 | C34: =" "&IF(ISTEXT('Price List'!B29),'Price List'!B29,"") -> Base | D34: =IF('Price List'!#REF!,'Price List'!#REF!,"") ->  | G34: =IF(B16=1,"Promo Discount:","") ->  | H34: =IF(B16=1,0.05,"") -> 
B35: =B22 -> 0 | C35: =" "&IF(ISTEXT('Price List'!B30),'Price List'!B30,"") -> LS Central Base - Per Full User | D35: =IF('Price List'!C56,'Price List'!C56,"") ->  | E35: ='Price List'!C30 -> BC-D365-SAAS-BASE | G35: =HLOOKUP($C$10,'Price List'!$B$1:$I$132,ROW('Price List'!B30),FALSE) -> 36 | H35: =IF(B16=1,(+B35*G35)*(1-H34),G35*B35) -> 0 | I35: LS Central Base - Per Full User (Essential or Premium) is a prerequisite for Retail Devices
C36: =" "&IF(ISTEXT('Price List'!B31),'Price List'!B31,"") -> Yearly | D36: =IF('Price List'!C7,'Price List'!C7,"") ->  | E36: ='Price List'!C31 -> 0 | G36: =HLOOKUP($C$10,'Price List'!$B$1:$G$132,ROW('Price List'!B31),FALSE) -> 0 | H36: 0
C37: =" "&IF(ISTEXT('Price List'!B33),'Price List'!B33,"") ->  | D37: =IF('Price List'!#REF!,'Price List'!#REF!,"") ->  | E37: ='Price List'!C33 -> 0 | G37: =HLOOKUP($C$10,'Price List'!$B$1:$G$132,ROW('Price List'!B33),FALSE) -> 0 | H37: 0
C38: =" "&IF(ISTEXT('Price List'!B34),'Price List'!B34,"") -> Stores | I38: It is not permitted to have both Online Store and Offline Store, either all Online or all Offline
C39: =" "&IF(ISTEXT('Price List'!B35),'Price List'!B35,"") -> Online Store | E39: ='Price List'!C35 -> BC-D365-SAAS-STOREON | G39: =HLOOKUP($C$10,'Price List'!$B$1:$I$132,ROW('Price List'!B35),FALSE) -> 0 | H39: =G39*+B39 -> 0 | I39: Does not include a Device or a DD license. Qty should be equal to total Number of stores in the customer license.
C40: =" "&IF(ISTEXT('Price List'!B36),'Price List'!B36,"") -> Offline Store | E40: ='Price List'!C36 -> BC-D365-SAAS-STOREOFF | G40: =HLOOKUP($C$10,'Price List'!$B$1:$I$132,ROW('Price List'!B36),FALSE) -> 6 | H40: =G40*+B40 -> 0 | I40: Includes a DD license but does not include a Device. Qty should be equal to total Number of stores in the customer license.
B41: =SUM(B42:B46) -> 0 | C41: =" "&IF(ISTEXT('Price List'!B41),'Price List'!B41,"") -> Devices | D41: =IF('Price List'!#REF!,'Price List'!#REF!,"") ->  | G41: =IF(B16=1,"Promo Discount:","") ->  | H41: =IF(B16=1,0.05,"") -> 
C42: =" "&IF(ISTEXT('Price List'!B42),'Price List'!B42,"") -> Device SAL for Retail & Hospitality | D42: =IF('Price List'!#REF!,'Price List'!#REF!,"") ->  | E42: ='Price List'!C42 -> BC-D365-SAAS-POS | G42: =HLOOKUP($C$10,'Price List'!$B$1:$I$132,ROW('Price List'!B42),FALSE) -> 102 | H42: =IF(B16=1,(+B42*G42)*(1-H41),G42*B42) -> 0 | I42: Stationary POS, LS Central POS (web version), back office device, Includes 1GB Database Capacity
C43: =" "&IF(ISTEXT('Price List'!B43),'Price List'!B43,"") -> Device SAL for Mobile POS App | D43: =IF('Price List'!#REF!,'Price List'!#REF!,"") ->  | E43: ='Price List'!C43 -> BC-D365-SAAS-MPOS | G43: =HLOOKUP($C$10,'Price List'!$B$1:$I$132,ROW('Price List'!B43),FALSE) -> 102 | H43: 0 | I43: For retail, for Android devices, Includes 1GB Database Capacity
C44: =" "&IF(ISTEXT('Price List'!B44),'Price List'!B44,"") -> Device SAL for Mobile Inventory App | D44: =IF('Price List'!#REF!,'Price List'!#REF!,"") ->  | E44: ='Price List'!C44 -> BC-D365-SAAS-MI | G44: =HLOOKUP($C$10,'Price List'!$B$1:$I$132,ROW('Price List'!B44),FALSE) -> 102 | H44: 0 | I44: For retail, for Android devices, Includes 1GB Database Capacity
C45: =" "&IF(ISTEXT('Price List'!B45),'Price List'!B45,"") -> Device SAL for Kitchen Display Server | E45: ='Price List'!C45 -> BC-D365-SAAS-KDS | G45: =HLOOKUP($C$10,'Price List'!$B$1:$I$132,ROW('Price List'!B45),FALSE) -> 102 | H45: 0 | I45: Includes 1GB Database Capacity
C46: =" "&IF(ISTEXT('Price List'!B46),'Price List'!B46,"") -> Device SAL for Back Office | D46: =IF('Price List'!#REF!,'Price List'!#REF!,"") ->  | E46: ='Price List'!C46 -> BC-D365-SAAS-BACK | G46: =HLOOKUP($C$10,'Price List'!$B$1:$I$132,ROW('Price List'!B46),FALSE) -> 102 | H46: 0 | I46: For Back Office only and no customer facing transactions, Includes 1GB Database Capacity
C47: =" "&IF(ISTEXT('Price List'!B57),'Price List'!B57,"") -> Office 365 Business Premium | D47: =IF('Price List'!#REF!,'Price List'!#REF!,"") ->  | E47: ='Price List'!C57 -> BC-D365-SAAS-O365BP | G47: =HLOOKUP($C$10,'Price List'!$B$1:$G$132,ROW('Price List'!B57),FALSE) -> 15 | H47: 0
C48: =" "&IF(ISTEXT('Price List'!B58),'Price List'!B58,"") -> Power BI Pro | D48: =IF('Price List'!#REF!,'Price List'!#REF!,"") ->  | E48: ='Price List'!C58 -> BC-D365-SaaS-PBP | G48: =HLOOKUP($C$10,'Price List'!$B$1:$G$132,ROW('Price List'!B58),FALSE) -> 12 | H48: 0
C49: =" "&IF(ISTEXT('Price List'!B62),'Price List'!B62,"") -> LS Central Modules | D49: =IF('Price List'!#REF!,'Price List'!#REF!,"") ->  | E49: ='Price List'!C62 ->  | I49: LS Central Base - Per Full User is prerequisite for all below modules
C50: =" "&IF(ISTEXT('Price List'!B63),'Price List'!B63,"") -> Scan Pay Go - per Usage | D50: =IF('Price List'!#REF!,'Price List'!#REF!,"") ->  | E50: ='Price List'!C63 -> BC-D365-SAAS-SPG | G50: =HLOOKUP($C$10,'Price List'!$B$1:$I$132,ROW('Price List'!B63),FALSE) -> 0.01 | H50: =+B50*G50 -> 0 | I50: Invoiced per Scan Pay Go Transaction Usage, Invoiced Monthly for the past month
C51: =" "&IF(ISTEXT('Price List'!B65),'Price List'!B65,"") -> Hotels - per Property | D51: =IF('Price List'!#REF!,'Price List'!#REF!,"") ->  | E51: ='Price List'!C65 -> BC-D365-SAAS-HOTEL-P | G51: =HLOOKUP($C$10,'Price List'!$B$1:$I$132,ROW('Price List'!B65),FALSE) -> 163.2 | H51: 0
C52: =" "&IF(ISTEXT('Price List'!B66),'Price List'!B66,"") -> Hotels - per Room | D52: =IF('Price List'!#REF!,'Price List'!#REF!,"") ->  | E52: ='Price List'!C66 -> BC-D365-SAAS-HOTEL-R | G52: =HLOOKUP($C$10,'Price List'!$B$1:$I$132,ROW('Price List'!B66),FALSE) -> 7 | H52: =+B52*G52 -> 0 | I52: LS Central for hotels - per Property is prerequisite
C53: =" "&IF(ISTEXT('Price List'!B67),'Price List'!B67,"") -> Hotels - per Power App User | D53: =IF('Price List'!#REF!,'Price List'!#REF!,"") ->  | E53: ='Price List'!C67 -> BC-D365-SAAS-HOTEL-PAU | G53: =HLOOKUP($C$10,'Price List'!$B$1:$I$132,ROW('Price List'!B67),FALSE) -> 15 | H53: =+B53*G53 -> 0 | I53: LS Central for hotels - per Property is prerequisite
C54: =" "&IF(ISTEXT('Price List'!B68),'Price List'!B68,"") -> Bookings - per Location | D54: =IF('Price List'!#REF!,'Price List'!#REF!,"") ->  | E54: ='Price List'!C68 -> BC-D365-SAAS-APL | G54: =HLOOKUP($C$10,'Price List'!$B$1:$I$132,ROW('Price List'!B68),FALSE) -> 15 | H54: 0 | I54: LS Activity - per Location is prerequisitefor LS Activity - per Device
C55: =" "&IF(ISTEXT('Price List'!B69),'Price List'!B69,"") -> Bookings - per Device | D55: =IF('Price List'!#REF!,'Price List'!#REF!,"") ->  | E55: ='Price List'!C69 -> BC-D365-SAAS-APOS | G55: =HLOOKUP($C$10,'Price List'!$B$1:$I$132,ROW('Price List'!B69),FALSE) -> 12 | H55: =+B55*G55 -> 0 | I55: Qty must be equal to total number of Retail Device CALs for Retail & Hospitality, for Mobile POS App and Back Office in the customer license
C56: =" "&IF(ISTEXT('Price List'!B70),'Price List'!B70,"") -> Staff Management - per Employee | D56: =IF('Price List'!#REF!,'Price List'!#REF!,"") ->  | E56: ='Price List'!C70 -> BC-D365-SAAS-SPE | G56: =HLOOKUP($C$10,'Price List'!$B$1:$I$132,ROW('Price List'!B70),FALSE) -> 2 | H56: 0 | I56: Per all Employees in the LSC Staff Employee Table.
C57: =" "&IF(ISTEXT('Price List'!B71),'Price List'!B71,"") -> LS Pay - per Device | D57: =IF('Price List'!#REF!,'Price List'!#REF!,"") ->  | E57: ='Price List'!C71 -> BC-D365-SAAS-PAY | G57: =HLOOKUP($C$10,'Price List'!$B$1:$I$132,ROW('Price List'!B71),FALSE) -> 12 | H57: 0 | I57: Qty must be equal to total number of Retail Device CALs for Retail & Hospitality and Retail Device CALs for Mobile POS App in the customer license
C58: LS eCommerce Base - Please select a Framework | D58: =IF('Price List'!#REF!,'Price List'!#REF!,"") ->  | E58: =VLOOKUP(C58,'Price List'!B76:C79,2,FALSE) ->  | G58: =HLOOKUP($C$10,'Price List'!$B$1:$I$132,ROW('Price List'!B76),FALSE) -> 163.2 | H58: =(+B58*G58) -> 0 | I58: LS eCommerce Base is a prerequisite for LS eCommerce per Device
C59: =" "&IF(ISTEXT('Price List'!B80),'Price List'!B80,"") -> eCommerce per Device | D59: =IF('Price List'!#REF!,'Price List'!#REF!,"") ->  | E59: ='Price List'!C80 -> BC-D365-SAAS-EPOS | G59: =HLOOKUP($C$10,'Price List'!$B$1:$I$132,ROW('Price List'!B80),FALSE) -> 3.6 | H59: =(+B59*G59) -> 0 | I59: Qty must be equal to total number of Retail Device CALs for Retail & Hospitality and Retail Device CALs for Mobile POS App in the customer license
C60: =" "&IF(ISTEXT('Price List'!#REF!),'Price List'!#REF!,"") ->  | D60: =IF('Price List'!#REF!,'Price List'!#REF!,"") ->  | H60: =(+B60*G60)*0.5 -> 0
C61: =" "&IF(ISTEXT('Price List'!B81),'Price List'!B81,"") -> LS Central Additional Language Layer | D61: =IF('Price List'!#REF!,'Price List'!#REF!,"") ->  | E61: ='Price List'!C81 -> 0 | G61: =HLOOKUP($C$10,'Price List'!$B$1:$G$132,ROW('Price List'!B81),FALSE) -> 24 | H61: 0
C62: =" "&IF(ISTEXT('Price List'!B69),'Price List'!B69,"") -> Bookings - per Device | D62: =IF('Price List'!#REF!,'Price List'!#REF!,"") ->  | E62: ='Price List'!C69 -> BC-D365-SAAS-APOS | G62: =HLOOKUP($C$10,'Price List'!$B$1:$G$132,ROW('Price List'!B69),FALSE) -> 12 | H62: 0
C63: =" "&IF(ISTEXT('Price List'!B107),'Price List'!B107,"") ->  | D63: =IF('Price List'!#REF!,'Price List'!#REF!,"") ->  | E63: ='Price List'!C107 -> 0 | G63: =HLOOKUP($C$10,'Price List'!$B$1:$G$132,ROW('Price List'!B107),FALSE) -> 0 | H63: 0
C64: =" "&IF(ISTEXT('Price List'!B108),'Price List'!B108,"") ->  | D64: =IF('Price List'!#REF!,'Price List'!#REF!,"") ->  | E64: ='Price List'!C108 -> 0 | G64: =HLOOKUP($C$10,'Price List'!$B$1:$G$132,ROW('Price List'!B108),FALSE) -> 500 | H64: 0
C65: =" "&IF(ISTEXT('Price List'!B109),'Price List'!B109,"") ->  | D65: =IF('Price List'!#REF!,'Price List'!#REF!,"") ->  | E65: ='Price List'!C109 -> 0 | G65: =HLOOKUP($C$10,'Price List'!$B$1:$G$132,ROW('Price List'!B109),FALSE) -> 40 | H65: 0
C66: =" "&IF(ISTEXT('Price List'!B110),'Price List'!B110,"") ->  | D66: =IF('Price List'!#REF!,'Price List'!#REF!,"") ->  | E66: ='Price List'!C110 -> 0 | G66: =HLOOKUP($C$10,'Price List'!$B$1:$G$132,ROW('Price List'!B110),FALSE) -> 0 | H66: 0
C67: =" "&IF(ISTEXT('Price List'!B111),'Price List'!B111,"") ->  | D67: =IF('Price List'!#REF!,'Price List'!#REF!,"") ->  | E67: ='Price List'!C111 -> 0 | G67: =HLOOKUP($C$10,'Price List'!$B$1:$G$132,ROW('Price List'!B111),FALSE) -> 0 | H67: 0
C68: =" "&IF(ISTEXT('Price List'!B112),'Price List'!B112,"") ->  | D68: =IF('Price List'!#REF!,'Price List'!#REF!,"") ->  | E68: ='Price List'!C112 -> 0 | G68: =HLOOKUP($C$10,'Price List'!$B$1:$G$132,ROW('Price List'!B112),FALSE) -> 0 | H68: 0
C69: =" "&IF(ISTEXT('Price List'!B113),'Price List'!B113,"") ->  | D69: =IF('Price List'!#REF!,'Price List'!#REF!,"") ->  | E69: ='Price List'!C113 -> 0 | G69: =HLOOKUP($C$10,'Price List'!$B$1:$G$132,ROW('Price List'!B113),FALSE) -> 0 | H69: 0
C70: =" "&IF(ISTEXT('Price List'!B114),'Price List'!B114,"") ->  | D70: =IF('Price List'!#REF!,'Price List'!#REF!,"") ->  | E70: ='Price List'!C114 -> 0 | G70: =HLOOKUP($C$10,'Price List'!$B$1:$G$132,ROW('Price List'!B114),FALSE) -> 0 | H70: 0
C71: =" "&IF(ISTEXT('Price List'!B115),'Price List'!B115,"") ->  | D71: =IF('Price List'!#REF!,'Price List'!#REF!,"") ->  | E71: ='Price List'!C115 -> 0 | G71: =HLOOKUP($C$10,'Price List'!$B$1:$G$132,ROW('Price List'!B115),FALSE) -> 0 | H71: 0
C72: =" "&IF(ISTEXT('Price List'!B116),'Price List'!B116,"") ->  | D72: =IF('Price List'!#REF!,'Price List'!#REF!,"") ->  | E72: ='Price List'!C116 -> 0 | G72: =HLOOKUP($C$10,'Price List'!$B$1:$G$132,ROW('Price List'!B116),FALSE) -> 0 | H72: 0
C73: =" "&IF(ISTEXT('Price List'!B117),'Price List'!B117,"") ->  | D73: =IF('Price List'!#REF!,'Price List'!#REF!,"") ->  | E73: ='Price List'!C117 -> 0 | G73: =HLOOKUP($C$10,'Price List'!$B$1:$G$132,ROW('Price List'!B117),FALSE) -> 0 | H73: 0
C74: =" "&IF(ISTEXT('Price List'!B118),'Price List'!B118,"") ->  | D74: =IF('Price List'!#REF!,'Price List'!#REF!,"") ->  | E74: ='Price List'!C118 -> 0 | G74: =HLOOKUP($C$10,'Price List'!$B$1:$G$132,ROW('Price List'!B118),FALSE) -> 0 | H74: 0
D75: Total Solution Cost (TSC) | H75: =SUM(H23:H28,H30:H33,H35,H39:H40,H42:H46,H51:H59) -> 0
B77: Please find information about ongoing promos on our Partner Portal
B78: Click here for more details about products in the Price List
B79: Information on country availability can be found on LS Retail Portal
B81: This document is intended for general information purposes only, and we have taken due care in its preparation. All embedded functionality used to facilitate price calculations is provided AS IS. Any risk arising from the use of the information shall rest with the recipient and nothing herein shall be construed as constituting any kind of warranty or representation, express, implied or statutory. Users are responsible for information that is input using the pricing calculator embedded in the offline pricelist. Under certain circumstances the figures resulting from the applied pricing calculations embedded in the price list, which are shown for your convenience in this pricelist, may differ from those reflected in the Order Summary Page in Order Central. In these scenarios, the figures shown in the Order Summary Page will control.
B83: For information on the availability of EFT connections for the mobile and the stationary LS Central Points of Sale, contact licenses@lsretail.com

Sheet LS Central on BC SaaS edit (hidden)
B1: LS Central on Business Central SaaS Price Quote Sheet | F1: ="Effective from "&TEXT(Lists!L18,"dd.mm.yyyy") -> Effective from Effective from 1 September 2023 | J1: LS Retail Confidential
J2: Please see this link for the latest information and country availability details
B3: Subscription Term: | C3: Monthly
B4: Mode of Billing: | C4: Monthly
B5: ="Currency:" -> Currency: | C5: USD | H5: Partner discount Subscription/SaaS:
I11: Total Value | J11: License Currency
C12: Check here to opt in for a 3 year price guarantee which comes with a 3-year commmitment period | I12: =I73 -> 0 | J12: =Factor!P2 -> USD
B13: Qty | C13: Yearly Modules | D13: Granule ID | E13: SKU | F13: =J12 -> USD | G13: =Factor!P2&" Yearly" -> USD Yearly | I13: Total | J13: Prerequisites/Notes: Minimum order 1 Essential or Premium User and 1 LS Central Base - Per Full User, 1 Store and 1 LS Retail Device SAL
C14: Promotion | J14: The modules listed here are only the Get Me Started promotion modules - if you need to add more modules please add them in the price list below
C15: Get me Started | J15: To enable the Get Me Started promotion please enter "1" - no other number should be inserted in this part below
B16: =+IF($B$15=1,1,0) -> 0 | C16: =" "&IF(ISTEXT('Price List'!B4),'Price List'!B4,"") -> Dynamics 365 Business Central Essential | E16: =+'Price List'!C4 -> BC-D365-SAAS-E | G16: =HLOOKUP($C$5,'Price List'!$B$1:$G$132,ROW('Price List'!B4),FALSE) -> 84 | I16: =G16*B16*(1-0.15) -> 0 | J16: You cannot mix and match Essential and Premium Users select either one and if customer needs more please add them below
B17: =+IF($B$15=1,1,0) -> 0 | C17: =" "&IF(ISTEXT('Price List'!B5),'Price List'!B5,"") -> Dynamics 365 Business Central Premium | E17: =+'Price List'!C5 -> BC-D365-SAAS-P | G17: =HLOOKUP($C$5,'Price List'!$B$1:$G$132,ROW('Price List'!B5),FALSE) -> 120 | I17: =G17*B17*(1-0.15) -> 0 | J17: You cannot mix and match Essential and Premium Users select either one and if customer needs more please add them below
B18: =+IF($B$15=1,1,0) -> 0 | C18: =" "&IF(ISTEXT('Price List'!B30),'Price List'!B30,"") -> LS Central Base - Per Full User | E18: ='Price List'!C30 -> BC-D365-SAAS-BASE | G18: =HLOOKUP($C$5,'Price List'!$B$1:$G$132,ROW('Price List'!B30),FALSE) -> 36 | I18: =G18*B18*(1-0.15) -> 0 | J18: If customer needs additional LS Central Base - Per full user please add them below
B19: 0 | C19: =" "&IF(ISTEXT('Price List'!B42),'Price List'!B42,"") -> Device SAL for Retail & Hospitality | E19: ='Price List'!C42 -> BC-D365-SAAS-POS | G19: =HLOOKUP($C$5,'Price List'!$B$1:$G$132,ROW('Price List'!B42),FALSE) -> 102 | I19: =G19*B19*(1-0.15) -> 0 | J19: If customer needs additional Retail Device SAL for Retail & Hospitality please add them below
B21: =SUM(B15,B22:B23) -> 0 | C21: =" "&IF(ISTEXT('Price List'!B3),'Price List'!B3,"") -> ERP Users
C22: =" "&IF(ISTEXT('Price List'!B11),'Price List'!B11,"") -> Dynamics 365 Business Central Essential | D22: ='Price List'!C11 -> BC-D365-SAAS-E | E22: ='Price List'!C11 -> BC-D365-SAAS-E | F22: =IF(C$3="Monthly",IF(C$4="Monthly",G22/10,G22*1.2),IF(C$4="Monthly",G22/12,G22)) -> 84 | G22: =HLOOKUP($C$5,'Price List'!$B$1:$I$132,ROW('Price List'!B11),FALSE) -> 840 | I22: =+B22*F22 -> 0 | J22: You cannot mix and match Essential and Premium Users, Includes 2 GB database capacity
C23: =" "&IF(ISTEXT('Price List'!B12),'Price List'!B12,"") -> Dynamics 365 Business Central Premium | D23: =IF('Price List'!C42,'Price List'!C42,"") ->  | E23: ='Price List'!C12 -> BC-D365-SAAS-P | F23: 120 | G23: =HLOOKUP($C$5,'Price List'!$B$1:$I$132,ROW('Price List'!B12),FALSE) -> 1200 | I23: =+B23*G23 -> 0 | J23: You cannot mix and match Essential and Premium Users, Includes 3 GB database capacity
C24: =" "&IF(ISTEXT('Price List'!B13),'Price List'!B13,"") -> Dynamics 365 Business Central Team Member | D24: =IF('Price List'!C5,'Price List'!C5,"") ->  | E24: ='Price List'!C13 -> BC-D365-SAAS-TM | F24: 9.6 | G24: =HLOOKUP($C$5,'Price List'!$B$1:$I$132,ROW('Price List'!B13),FALSE) -> 96 | I24: 0
C25: =" "&IF(ISTEXT('Price List'!B14),'Price List'!B14,"") -> Dynamics 365 Business Central External Accountant | D25: =IF('Price List'!C43,'Price List'!C43,"") ->  | E25: ='Price List'!C14 -> BC-D365-SAAS-EA | F25: 0 | G25: =HLOOKUP($C$5,'Price List'!$B$1:$I$132,ROW('Price List'!B14),FALSE) -> 0 | I25: 0 | J25: One included per tenant
C26: =" "&IF(ISTEXT('Price List'!B15),'Price List'!B15,"") -> Dynamics 365 Business Central Sales Professional attach | E26: ='Price List'!C15 -> BC-D365-SAAS-SPA | F26: 24 | G26: =HLOOKUP($C$5,'Price List'!$B$1:$I$132,ROW('Price List'!B15),FALSE) -> 240 | I26: =+B26*G26 -> 0 | J26: This module can be attached to a Essential or Premium user, You have to own an Essential or Premium user to attach this module to.
C27: =" "&IF(ISTEXT('Price List'!B16),'Price List'!B16,"") -> Dynamics 365 Business Central Customer Service Professional attach | E27: ='Price List'!C16 -> BC-D365-SAAS-CSPA | F27: 24 | G27: =HLOOKUP($C$5,'Price List'!$B$1:$I$132,ROW('Price List'!B16),FALSE) -> 240 | I27: =+B27*G27 -> 0 | J27: This module can be attached to a Essential or Premium user, You have to own an Essential or Premium user to attach this module to.
C28: =" "&IF(ISTEXT('Price List'!B18),'Price List'!B18,"") -> Other Modules
C29: =" "&IF(ISTEXT('Price List'!B24),'Price List'!B24,"") -> Dynamics 365 Business Central Database Capacity | E29: ='Price List'!C24 -> BC-D365-SAAS-CDC | F29: =IF(C$3="Monthly",IF(C$4="Monthly",G29/10,G29*1.2),IF(C$4="Monthly",G29/12,G29)) -> 12 | G29: =HLOOKUP($C$5,'Price List'!$B$1:$I$132,ROW('Price List'!B24),FALSE) -> 120 | I29: =+B29*F29 -> 0 | J29: Additional Database Capacity is sold per GB
C30: =" "&IF(ISTEXT('Price List'!B25),'Price List'!B25,"") -> Dynamics 365 Business Central Database Capacity Additional 100 GB | E30: ='Price List'!C25 -> BC-D365-SAAS-CDCA | F30: =IF(C$3="Monthly",IF(C$4="Monthly",G30/10,G30*1.2),IF(C$4="Monthly",G30/12,G30)) -> 600 | G30: =HLOOKUP($C$5,'Price List'!$B$1:$I$132,ROW('Price List'!B25),FALSE) -> 6000 | I30: 0
C31: =" "&IF(ISTEXT('Price List'!B26),'Price List'!B26,"") -> Dynamics 365 Business Central Database Capacity Overage | E31: ='Price List'!C26 -> BC-D365-SAAS-CDCO | F31: =IF(C$3="Monthly",IF(C$4="Monthly",G31/10,G31*1.2),IF(C$4="Monthly",G31/12,G31)) -> 6 | G31: =HLOOKUP($C$5,'Price List'!$B$1:$I$132,ROW('Price List'!B26),FALSE) -> 60 | I31: 0 | J31: Pre-requirement is Business Central Database Capacity Additional 100 GB
C32: =" "&IF(ISTEXT('Price List'!B27),'Price List'!B27,"") -> Dynamics 365 Business Central Additional Environment Addon* | E32: ='Price List'!C27 -> BC-D365-SAAS-CAE | F32: =IF(C$3="Monthly",IF(C$4="Monthly",G32/10,G32*1.2),IF(C$4="Monthly",G32/12,G32)) -> 360 | G32: =HLOOKUP($C$5,'Price List'!$B$1:$I$132,ROW('Price List'!B27),FALSE) -> 3600 | I32: 0 | J32: Please indicate the country where the Additional Environment will be setup; *Additional Environments can only be setup in countries where LS Central SaaS clusters are running
C33: =" "&IF(ISTEXT('Price List'!B29),'Price List'!B29,"") -> Base | D33: =IF('Price List'!#REF!,'Price List'!#REF!,"") ->  | G33: =IF(B15=1,"Promo Discount:","") -> 
B34: =B21 -> 0 | C34: =" "&IF(ISTEXT('Price List'!B32),'Price List'!B32,"") -> LS Central Base - Per Full User | D34: =IF('Price List'!C56,'Price List'!C56,"") ->  | E34: ='Price List'!C32 -> BC-D365-SAAS-BASE | F34: =IF(C$3="Monthly",IF(C$4="Monthly",G34/10,G34*1.2),IF(C$4="Monthly",G34/12,G34)) -> 36 | G34: =HLOOKUP($C$5,'Price List'!$B$1:$I$132,ROW('Price List'!B32),FALSE) -> 360 | I34: =+B34*F34 -> 0 | J34: LS Central Base - Per Full User (Essential or Premium) is a prerequisite for Retail Devices
C35: =" "&IF(ISTEXT('Price List'!B31),'Price List'!B31,"") -> Yearly | D35: =IF('Price List'!C7,'Price List'!C7,"") ->  | E35: ='Price List'!C31 -> 0
C36: =" "&IF(ISTEXT('Price List'!B33),'Price List'!B33,"") ->  | D36: =IF('Price List'!#REF!,'Price List'!#REF!,"") ->  | E36: ='Price List'!C33 -> 0
C37: =" "&IF(ISTEXT('Price List'!B34),'Price List'!B34,"") -> Stores | J37: It is not permitted to have both Online Store and Offline Store, either all Online or all Offline
C38: =" "&IF(ISTEXT('Price List'!B38),'Price List'!B38,"") -> Online Store | E38: ='Price List'!C38 -> BC-D365-SAAS-STOREON | F38: =IF(C$3="Monthly",IF(C$4="Monthly",G38/10,G38*1.2),IF(C$4="Monthly",G38/12,G38)) -> 0 | G38: =HLOOKUP($C$5,'Price List'!$B$1:$I$132,ROW('Price List'!B38),FALSE) -> 0 | I38: =+B38*F38 -> 0 | J38: Does not include a Device or a DD license. Qty should be equal to total Number of stores in the customer license
C39: =" "&IF(ISTEXT('Price List'!B39),'Price List'!B39,"") -> Offline Store | E39: ='Price List'!C39 -> BC-D365-SAAS-STOREOFF | F39: =IF(C$3="Monthly",IF(C$4="Monthly",G39/10,G39*1.2),IF(C$4="Monthly",G39/12,G39)) -> 6 | G39: =HLOOKUP($C$5,'Price List'!$B$1:$I$132,ROW('Price List'!B39),FALSE) -> 60 | I39: 0 | J39: Includes a DD license but does not include a Device. Qty should be equal to total Number of stores in the customer license
B40: =SUM(B41:B45) -> 0 | C40: =" "&IF(ISTEXT('Price List'!B41),'Price List'!B41,"") -> Devices | D40: =IF('Price List'!#REF!,'Price List'!#REF!,"") ->  | G40: =IF(B15=1,"Promo Discount:","") -> 
C41: =" "&IF(ISTEXT('Price List'!B42),'Price List'!B49,"") -> Device SAL for Retail & Hospitality | D41: =IF('Price List'!#REF!,'Price List'!#REF!,"") ->  | E41: ='Price List'!C49 -> BC-D365-SAAS-POS | F41: =IF(C$3="Monthly",IF(C$4="Monthly",G41/10,G41*1.2),IF(C$4="Monthly",G41/12,G41)) -> 102 | G41: =HLOOKUP($C$5,'Price List'!$B$1:$I$132,ROW('Price List'!B49),FALSE) -> 1020 | I41: =+B41*F41 -> 0 | J41: Stationary POS, LS Central POS (web version), back office device, Includes 1GB Database Capacity
C42: =" "&IF(ISTEXT('Price List'!B43),'Price List'!B50,"") -> Device SAL for Mobile POS App | D42: =IF('Price List'!#REF!,'Price List'!#REF!,"") ->  | E42: ='Price List'!C50 -> BC-D365-SAAS-MPOS | F42: =IF(C$3="Monthly",IF(C$4="Monthly",G42/10,G42*1.2),IF(C$4="Monthly",G42/12,G42)) -> 102 | G42: =HLOOKUP($C$5,'Price List'!$B$1:$I$132,ROW('Price List'!B50),FALSE) -> 1020 | I42: 0 | J42: For retail, for Android devices, Includes 1GB Database Capacity
C43: =" "&IF(ISTEXT('Price List'!B44),'Price List'!B51,"") -> Device SAL for Mobile Inventory App | D43: =IF('Price List'!#REF!,'Price List'!#REF!,"") ->  | E43: ='Price List'!C51 -> BC-D365-SAAS-MI | F43: =IF(C$3="Monthly",IF(C$4="Monthly",G43/10,G43*1.2),IF(C$4="Monthly",G43/12,G43)) -> 102 | G43: =HLOOKUP($C$5,'Price List'!$B$1:$I$132,ROW('Price List'!B51),FALSE) -> 1020 | I43: 0 | J43: For retail, for Android devices, Includes 1GB Database Capacity
C44: =" "&IF(ISTEXT('Price List'!B45),'Price List'!B52,"") -> Device SAL for Kitchen Display Server | E44: ='Price List'!C52 -> BC-D365-SAAS-KDS | F44: =IF(C$3="Monthly",IF(C$4="Monthly",G44/10,G44*1.2),IF(C$4="Monthly",G44/12,G44)) -> 102 | G44: =HLOOKUP($C$5,'Price List'!$B$1:$I$132,ROW('Price List'!B52),FALSE) -> 1020 | I44: 0 | J44: Includes 1GB Database Capacity
C45: =" "&IF(ISTEXT('Price List'!B46),'Price List'!B53,"") -> Device SAL for Back Office | D45: =IF('Price List'!#REF!,'Price List'!#REF!,"") ->  | E45: ='Price List'!C53 -> BC-D365-SAAS-BACK | F45: =IF(C$3="Monthly",IF(C$4="Monthly",G45/10,G45*1.2),IF(C$4="Monthly",G45/12,G45)) -> 102 | G45: =HLOOKUP($C$5,'Price List'!$B$1:$I$132,ROW('Price List'!B53),FALSE) -> 1020 | I45: 0 | J45: For Back Office only and no customer facing transactions, Includes 1GB Database Capacity
C46: =" "&IF(ISTEXT('Price List'!B57),'Price List'!B57,"") -> Office 365 Business Premium | D46: =IF('Price List'!#REF!,'Price List'!#REF!,"") ->  | E46: ='Price List'!C57 -> BC-D365-SAAS-O365BP
C47: =" "&IF(ISTEXT('Price List'!B58),'Price List'!B58,"") -> Power BI Pro | D47: =IF('Price List'!#REF!,'Price List'!#REF!,"") ->  | E47: ='Price List'!C58 -> BC-D365-SaaS-PBP
C48: =" "&IF(ISTEXT('Price List'!B62),'Price List'!B62,"") -> LS Central Modules | D48: =IF('Price List'!#REF!,'Price List'!#REF!,"") ->  | E48: ='Price List'!C62 ->  | J48: LS Central Base - Per Full User is prerequisite for all below modules
C49: =" "&IF(ISTEXT('Price List'!B89),'Price List'!B89,"") -> Hotels - per Property | D49: =IF('Price List'!#REF!,'Price List'!#REF!,"") ->  | E49: ='Price List'!C89 -> BC-D365-SAAS-HOTEL-P | F49: =IF(C$3="Monthly",IF(C$4="Monthly",G49/10,G49*1.2),IF(C$4="Monthly",G49/12,G49)) -> 163.2 | G49: =HLOOKUP($C$5,'Price List'!$B$1:$I$132,ROW('Price List'!B89),FALSE) -> 1632 | I49: =+B49*F49 -> 0
C50: =" "&IF(ISTEXT('Price List'!B90),'Price List'!B90,"") -> Hotels - per Room | D50: =IF('Price List'!#REF!,'Price List'!#REF!,"") ->  | E50: ='Price List'!C90 -> BC-D365-SAAS-HOTEL-R | F50: 8.4 | G50: =HLOOKUP($C$5,'Price List'!$B$1:$I$132,ROW('Price List'!B90),FALSE) -> 84 | I50: 0 | J50: LS Central for hotels - per Property is prerequisite
C51: =" "&IF(ISTEXT('Price List'!B91),'Price List'!B91,"") -> Hotels - per Power App User | D51: =IF('Price List'!#REF!,'Price List'!#REF!,"") ->  | E51: ='Price List'!C91 -> BC-D365-SAAS-HOTEL-PAU | F51: 18 | G51: =HLOOKUP($C$5,'Price List'!$B$1:$I$132,ROW('Price List'!B91),FALSE) -> 180 | I51: 0 | J51: LS Central for hotels - per Property is prerequisite
C52: =" "&IF(ISTEXT('Price List'!B92),'Price List'!B92,"") -> Bookings - per Location | D52: =IF('Price List'!#REF!,'Price List'!#REF!,"") ->  | E52: ='Price List'!C92 -> BC-D365-SAAS-BPL | F52: 18 | G52: =HLOOKUP($C$5,'Price List'!$B$1:$I$132,ROW('Price List'!B92),FALSE) -> 180 | I52: 0 | J52: LS Activity - per Location is prerequisitefor LS Activity - per Device
C53: =" "&IF(ISTEXT('Price List'!B93),'Price List'!B93,"") -> Bookings - per Device | D53: =IF('Price List'!#REF!,'Price List'!#REF!,"") ->  | E53: ='Price List'!C93 -> BC-D365-SAAS-BPOS | F53: 14.4 | G53: =HLOOKUP($C$5,'Price List'!$B$1:$I$132,ROW('Price List'!B93),FALSE) -> 144 | I53: 0 | J53: Qty must be equal to total number of Retail Device CALs for Retail & Hospitality, for Mobile POS App and Back Office in the customer license
C54: =" "&IF(ISTEXT('Price List'!B94),'Price List'!B94,"") -> Staff Management - per Employee | D54: =IF('Price List'!#REF!,'Price List'!#REF!,"") ->  | E54: ='Price List'!C94 -> BC-D365-SAAS-SPE | F54: 2.4 | G54: =HLOOKUP($C$5,'Price List'!$B$1:$I$132,ROW('Price List'!B94),FALSE) -> 24 | I54: 0 | J54: Per all Employees in the LSC Staff Employee Table
C55: =" "&IF(ISTEXT('Price List'!B95),'Price List'!B95,"") -> LS Pay - per Device | D55: =IF('Price List'!#REF!,'Price List'!#REF!,"") ->  | E55: ='Price List'!C95 -> BC-D365-SAAS-PAY | F55: 12 | G55: =HLOOKUP($C$5,'Price List'!$B$1:$I$132,ROW('Price List'!B95),FALSE) -> 120 | I55: 0 | J55: Qty must be equal to total number of Retail Device CALs for Retail & Hospitality and Retail Device CALs for Mobile POS App in the customer license
C56: LS eCommerce Base - Please select a Framework | D56: =IF('Price List'!#REF!,'Price List'!#REF!,"") ->  | E56: =VLOOKUP(C56,'Price List'!B100:C103,2,FALSE) ->  | F56: 163.2 | G56: =HLOOKUP($C$5,'Price List'!$B$1:$I$132,ROW('Price List'!B100),FALSE) -> 1632 | I56: 0 | J56: LS eCommerce Base is a prerequisite for LS eCommerce per Device
C57: =" "&IF(ISTEXT('Price List'!B104),'Price List'!B104,"") -> eCommerce per Device | D57: =IF('Price List'!#REF!,'Price List'!#REF!,"") ->  | E57: ='Price List'!C104 -> BC-D365-SAAS-EPOS | F57: 3.6 | G57: =HLOOKUP($C$5,'Price List'!$B$1:$I$132,ROW('Price List'!B104),FALSE) -> 36 | H57: =IF(B57<10,0,VLOOKUP(B57,$L$100:$M$106,2,1)) -> 0 | I57: 0 | J57: Qty must be equal to total number of Retail Device CALs for Retail & Hospitality and Retail Device CALs for Mobile POS App in the customer license
C58: =" "&IF(ISTEXT('Price List'!#REF!),'Price List'!#REF!,"") ->  | D58: =IF('Price List'!#REF!,'Price List'!#REF!,"") ->  | I58: =(+B58*G58)*0.5 -> 0
C59: =" "&IF(ISTEXT('Price List'!B81),'Price List'!B81,"") -> LS Central Additional Language Layer | D59: =IF('Price List'!#REF!,'Price List'!#REF!,"") ->  | E59: ='Price List'!C81 -> 0
C60: =" "&IF(ISTEXT('Price List'!B69),'Price List'!B69,"") -> Bookings - per Device | D60: =IF('Price List'!#REF!,'Price List'!#REF!,"") ->  | E60: ='Price List'!C69 -> BC-D365-SAAS-APOS | G60: =HLOOKUP($C$5,'Price List'!$B$1:$G$132,ROW('Price List'!B69),FALSE) -> 12 | I60: 0
C61: =" "&IF(ISTEXT('Price List'!B107),'Price List'!B107,"") ->  | D61: =IF('Price List'!#REF!,'Price List'!#REF!,"") ->  | E61: ='Price List'!C107 -> 0 | G61: =HLOOKUP($C$5,'Price List'!$B$1:$G$132,ROW('Price List'!B107),FALSE) -> 0 | I61: 0
C62: =" "&IF(ISTEXT('Price List'!B108),'Price List'!B108,"") ->  | D62: =IF('Price List'!#REF!,'Price List'!#REF!,"") ->  | E62: ='Price List'!C108 -> 0 | G62: =HLOOKUP($C$5,'Price List'!$B$1:$G$132,ROW('Price List'!B108),FALSE) -> 500 | I62: 0
C63: =" "&IF(ISTEXT('Price List'!B109),'Price List'!B109,"") ->  | D63: =IF('Price List'!#REF!,'Price List'!#REF!,"") ->  | E63: ='Price List'!C109 -> 0 | G63: =HLOOKUP($C$5,'Price List'!$B$1:$G$132,ROW('Price List'!B109),FALSE) -> 40 | I63: 0
C64: =" "&IF(ISTEXT('Price List'!B110),'Price List'!B110,"") ->  | D64: =IF('Price List'!#REF!,'Price List'!#REF!,"") ->  | E64: ='Price List'!C110 -> 0 | G64: =HLOOKUP($C$5,'Price List'!$B$1:$G$132,ROW('Price List'!B110),FALSE) -> 0 | I64: 0
C65: =" "&IF(ISTEXT('Price List'!B111),'Price List'!B111,"") ->  | D65: =IF('Price List'!#REF!,'Price List'!#REF!,"") ->  | E65: ='Price List'!C111 -> 0 | G65: =HLOOKUP($C$5,'Price List'!$B$1:$G$132,ROW('Price List'!B111),FALSE) -> 0 | I65: 0
C66: =" "&IF(ISTEXT('Price List'!B112),'Price List'!B112,"") ->  | D66: =IF('Price List'!#REF!,'Price List'!#REF!,"") ->  | E66: ='Price List'!C112 -> 0 | G66: =HLOOKUP($C$5,'Price List'!$B$1:$G$132,ROW('Price List'!B112),FALSE) -> 0 | I66: 0
C67: =" "&IF(ISTEXT('Price List'!B113),'Price List'!B113,"") ->  | D67: =IF('Price List'!#REF!,'Price List'!#REF!,"") ->  | E67: ='Price List'!C113 -> 0 | G67: =HLOOKUP($C$5,'Price List'!$B$1:$G$132,ROW('Price List'!B113),FALSE) -> 0 | I67: 0
C68: =" "&IF(ISTEXT('Price List'!B114),'Price List'!B114,"") ->  | D68: =IF('Price List'!#REF!,'Price List'!#REF!,"") ->  | E68: ='Price List'!C114 -> 0 | G68: =HLOOKUP($C$5,'Price List'!$B$1:$G$132,ROW('Price List'!B114),FALSE) -> 0 | I68: 0
C69: =" "&IF(ISTEXT('Price List'!B115),'Price List'!B115,"") ->  | D69: =IF('Price List'!#REF!,'Price List'!#REF!,"") ->  | E69: ='Price List'!C115 -> 0 | G69: =HLOOKUP($C$5,'Price List'!$B$1:$G$132,ROW('Price List'!B115),FALSE) -> 0 | I69: 0
C70: =" "&IF(ISTEXT('Price List'!B116),'Price List'!B116,"") ->  | D70: =IF('Price List'!#REF!,'Price List'!#REF!,"") ->  | E70: ='Price List'!C116 -> 0 | G70: =HLOOKUP($C$5,'Price List'!$B$1:$G$132,ROW('Price List'!B116),FALSE) -> 0 | I70: 0
C71: =" "&IF(ISTEXT('Price List'!B117),'Price List'!B117,"") ->  | D71: =IF('Price List'!#REF!,'Price List'!#REF!,"") ->  | E71: ='Price List'!C117 -> 0 | G71: =HLOOKUP($C$5,'Price List'!$B$1:$G$132,ROW('Price List'!B117),FALSE) -> 0 | I71: 0
C72: =" "&IF(ISTEXT('Price List'!B118),'Price List'!B118,"") ->  | D72: =IF('Price List'!#REF!,'Price List'!#REF!,"") ->  | E72: ='Price List'!C118 -> 0 | G72: =HLOOKUP($C$5,'Price List'!$B$1:$G$132,ROW('Price List'!B118),FALSE) -> 0 | I72: 0
D73: Total Solution Cost (TSC) | I73: =SUM(I22:I45,I49:I57) -> 0
B75: Please find information about ongoing promos on our Partner Portal
B76: Click here for more details about products in the Price List
B77: Information on country availability can be found on LS Retail Portal
B79: This document is intended for general information purposes only, and we have taken due care in its preparation. All embedded functionality used to facilitate price calculations is provided AS IS. Any risk arising from the use of the information shall rest with the recipient and nothing herein shall be construed as constituting any kind of warranty or representation, express, implied or statutory. Users are responsible for information that is input using the pricing calculator embedded in the offline pricelist. Under certain circumstances the figures resulting from the applied pricing calculations embedded in the price list, which are shown for your convenience in this pricelist, may differ from those reflected in the Order Summary Page in Order Central. In these scenarios, the figures shown in the Order Summary Page will control.
B81: For information on the availability of EFT connections for the mobile and the stationary LS Central Points of Sale, contact licenses@lsretail.com
L97: Qty Discount Scheme
L98: Qty | M98: Extra Discount
L99: 0 | M99: 0
L100: 9 | M100: 0
L101: 10 | M101: 0.05
L102: 25 | M102: 0.1
L103: 50 | M103: 0.15
L104: 100 | M104: 0.2
L105: 250 | M105: 0.25

Sheet BTC2 Computation
A1: LS Retail Confidential
A3: Bridge to the Cloud 2 | C3: =IF(F5="Before September 1, 2022",(IF(AND(C16>0,C22>0),IF(AND(T16>=0,T21>=0),"ELIGIBLE FOR BTC2","NOT ELIGIBLE FOR BTC2"),"INCOMPLETE DETAILS")),"NOT ELIGIBLE") -> INCOMPLETE DETAILS | Z3: Free Users? | AA3: =IF(AND(Z6="YES",U6="ELIGIBLE"),ROUNDDOWN(IF(B38>0,(U4/S38),(U4/S37)),0),"NOT ELIGIBLE") -> NOT ELIGIBLE | AC3: =IF(OR(AA3<0,AA3="NOT ELIGIBLE"),"*","*estimated number of free users") -> *
T4: 2 Months EP | U4: =I22/12*2 -> 0
A5: On-premise Perpetual License First Registration Date: | F5: Before September 1, 2022 | T5: 1 Month NCE cost | U5: =(T28) -> 0 | Z5: Does the license have or has previously licensed concurrent users?
U6: =IF(U5>U4,"ELIGIBLE","NOT ELIGIBLE") -> NOT ELIGIBLE | Z6: Yes
B7: Subscription Term: | C7: Triennial
B8: Mode of Billing: | C8: Monthly
B9: ="Currency:" -> Currency: | C9: =VLOOKUP(C12,V15:W24,2,FALSE) -> USD | H9: Partner discount Subscription/SaaS:
A11: Customer License Value from Business Hub | I11: Currency Equivalent to:
B12: PLP Currency: | C12: USD | I12: =C9 -> USD
B13: PLP LSR: | I13: =IF($C$12=$I$12,C13,(C13*(VLOOKUP($C$12,$V$21:$X$24,3,FALSE)))) -> 0
B14: SQL amount: | I14: =IF($C$12=$I$12,C14,(C14*(VLOOKUP($C$12,$V$21:$X$24,3,FALSE)))) -> 0
B15: Total PLP: | C15: =+C14+C13 -> 0 | I15: =+I14+I13 -> 0 | V15: AUD | W15: AUD
B16: Enhancement @ 18% | C16: =IF(C14=0,(C13*0.18),((C13*0.18)+(C14*0.2))) -> 0 | I16: =IF(I14=0,(I13*0.18),((I13*0.18)+(I14*0.2))) -> 0 | T16: =(J27*12)-I16 -> 0 | V16: CAD | W16: CAD
V17: EUR | W17: EUR
A18: License Value from MS PSBC | V18: GBP | W18: GBP
B19: PLP MS: | I19: =IF($C$12=$I$12,C19,(C19*(VLOOKUP($C$12,$V$21:$X$24,3,FALSE)))) -> 0 | V19: NZD | W19: NZD
B20: SQL amount: | I20: =IF($C$12=$I$12,C20,(C20*(VLOOKUP($C$12,$V$21:$X$24,3,FALSE)))) -> 0 | V20: USD | W20: USD
B21: Total PLP: | C21: =+C20+C19 -> 0 | I21: =+I20+I19 -> 0 | T21: =(T28*12)-I22 -> 0 | V21: DKK | W21: EUR | X21: 0.1342
B22: Enhancement @ 18% | C22: =IF(C20=0,(C19*0.18),((C19*0.18)+(C20*0.2))) -> 0 | I22: =IF(I20=0,(I19*0.18),((I19*0.18)+(I20*0.2))) -> 0 | V22: NOK | W22: EUR | X22: 0.08757
V23: SEK | W23: EUR | X23: 0.08952
V24: INR | W24: USD | X24: =0.01112/X25 -> 0.01206204578
J25: =$C$9 -> USD | X25: 0.9219
I26: Monthly Partner Price with 15% margin | J26: =J27*0.85 -> 0
I27: Monthly Customer Cost with BTC2 | J27: =J95 -> 0 | K27: =Factor!P2 -> USD
B28: Qty | C28: Modules | D28: Granule ID | E28: SKU | F28: Current Pricelist Prices | G28: =Factor!P2&" Yearly" -> USD Yearly | I28: BTC2 Prices | J28: Total | K28: Prerequisites/Notes: Minimum order 1 Essential or Premium User and 1 LS Central Base - Per Full User, 1 Store and 1 LS Retail Device SAL | S28: MS Price | T28: =SUM(T37:T61) -> 0
C29: Promotion | K29: The modules listed here are only the Get Me Started promotion modules - if you need to add more modules please add them in the price list below
C30: Get me Started | K30: To enable the Get Me Started promotion please enter "1" - no other number should be inserted in this part below
B31: =+IF($B$30=1,1,0) -> 0 | C31: =" "&IF(ISTEXT('Price List'!B4),'Price List'!B4,"") -> Dynamics 365 Business Central Essential | E31: =+'Price List'!C4 -> BC-D365-SAAS-E | G31: =HLOOKUP($C$9,'Price List'!$B$1:$G$132,ROW('Price List'!B4),FALSE) -> 84 | J31: =G31*B31*(1-0.15) -> 0 | K31: You cannot mix and match Essential and Premium Users select either one and if customer needs more please add them below
B32: =+IF($B$30=1,1,0) -> 0 | C32: =" "&IF(ISTEXT('Price List'!B5),'Price List'!B5,"") -> Dynamics 365 Business Central Premium | E32: =+'Price List'!C5 -> BC-D365-SAAS-P | G32: =HLOOKUP($C$9,'Price List'!$B$1:$G$132,ROW('Price List'!B5),FALSE) -> 120 | J32: =G32*B32*(1-0.15) -> 0 | K32: You cannot mix and match Essential and Premium Users select either one and if customer needs more please add them below
B33: =+IF($B$30=1,1,0) -> 0 | C33: =" "&IF(ISTEXT('Price List'!B30),'Price List'!B30,"") -> LS Central Base - Per Full User | E33: ='Price List'!C30 -> BC-D365-SAAS-BASE | G33: =HLOOKUP($C$9,'Price List'!$B$1:$G$132,ROW('Price List'!B30),FALSE) -> 36 | J33: =G33*B33*(1-0.15) -> 0 | K33: If customer needs additional LS Central Base - Per full user please add them below
B34: 0 | C34: =" "&IF(ISTEXT('Price List'!B42),'Price List'!B42,"") -> Device SAL for Retail & Hospitality | E34: ='Price List'!C42 -> BC-D365-SAAS-POS | G34: =HLOOKUP($C$9,'Price List'!$B$1:$G$132,ROW('Price List'!B42),FALSE) -> 102 | J34: =G34*B34*(1-0.15) -> 0 | K34: If customer needs additional Retail Device SAL for Retail & Hospitality please add them below
B36: =SUM(B30,B37:B38) -> 0 | C36: =" "&IF(ISTEXT('Price List'!B3),'Price List'!B3,"") -> ERP Users
C37: =" "&IF(ISTEXT('Price List'!B11),'Price List'!B11,"") -> Dynamics 365 Business Central Essential | D37: ='Price List'!C11 -> BC-D365-SAAS-E | E37: ='Price List'!C11 -> BC-D365-SAAS-E | F37: =IF(C$7="Monthly",IF(C$8="Monthly",G37/10,G37*1.2),IF(C$8="Monthly",G37/12,G37)) -> 70 | G37: =HLOOKUP($C$9,'Price List'!$B$1:$I$132,ROW('Price List'!B11),FALSE) -> 840 | I37: =F37*0.6 -> 42 | J37: =+B37*I37 -> 0 | K37: You cannot mix and match Essential and Premium Users, Includes 2 GB database capacity | S37: =I37 -> 42 | T37: =S37*B37 -> 0
C38: =" "&IF(ISTEXT('Price List'!B12),'Price List'!B12,"") -> Dynamics 365 Business Central Premium | D38: =IF('Price List'!C42,'Price List'!C42,"") ->  | E38: ='Price List'!C12 -> BC-D365-SAAS-P | F38: 100 | G38: =HLOOKUP($C$9,'Price List'!$B$1:$I$132,ROW('Price List'!B12),FALSE) -> 1200 | I38: =F38*0.6 -> 60 | J38: =+B38*I38 -> 0 | K38: You cannot mix and match Essential and Premium Users, Includes 3 GB database capacity | S38: =I38 -> 60 | T38: 0
C39: =" "&IF(ISTEXT('Price List'!B13),'Price List'!B13,"") -> Dynamics 365 Business Central Team Member | D39: =IF('Price List'!C5,'Price List'!C5,"") ->  | E39: ='Price List'!C13 -> BC-D365-SAAS-TM | F39: 8 | G39: =HLOOKUP($C$9,'Price List'!$B$1:$I$132,ROW('Price List'!B13),FALSE) -> 96 | I39: =F39*0.6 -> 4.8 | J39: =+B39*I39 -> 0 | S39: =I39 -> 4.8 | T39: 0
C40: =" "&IF(ISTEXT('Price List'!B14),'Price List'!B14,"") -> Dynamics 365 Business Central External Accountant | D40: =IF('Price List'!C43,'Price List'!C43,"") ->  | E40: ='Price List'!C14 -> BC-D365-SAAS-EA | F40: 0 | G40: =HLOOKUP($C$9,'Price List'!$B$1:$I$132,ROW('Price List'!B14),FALSE) -> 0 | J40: =+B40*F40 -> 0 | K40: One included per tenant | T40: 0
C41: =" "&IF(ISTEXT('Price List'!B15),'Price List'!B15,"") -> Dynamics 365 Business Central Sales Professional attach | E41: ='Price List'!C15 -> BC-D365-SAAS-SPA | F41: 20 | G41: =HLOOKUP($C$9,'Price List'!$B$1:$I$132,ROW('Price List'!B15),FALSE) -> 240 | J41: =+B41*F41 -> 0 | K41: This module can be attached to a Essential or Premium user, You have to own an Essential or Premium user to attach this module to. | T41: 0
C42: =" "&IF(ISTEXT('Price List'!B16),'Price List'!B16,"") -> Dynamics 365 Business Central Customer Service Professional attach | E42: ='Price List'!C16 -> BC-D365-SAAS-CSPA | F42: 20 | G42: =HLOOKUP($C$9,'Price List'!$B$1:$I$132,ROW('Price List'!B16),FALSE) -> 240 | J42: =+B42*F42 -> 0 | K42: This module can be attached to a Essential or Premium user, You have to own an Essential or Premium user to attach this module to. | T42: 0
C43: =" "&IF(ISTEXT('Price List'!B18),'Price List'!B18,"") -> Other Modules | T43: 0
C44: =" "&IF(ISTEXT('Price List'!B24),'Price List'!B24,"") -> Dynamics 365 Business Central Database Capacity | E44: ='Price List'!C24 -> BC-D365-SAAS-CDC | F44: =IF(C$7="Monthly",IF(C$8="Monthly",G44/10,G44*1.2),IF(C$8="Monthly",G44/12,G44)) -> 10 | G44: =HLOOKUP($C$9,'Price List'!$B$1:$I$132,ROW('Price List'!B24),FALSE) -> 120 | J44: =+B44*F44 -> 0 | K44: Additional Database Capacity is sold per GB | T44: 0
C45: =" "&IF(ISTEXT('Price List'!B25),'Price List'!B25,"") -> Dynamics 365 Business Central Database Capacity Additional 100 GB | E45: ='Price List'!C25 -> BC-D365-SAAS-CDCA | F45: =IF(C$7="Monthly",IF(C$8="Monthly",G45/10,G45*1.2),IF(C$8="Monthly",G45/12,G45)) -> 500 | G45: =HLOOKUP($C$9,'Price List'!$B$1:$I$132,ROW('Price List'!B25),FALSE) -> 6000 | J45: =+B45*F45 -> 0 | T45: 0
C46: =" "&IF(ISTEXT('Price List'!B26),'Price List'!B26,"") -> Dynamics 365 Business Central Database Capacity Overage | E46: ='Price List'!C26 -> BC-D365-SAAS-CDCO | F46: =IF(C$7="Monthly",IF(C$8="Monthly",G46/10,G46*1.2),IF(C$8="Monthly",G46/12,G46)) -> 5 | G46: =HLOOKUP($C$9,'Price List'!$B$1:$I$132,ROW('Price List'!B26),FALSE) -> 60 | J46: =+B46*F46 -> 0 | K46: Pre-requirement is Business Central Database Capacity Additional 100 GB | T46: 0
C47: =" "&IF(ISTEXT('Price List'!B27),'Price List'!B27,"") -> Dynamics 365 Business Central Additional Environment Addon* | E47: ='Price List'!C27 -> BC-D365-SAAS-CAE | F47: =IF(C$7="Monthly",IF(C$8="Monthly",G47/10,G47*1.2),IF(C$8="Monthly",G47/12,G47)) -> 300 | G47: =HLOOKUP($C$9,'Price List'!$B$1:$I$132,ROW('Price List'!B27),FALSE) -> 3600 | J47: =+B47*F47 -> 0 | K47: Please indicate the country where the Additional Environment will be setup; *Additional Environments can only be setup in countries where LS Central SaaS clusters are running | T47: 0
C48: =" "&IF(ISTEXT('Price List'!B29),'Price List'!B29,"") -> Base | D48: =IF('Price List'!#REF!,'Price List'!#REF!,"") ->  | G48: =IF(B30=1,"Promo Discount:","") -> 
B49: =+B37+B38 -> 0 | C49: =" "&IF(ISTEXT('Price List'!B32),'Price List'!B32,"") -> LS Central Base - Per Full User | D49: =IF('Price List'!C56,'Price List'!C56,"") ->  | E49: ='Price List'!C32 -> BC-D365-SAAS-BASE | F49: =IF(C$7="Monthly",IF(C$8="Monthly",G49/10,G49*1.2),IF(C$8="Monthly",G49/12,G49)) -> 30 | G49: =HLOOKUP($C$9,'Price List'!$B$1:$I$132,ROW('Price List'!B32),FALSE) -> 360 | I49: =F49*0.6 -> 18 | J49: =+B49*I49 -> 0 | K49: LS Central Base - Per Full User (Essential or Premium) is a prerequisite for Retail Devices | S49: 0 | T49: =S49*B49 -> 0
C50: =" "&IF(ISTEXT('Price List'!B31),'Price List'!B31,"") -> Yearly | D50: =IF('Price List'!C7,'Price List'!C7,"") ->  | E50: ='Price List'!C31 -> 0 | T50: =S50*B50 -> 0
C51: =" "&IF(ISTEXT('Price List'!B33),'Price List'!B33,"") ->  | D51: =IF('Price List'!#REF!,'Price List'!#REF!,"") ->  | E51: ='Price List'!C33 -> 0 | T51: =S51*B51 -> 0
C52: =" "&IF(ISTEXT('Price List'!B34),'Price List'!B34,"") -> Stores
C53: =" "&IF(ISTEXT('Price List'!B38),'Price List'!B38,"") -> Online Store | E53: ='Price List'!C38 -> BC-D365-SAAS-STOREON | F53: =IF(C$7="Monthly",IF(C$8="Monthly",G53/10,G53*1.2),IF(C$8="Monthly",G53/12,G53)) -> 0 | G53: =HLOOKUP($C$9,'Price List'!$B$1:$I$132,ROW('Price List'!B38),FALSE) -> 0 | I53: =F53*0.6 -> 0 | J53: =+B53*I53 -> 0 | K53: Does not include a Device or a DD license. Total quantity of the purchased store modules should be equal to the actual number of customer's stores | S53: 0 | T53: =S53*B53 -> 0
C54: =" "&IF(ISTEXT('Price List'!B39),'Price List'!B39,"") -> Offline Store | E54: ='Price List'!C39 -> BC-D365-SAAS-STOREOFF | F54: =IF(C$7="Monthly",IF(C$8="Monthly",G54/10,G54*1.2),IF(C$8="Monthly",G54/12,G54)) -> 5 | G54: =HLOOKUP($C$9,'Price List'!$B$1:$I$132,ROW('Price List'!B39),FALSE) -> 60 | I54: 3 | J54: =+B54*I54 -> 0 | K54: Includes a DD license but does not include a Device. Total quantity of the purchased store modules should be equal to the actual number of customer's stores | S54: 0 | T54: =S54*B54 -> 0
B55: =SUM(B56:B60) -> 0 | C55: =" "&IF(ISTEXT('Price List'!B41),'Price List'!B41,"") -> Devices | D55: =IF('Price List'!#REF!,'Price List'!#REF!,"") ->  | G55: =IF(B30=1,"Promo Discount:","") -> 
C56: =" "&IF(ISTEXT('Price List'!B42),'Price List'!B49,"") -> Device SAL for Retail & Hospitality | D56: =IF('Price List'!#REF!,'Price List'!#REF!,"") ->  | E56: ='Price List'!C49 -> BC-D365-SAAS-POS | F56: =IF(C$7="Monthly",IF(C$8="Monthly",G56/10,G56*1.2),IF(C$8="Monthly",G56/12,G56)) -> 85 | G56: =HLOOKUP($C$9,'Price List'!$B$1:$I$132,ROW('Price List'!B49),FALSE) -> 1020 | I56: =F56*0.6 -> 51 | J56: =+B56*I56 -> 0 | K56: Stationary POS, LS Central POS (web version), back office device, Includes 1GB Database Capacity | S56: =VLOOKUP($J$25,$V$56:$Y$61,4,FALSE) -> 24 | T56: =S56*B56 -> 0 | V56: USD | X56: 40 | Y56: =X56*0.6 -> 24
C57: =" "&IF(ISTEXT('Price List'!B43),'Price List'!B50,"") -> Device SAL for Mobile POS App | D57: =IF('Price List'!#REF!,'Price List'!#REF!,"") ->  | E57: ='Price List'!C50 -> BC-D365-SAAS-MPOS | F57: 85 | G57: =HLOOKUP($C$9,'Price List'!$B$1:$I$132,ROW('Price List'!B50),FALSE) -> 1020 | I57: 51 | J57: 0 | K57: For retail, for Android devices, Includes 1GB Database Capacity | S57: 24 | T57: 0 | V57: CAD | W57: 1.3568 | X57: =+X$56*W57 -> 54.272 | Y57: =X57*0.6 -> 32.5632
C58: =" "&IF(ISTEXT('Price List'!B44),'Price List'!B51,"") -> Device SAL for Mobile Inventory App | D58: =IF('Price List'!#REF!,'Price List'!#REF!,"") ->  | E58: ='Price List'!C51 -> BC-D365-SAAS-MI | F58: 85 | G58: =HLOOKUP($C$9,'Price List'!$B$1:$I$132,ROW('Price List'!B51),FALSE) -> 1020 | I58: 51 | J58: 0 | K58: For retail, for Android devices, Includes 1GB Database Capacity | S58: 24 | T58: 0 | V58: EUR | W58: =0.85*1.11 -> 0.9435 | X58: =+X$56*W58 -> 37.74 | Y58: 22.644
C59: =" "&IF(ISTEXT('Price List'!B45),'Price List'!B52,"") -> Device SAL for Kitchen Display Server | E59: ='Price List'!C52 -> BC-D365-SAAS-KDS | F59: 85 | G59: =HLOOKUP($C$9,'Price List'!$B$1:$I$132,ROW('Price List'!B52),FALSE) -> 1020 | I59: 51 | J59: 0 | K59: Includes 1GB Database Capacity | S59: 24 | T59: 0 | V59: GBP | W59: =0.76*1.09 -> 0.8284 | X59: =+X$56*W59 -> 33.136 | Y59: 19.8816
C60: =" "&IF(ISTEXT('Price List'!B46),'Price List'!B53,"") -> Device SAL for Back Office | D60: =IF('Price List'!#REF!,'Price List'!#REF!,"") ->  | E60: ='Price List'!C53 -> BC-D365-SAAS-BACK | F60: 85 | G60: =HLOOKUP($C$9,'Price List'!$B$1:$I$132,ROW('Price List'!B53),FALSE) -> 1020 | I60: 51 | J60: 0 | K60: For Back Office only and no customer facing transactions, Includes 1GB Database Capacity | S60: 24 | T60: 0 | V60: AUD | W60: 1.49657 | X60: =+X$56*W60 -> 59.8628 | Y60: 35.91768
C61: =" "&IF(ISTEXT('Price List'!B47),'Price List'!B54,"") -> Self Checkout Connector Device | D61: =IF('Price List'!#REF!,'Price List'!#REF!,"") ->  | E61: ='Price List'!C54 -> BC-D365-SAAS-SCC | F61: 85 | G61: =HLOOKUP($C$9,'Price List'!$B$1:$I$132,ROW('Price List'!B54),FALSE) -> 1020 | I61: 51 | J61: 0 | S61: 24 | T61: 0 | V61: NZD | W61: 1.6264 | X61: =+X$56*W61 -> 65.056 | Y61: 39.0336
C62: =" "&IF(ISTEXT('Price List'!B57),'Price List'!B57,"") -> Office 365 Business Premium | D62: =IF('Price List'!#REF!,'Price List'!#REF!,"") ->  | E62: ='Price List'!C57 -> BC-D365-SAAS-O365BP
C63: =" "&IF(ISTEXT('Price List'!B58),'Price List'!B58,"") -> Power BI Pro | D63: =IF('Price List'!#REF!,'Price List'!#REF!,"") ->  | E63: ='Price List'!C58 -> BC-D365-SaaS-PBP
C64: =" "&IF(ISTEXT('Price List'!B62),'Price List'!B62,"") -> LS Central Modules | D64: =IF('Price List'!#REF!,'Price List'!#REF!,"") ->  | E64: ='Price List'!C62 ->  | K64: LS Central Base - Per Full User is prerequisite for all below modules
C65: =" "&IF(ISTEXT('Price List'!B83),'Price List'!B83,"") -> Scan Pay Go - per Usage | D65: =IF('Price List'!#REF!,'Price List'!#REF!,"") ->  | E65: ='Price List'!C83 -> BC-D365-SAAS-SPG | F65: 0.01 | G65: =HLOOKUP($C$9,'Price List'!$B$1:$I$132,ROW('Price List'!B83),FALSE) -> 0.01 | I65: =F65*0.6 -> 0.006 | J65: =+B65*I65 -> 0
C66: =" "&IF(ISTEXT('Price List'!B84),'Price List'!B84,"") -> Analytics | D66: =IF('Price List'!#REF!,'Price List'!#REF!,"") ->  | E66: ='Price List'!C84 -> BC-D365-SAAS-ANALYTI | F66: =IF(C$7="Monthly",IF(C$8="Monthly",G66/10,G66*1.2),IF(C$8="Monthly",G66/12,G66)) -> 0 | G66: =HLOOKUP($C$9,'Price List'!$B$1:$I$132,ROW('Price List'!B84),FALSE) -> 0 | I66: 0 | J66: 0
C67: =" "&IF(ISTEXT('Price List'!B85),'Price List'!B85,"") -> Pharmacies Base - W1 | D67: =IF('Price List'!#REF!,'Price List'!#REF!,"") ->  | E67: ='Price List'!C85 -> BC-D365-SAAS-PHBW1 | F67: 500 | G67: =HLOOKUP($C$9,'Price List'!$B$1:$I$132,ROW('Price List'!B85),FALSE) -> 6000 | I67: 300 | J67: 0 | K67: Pharmacies Base - W1 localization lonely. Pharmacies Base is the prerequisite for Pharmacies per Device
C68: =" "&IF(ISTEXT('Price List'!B86),'Price List'!B86,"") -> Pharmacies per Device | D68: =IF('Price List'!#REF!,'Price List'!#REF!,"") ->  | E68: ='Price List'!C86 -> BC-D365-SAAS-PHDW1 | F68: 40 | G68: =HLOOKUP($C$9,'Price List'!$B$1:$I$132,ROW('Price List'!B86),FALSE) -> 480 | I68: 24 | J68: 0 | K68: Qty must be equal to total number of Device CALs for Retail & Hospitality and Device CALs for Mobile in the customer license
C69: =" "&IF(ISTEXT('Price List'!B87),'Price List'!B87,"") -> Forecourt base | D69: =IF('Price List'!#REF!,'Price List'!#REF!,"") ->  | E69: ='Price List'!C87 -> BC-D365-SAAS-FCB | F69: 136 | G69: =HLOOKUP($C$9,'Price List'!$B$1:$I$132,ROW('Price List'!B87),FALSE) -> 1632 | I69: 81.6 | J69: 0
C70: =" "&IF(ISTEXT('Price List'!B88),'Price List'!B88,"") -> Forecourt per device | D70: =IF('Price List'!#REF!,'Price List'!#REF!,"") ->  | E70: ='Price List'!C88 -> BC-D365-SAAS-FCD | F70: 17.7 | G70: =HLOOKUP($C$9,'Price List'!$B$1:$I$132,ROW('Price List'!B88),FALSE) -> 212.4 | I70: 10.62 | J70: 0 | K70: Forecourt Base is prerequisite. Only for those Retail Devices utilizing the Forecourt Controller interface
C71: =" "&IF(ISTEXT('Price List'!B89),'Price List'!B89,"") -> Hotels - per Property | D71: =IF('Price List'!#REF!,'Price List'!#REF!,"") ->  | E71: ='Price List'!C89 -> BC-D365-SAAS-HOTEL-P | F71: 136 | G71: =HLOOKUP($C$9,'Price List'!$B$1:$I$132,ROW('Price List'!B89),FALSE) -> 1632 | I71: 81.6 | J71: 0
C72: =" "&IF(ISTEXT('Price List'!B90),'Price List'!B90,"") -> Hotels - per Room | D72: =IF('Price List'!#REF!,'Price List'!#REF!,"") ->  | E72: ='Price List'!C90 -> BC-D365-SAAS-HOTEL-R | F72: 7 | G72: =HLOOKUP($C$9,'Price List'!$B$1:$I$132,ROW('Price List'!B90),FALSE) -> 84 | I72: 4.2 | J72: 0 | K72: Hotels - per Property is prerequisite
C73: =" "&IF(ISTEXT('Price List'!B91),'Price List'!B91,"") -> Hotels - per Power App User | D73: =IF('Price List'!#REF!,'Price List'!#REF!,"") ->  | E73: ='Price List'!C91 -> BC-D365-SAAS-HOTEL-PAU | F73: 15 | G73: =HLOOKUP($C$9,'Price List'!$B$1:$I$132,ROW('Price List'!B91),FALSE) -> 180 | I73: 9 | J73: 0 | K73: Hotels - per Property is prerequisite
C74: =" "&IF(ISTEXT('Price List'!B92),'Price List'!B92,"") -> Bookings - per Location | D74: =IF('Price List'!#REF!,'Price List'!#REF!,"") ->  | E74: ='Price List'!C92 -> BC-D365-SAAS-BPL | F74: 15 | G74: =HLOOKUP($C$9,'Price List'!$B$1:$I$132,ROW('Price List'!B92),FALSE) -> 180 | I74: 9 | J74: 0 | K74: Bookings - per Location is prerequisitefor Bookings - per Device
C75: =" "&IF(ISTEXT('Price List'!B93),'Price List'!B93,"") -> Bookings - per Device | D75: =IF('Price List'!#REF!,'Price List'!#REF!,"") ->  | E75: ='Price List'!C93 -> BC-D365-SAAS-BPOS | F75: 12 | G75: =HLOOKUP($C$9,'Price List'!$B$1:$I$132,ROW('Price List'!B93),FALSE) -> 144 | I75: 7.2 | J75: 0 | K75: Qty must be equal to total number of Device CALs for Retail & Hospitality, for Mobile POS App and Back Office in the customer license
C76: =" "&IF(ISTEXT('Price List'!B94),'Price List'!B94,"") -> Staff Management - per Employee | D76: =IF('Price List'!#REF!,'Price List'!#REF!,"") ->  | E76: ='Price List'!C94 -> BC-D365-SAAS-SPE | F76: 2 | G76: =HLOOKUP($C$9,'Price List'!$B$1:$I$132,ROW('Price List'!B94),FALSE) -> 24 | I76: 1.2 | J76: 0 | K76: Per all Employees in the LSC Staff Employee Table
C77: =" "&IF(ISTEXT('Price List'!B95),'Price List'!B95,"") -> LS Pay - per Device | D77: =IF('Price List'!#REF!,'Price List'!#REF!,"") ->  | E77: ='Price List'!C95 -> BC-D365-SAAS-PAY | F77: 10 | G77: =HLOOKUP($C$9,'Price List'!$B$1:$I$132,ROW('Price List'!B95),FALSE) -> 120 | I77: 6 | J77: 0 | K77: Qty must be equal to total number of Device CALs for Retail & Hospitality and Device CALs for Mobile POS App in the customer license
C78: eCommerce Base - Please select a Framework | D78: =IF('Price List'!#REF!,'Price List'!#REF!,"") ->  | E78: =VLOOKUP(C78,'Price List'!B100:C103,2,FALSE) -> BC-D365-SAAS-E3RD | F78: 136 | G78: =HLOOKUP($C$9,'Price List'!$B$1:$I$132,ROW('Price List'!B100),FALSE) -> 1632 | I78: 81.6 | J78: 0 | K78: =IF(C78="eCommerce Base - Shopify*","eCommerce Base is a prerequisite for eCommerce per Device. *Shopify is only available for version 24 and newer","eCommerce Base is a prerequisite for eCommerce per Device") -> eCommerce Base is a prerequisite for eCommerce per Device
C79: =" "&IF(ISTEXT('Price List'!B104),'Price List'!B104,"") -> eCommerce per Device | D79: =IF('Price List'!#REF!,'Price List'!#REF!,"") ->  | E79: ='Price List'!C104 -> BC-D365-SAAS-EPOS | F79: 3 | G79: =HLOOKUP($C$9,'Price List'!$B$1:$I$132,ROW('Price List'!B104),FALSE) -> 36 | H79: =IF(B79<10,0,VLOOKUP(B79,$M$121:$N$127,2,1)) -> 0 | I79: 1.8 | J79: 0 | K79: Qty must be equal to total number of Device CALs for Retail & Hospitality and Device CALs for Mobile POS App in the customer license
C80: =" "&IF(ISTEXT('Price List'!#REF!),'Price List'!#REF!,"") ->  | D80: =IF('Price List'!#REF!,'Price List'!#REF!,"") ->  | J80: =(+B80*G80)*0.5 -> 0
C81: =" "&IF(ISTEXT('Price List'!B81),'Price List'!B81,"") -> LS Central Additional Language Layer | D81: =IF('Price List'!#REF!,'Price List'!#REF!,"") ->  | E81: ='Price List'!C81 -> 0
C82: =" "&IF(ISTEXT('Price List'!B69),'Price List'!B69,"") -> Bookings - per Device | D82: =IF('Price List'!#REF!,'Price List'!#REF!,"") ->  | E82: ='Price List'!C69 -> BC-D365-SAAS-APOS | G82: =HLOOKUP($C$9,'Price List'!$B$1:$G$132,ROW('Price List'!B69),FALSE) -> 12 | J82: =+B82*G82 -> 0
C83: =" "&IF(ISTEXT('Price List'!B107),'Price List'!B107,"") ->  | D83: =IF('Price List'!#REF!,'Price List'!#REF!,"") ->  | E83: ='Price List'!C107 -> 0 | G83: =HLOOKUP($C$9,'Price List'!$B$1:$G$132,ROW('Price List'!B107),FALSE) -> 0 | J83: 0
C84: =" "&IF(ISTEXT('Price List'!B108),'Price List'!B108,"") ->  | D84: =IF('Price List'!#REF!,'Price List'!#REF!,"") ->  | E84: ='Price List'!C108 -> 0 | G84: =HLOOKUP($C$9,'Price List'!$B$1:$G$132,ROW('Price List'!B108),FALSE) -> 500 | J84: 0
C85: =" "&IF(ISTEXT('Price List'!B109),'Price List'!B109,"") ->  | D85: =IF('Price List'!#REF!,'Price List'!#REF!,"") ->  | E85: ='Price List'!C109 -> 0 | G85: =HLOOKUP($C$9,'Price List'!$B$1:$G$132,ROW('Price List'!B109),FALSE) -> 40 | J85: 0
C86: =" "&IF(ISTEXT('Price List'!B110),'Price List'!B110,"") ->  | D86: =IF('Price List'!#REF!,'Price List'!#REF!,"") ->  | E86: ='Price List'!C110 -> 0 | G86: =HLOOKUP($C$9,'Price List'!$B$1:$G$132,ROW('Price List'!B110),FALSE) -> 0 | J86: 0
C87: =" "&IF(ISTEXT('Price List'!B111),'Price List'!B111,"") ->  | D87: =IF('Price List'!#REF!,'Price List'!#REF!,"") ->  | E87: ='Price List'!C111 -> 0 | G87: =HLOOKUP($C$9,'Price List'!$B$1:$G$132,ROW('Price List'!B111),FALSE) -> 0 | J87: 0
C88: =" "&IF(ISTEXT('Price List'!B112),'Price List'!B112,"") ->  | D88: =IF('Price List'!#REF!,'Price List'!#REF!,"") ->  | E88: ='Price List'!C112 -> 0 | G88: =HLOOKUP($C$9,'Price List'!$B$1:$G$132,ROW('Price List'!B112),FALSE) -> 0 | J88: 0
C89: =" "&IF(ISTEXT('Price List'!B113),'Price List'!B113,"") ->  | D89: =IF('Price List'!#REF!,'Price List'!#REF!,"") ->  | E89: ='Price List'!C113 -> 0 | G89: =HLOOKUP($C$9,'Price List'!$B$1:$G$132,ROW('Price List'!B113),FALSE) -> 0 | J89: 0
C90: =" "&IF(ISTEXT('Price List'!B114),'Price List'!B114,"") ->  | D90: =IF('Price List'!#REF!,'Price List'!#REF!,"") ->  | E90: ='Price List'!C114 -> 0 | G90: =HLOOKUP($C$9,'Price List'!$B$1:$G$132,ROW('Price List'!B114),FALSE) -> 0 | J90: 0
C91: =" "&IF(ISTEXT('Price List'!B115),'Price List'!B115,"") ->  | D91: =IF('Price List'!#REF!,'Price List'!#REF!,"") ->  | E91: ='Price List'!C115 -> 0 | G91: =HLOOKUP($C$9,'Price List'!$B$1:$G$132,ROW('Price List'!B115),FALSE) -> 0 | J91: 0
C92: =" "&IF(ISTEXT('Price List'!B116),'Price List'!B116,"") ->  | D92: =IF('Price List'!#REF!,'Price List'!#REF!,"") ->  | E92: ='Price List'!C116 -> 0 | G92: =HLOOKUP($C$9,'Price List'!$B$1:$G$132,ROW('Price List'!B116),FALSE) -> 0 | J92: 0
C93: =" "&IF(ISTEXT('Price List'!B117),'Price List'!B117,"") ->  | D93: =IF('Price List'!#REF!,'Price List'!#REF!,"") ->  | E93: ='Price List'!C117 -> 0 | G93: =HLOOKUP($C$9,'Price List'!$B$1:$G$132,ROW('Price List'!B117),FALSE) -> 0 | J93: 0
C94: =" "&IF(ISTEXT('Price List'!B118),'Price List'!B118,"") ->  | D94: =IF('Price List'!#REF!,'Price List'!#REF!,"") ->  | E94: ='Price List'!C118 -> 0 | G94: =HLOOKUP($C$9,'Price List'!$B$1:$G$132,ROW('Price List'!B118),FALSE) -> 0 | J94: 0
I95: Total Solution Cost (TSC) | J95: =SUM(J37:J63,J65:J79) -> 0
B96: This sheet is intended for general information purposes only, and is provided AS IS. Any risk arising from the use of the information shall rest with the recipient and nothing herein shall be construed as constituting any kind of warranty or representation, express, implied or statutory. Users are responsible for information that is input using the pricing calculator embedded in this pricelist. LS Retail does not warrant or make any representations regarding the use, validity or accuracy of this pricelist and the result of the calculations.
B97: Please find information about ongoing promos on our Partner Portal
B98: Click here for more details about products in the Price List
B99: Information on country availability can be found on LS Retail Portal
B101: This document is intended for general information purposes only, and we have taken due care in its preparation. All embedded functionality used to facilitate price calculations is provided AS IS. Any risk arising from the use of the information shall rest with the recipient and nothing herein shall be construed as constituting any kind of warranty or representation, express, implied or statutory. Users are responsible for information that is input using the pricing calculator embedded in the offline pricelist. Under certain circumstances the figures resulting from the applied pricing calculations embedded in the price list, which are shown for your convenience in this pricelist, may differ from those reflected in the Order Summary Page in Order Central. In these scenarios, the figures shown in the Order Summary Page will control.
B103: For information on the availability of EFT connections for the mobile and the stationary LS Central Points of Sale, contact licenses@lsretail.com

Sheet Change Log (hidden)
A1: Price List Change History:
B3: Date | C3: Affected Countries | D3: Type of Change | E3: Summary of Change
B4: 2024-03-01 | C4: Worldwide | D4: Modules | E4: Added LS Central for pharmacies - W1 localization only, without the country integration
B5: 2023-11-15 | C5: Worldwide | D5: Prerequisites | E5: The restriction to order only one category of store has been lifted. Customers now have the flexibility to mix purchases from both online and offline stores, provided that the total quantity aligns with the actual number of customer stores.
B6: 2023-10-01 | C6: Worldwide | D6: Modules | E6: Added Self Checkout Connectore Device and Forecourt
B7: 2023-09-01 | C7: AUD, NZD and CAD | D7: Price Increase | E7: SaaS license price adjustments for local currencies (lsretail.com)
B8: 2023-04-01 | C8: EU and GB | D8: Price Increase | E8: Following the Local Pricing update announcement from Microsoft
B9: 2023-04-01 | C9: Worldwide | D9: Changes | E9: New module Analytics added and Activity name changed to Bookings
B10: 2023-01-01 | C10: Worldwide | D10: Changes | E10: Monthly and Yearly terms combined into 1 sheet

Sheet FactorOld (hidden)
A1: =' Monthly LS Central on BC SaaS'!C4 -> United States | B1: =VLOOKUP($A1,$A4:$J241,2) -> United States | C1: =VLOOKUP($A1,$A4:$J241,3) -> NAOM | D1: =VLOOKUP($A1,$A4:$J241,4) -> 1 | E1: =VLOOKUP($A1,$A4:$J241,5) -> USD | F1: =IF(K1,E1,VLOOKUP($A1,$A4:$J241,6)) -> USD | G1: =VLOOKUP($A1,$A4:$J241,7) -> 1200 | H1: =VLOOKUP($A1,$A4:$J241,8) -> 1200 | I1: =IF(K1,D1,VLOOKUP($A1,$A4:$J241,9)) -> 1 | J1: =VLOOKUP($A1,$A4:$J241,10) -> 0 | K1: =IF(N1="EUR",TRUE,FALSE) -> FALSE | L1: TRUE | M1: =IF(COUNTIF(Lists!H3:H6,VLOOKUP($A1,$A4:$J242,6))=1,VLOOKUP($A1,$A4:$J242,6),"") ->  | P1: =' Monthly LS Central on BC SaaS'!C10 -> USD | Q1: =VLOOKUP(P1,P3:Q6,2,FALSE) -> 1 | R1: =+' Monthly LS Central on BC SaaS'!C10 -> USD | S1: =VLOOKUP(R1,R3:S6,2,FALSE) -> 1
M2: =IF(COUNTIF(Lists!H3:H6,VLOOKUP($A1,$A4:$J242,6))=1,E1,"") -> 
A3: Country | B3: LS Retail Region | C3: Microsoft region | D3: Factor vegna mism gjaldmiðla | E3: Currencey vegna mis gjaldmiðla | F3: Currency | G3: USD verð | H3: Landa verð | I3: Factor Store | P3: USD | Q3: 1 | R3: USD | S3: 1
A4: Afghanistan | B4: Central Asia | C4: EMEA II | D4: =1200/1200 -> 1 | E4: USD | F4: USD | G4: 1200 | H4: 1200 | I4: =H4/G4 -> 1 | P4: CAD | Q4: =+Q12/Q11 -> 1.279591837 | R4: CAD | S4: =+Q4 -> 1.279591837
A5: Albania | B5: Eastern Europe | C5: EMEA II | D5: =1200/1200 -> 1 | E5: USD | F5: USD | G5: 1200 | H5: 1200 | I5: 1 | P5: EUR | Q5: =+Q13/Q11 -> 0.8432653061 | R5: EUR | S5: =+Q5 -> 0.8432653061
A6: Algeria | B6: Africa | C6: EMEA II | D6: =1200/1200 -> 1 | E6: USD | F6: USD | G6: 1200 | H6: 1200 | I6: 1 | P6: GBP | Q6: =+Q14/Q11 -> 0.7540816327 | R6: GBP | S6: =+Q6 -> 0.7540816327
A7: American Samoa | B7: APOC United States | C7: APAC I | D7: =1200/1200 -> 1 | E7: USD | F7: USD | G7: 1200 | H7: 1200 | I7: 1
A8: Andorra | B8: Eurozone | C8: EMEA I | D8: =900/1200 -> 0.75 | E8: EUR | F8: EUR | G8: 1200 | H8: 900 | I8: 0.75
A9: Angola | B9: Africa | C9: EMEA II | D9: =1200/1200 -> 1 | E9: USD | F9: USD | G9: 1200 | H9: 1200 | I9: 1 | V9: Monthly | AB9: yearly
A10: Anguilla | B10: Latam Caribbean | C10: LATAM I | D10: =966/1200 -> 0.805 | E10: USD | F10: USD | G10: 1200 | H10: 966 | I10: 0.805 | N10: list price | Q10: Essential | R10: Premium | S10: Team member | T10: Device | W10: USD | X10: CAD | Y10: EUR | Z10: GBP | AC10: USD | AD10: CAD | AE10: EUR | AF10: GBP
A11: Antarctica | B11: Rest of Latam | C11: LATAM I | D11: =966/1200 -> 0.805 | E11: USD | F11: USD | G11: 1200 | H11: 966 | I11: 0.805 | P11: USD | Q11: 49 | R11: 70 | S11: 5.6 | T11: 28 | V11: ess | W11: 49 | X11: 62.7 | Y11: =41.32*1.11 -> 45.8652 | Z11: 37 | AB11: ess | AC11: =W11*12 -> 588 | AD11: =X11*12 -> 752.4 | AE11: 550.3824 | AF11: 444
A12: Antigua and Barbuda | B12: Latam Caribbean | C12: LATAM I | D12: =966/1200 -> 0.805 | E12: USD | F12: USD | G12: 1200 | H12: 966 | I12: 0.805 | P12: CAD | Q12: 62.7 | R12: 89.6 | S12: 7.2 | T12: 35.8 | V12: p | W12: 70 | X12: 89.6 | Y12: =59.03*1.11 -> 65.5233 | Z12: 52.78 | AB12: p | AC12: =W12*12 -> 840 | AD12: =X12*12 -> 1075.2 | AE12: =Y12*12 -> 786.2796 | AF12: =Z12*12 -> 633.36
A13: Argentina | B13: Rest of Latam | C13: LATAM I | D13: =966/1200 -> 0.805 | E13: USD | F13: USD | G13: 1200 | H13: 966 | I13: 0.805 | P13: EUR | Q13: 41.32 | R13: 59.03 | S13: 4.73 | T13: 23.6 | V13: tm | W13: 5.6 | X13: 7.2 | Y13: =4.73*1.11 -> 5.2503 | Z13: 4.22 | AB13: tm | AC13: 67.2 | AD13: 86.4 | AE13: 63.0036 | AF13: 50.64
A14: Armenia | B14: Eastern Europe | C14: EMEA II | D14: =1200/1200 -> 1 | E14: USD | F14: USD | G14: 1200 | H14: 1200 | I14: 1 | P14: GBP | Q14: 36.95 | R14: 52.78 | S14: 4.22 | T14: 21.1 | V14: device | W14: 28 | X14: 35.8 | Y14: =23.6*1.11 -> 26.196 | AB14: device | AC14: 336 | AD14: 429.6 | AE14: 314.352
A15: Aruba | B15: Latam Caribbean | C15: LATAM I | D15: =966/1200 -> 0.805 | E15: USD | F15: USD | G15: 1200 | H15: 966 | I15: 0.805
A16: Australia | B16: Australia | C16: APAC I | D16: =1200/1200 -> 1 | E16: AUD | F16: AUD | G16: 1200 | H16: 1200 | I16: 1 | N16: factor | P16: CAD | Q16: =+Q12/$Q$11 -> 1.279591837 | R16: =+R12/$R$11 -> 1.28 | S16: =+S12/$S$11 -> 1.285714286 | T16: =+T12/T11 -> 1.278571429 | V16: ess | W16: 1 | X16: 1.215918367 | Y16: 0.8432653061 | Z16: 0.7540816327 | AB16: ess | AC16: =W22*12 -> 840 | AD16: 1021.2 | AE16: 785.88 | AF16: 633.6
A17: Austria | B17: Eurozone | C17: EMEA I | D17: =900/1200 -> 0.75 | E17: EUR | F17: EUR | G17: 1200 | H17: 900 | I17: 0.75 | P17: EUR | Q17: =+Q13/$Q$11 -> 0.8432653061 | R17: =+R13/$R$11 -> 0.8432857143 | S17: =+S13/$S$11 -> 0.8446428571 | V17: p | W17: 1 | X17: 1.215857143 | Y17: 0.8432857143 | Z17: 0.754 | AB17: p | AC17: 1200 | AD17: 1459.2 | AE17: 1122.876 | AF17: 904.8
A18: Azerbaijan | B18: Central Asia | C18: EMEA II | D18: =1200/1200 -> 1 | E18: USD | F18: USD | G18: 1200 | H18: 1200 | I18: 1 | P18: GBP | Q18: 0.7540816327 | R18: 0.754 | S18: 0.7535714286 | V18: tm | W18: 1 | X18: 1.216071429 | Y18: 0.8446428571 | Z18: 0.7535714286 | AB18: tm | AC18: 96 | AD18: 116.4 | AE18: 90.576 | AF18: 72
A19: Bahamas, The | B19: Latam Caribbean | C19: LATAM I | D19: =966/1200 -> 0.805 | E19: USD | F19: USD | G19: 1200 | H19: 966 | I19: 0.805 | V19: device | W19: 1 | X19: 1.216 | AB19: device | AC19: =W25*12 -> 180 | AD19: =X25*12 -> 218.88
A20: Bahrain | B20: Middle East | C20: EMEA II | D20: =1200/1200 -> 1 | E20: USD | F20: USD | G20: 1200 | H20: 1200 | I20: 1 | Q20: 1.215918367 | R20: 1.215857143 | S20: 1.216071429 | T20: 1.216 | V20: average factor | W20: =+AVERAGE(W16:W19) -> 1 | X20: =+AVERAGE(X16:X19) -> 1.215961735 | Y20: 0.8437312925 | Z20: 0.7538843537
A21: Bangladesh | B21: South East Asia | C21: APAC II | D21: =1200/1200 -> 1 | E21: USD | F21: USD | G21: 1200 | H21: 1200 | I21: 1 | Q21: 0.8432653061 | R21: 0.8432857143 | S21: 0.8446428571
A22: Barbados | B22: Latam Caribbean | C22: LATAM I | D22: =966/1200 -> 0.805 | E22: USD | F22: USD | G22: 1200 | H22: 966 | I22: 0.805 | Q22: 0.7540816327 | R22: 0.754 | S22: 0.7535714286 | V22: ess | W22: 70 | X22: 85.1 | Y22: =59*1.11 -> 65.49 | Z22: 52.8
A23: Belarus | B23: Eastern Europe | C23: EMEA II | D23: =1200/1200 -> 1 | E23: USD | F23: USD | G23: 1200 | H23: 1200 | I23: 1 | V23: p | W23: 100 | X23: 121.6 | Y23: =84.3*1.11 -> 93.573 | Z23: 75.4
A24: Belgium | B24: Eurozone | C24: EMEA I | D24: =900/1200 -> 0.75 | E24: EUR | F24: EUR | G24: 1200 | H24: 900 | I24: 0.75 | V24: tm | W24: 8 | X24: 9.7 | Y24: =6.8*1.11 -> 7.548 | Z24: 6
A25: Belize | B25: Rest of Latam | C25: LATAM I | D25: =966/1200 -> 0.805 | E25: USD | F25: USD | G25: 1200 | H25: 966 | I25: 0.805 | V25: device | W25: 15 | X25: 18.24
A26: Benin | B26: Africa | C26: EMEA II | D26: =1200/1200 -> 1 | E26: USD | F26: USD | G26: 1200 | H26: 1200 | I26: 1
A27: Bermuda | B27: Latam PR/BM/CI/VI | C27: LATAM II | D27: =1200/1200 -> 1 | E27: USD | F27: USD | G27: 1200 | H27: 966 | I27: 0.805 | N27: erp price | Q27: Essential | R27: Premium | S27: Team member | T27: Device
A28: Bhutan | B28: South East Asia | C28: APAC II | D28: =1200/1200 -> 1 | E28: USD | F28: USD | G28: 1200 | H28: 1200 | I28: 1 | P28: USD | Q28: 70 | R28: 100 | S28: 8 | T28: 40
A29: Bolivia | B29: Rest of Latam | C29: LATAM I | D29: =966/1200 -> 0.805 | E29: USD | F29: USD | G29: 1200 | H29: 966 | I29: 0.805 | P29: CAD | Q29: 89.6 | R29: 128 | S29: 10.2 | T29: 51.2
A30: Bosnia and Herzegovina | B30: Eastern Europe | C30: EMEA II | D30: =1200/1200 -> 1 | E30: USD | F30: USD | G30: 1200 | H30: 1200 | I30: 1 | P30: EUR | Q30: 59 | R30: 84.3 | S30: 6.7 | T30: 33.7
A31: Botswana | B31: Africa | C31: EMEA II | D31: =1200/1200 -> 1 | E31: USD | F31: USD | G31: 1200 | H31: 1200 | I31: 1 | P31: GBP | Q31: 52.8 | R31: 75.4 | S31: 6 | T31: 30.2
A32: Bouvet Island | B32: Eurozone | C32: EMEA I | D32: =900/1200 -> 0.75 | E32: EUR | F32: NOK | G32: 1200 | H32: 8562 | I32: 7.135
A33: Brazil | B33: Rest of Latam | C33: LATAM I | D33: =966/1200 -> 0.805 | E33: USD | F33: USD | G33: 1200 | H33: 966 | I33: 0.805
A34: British Indian Ocean Territory | B34: South East Asia | C34: APAC II | D34: =1200/1200 -> 1 | E34: USD | F34: USD | G34: 1200 | H34: 1200 | I34: 1
A35: Brunei | B35: South East Asia | C35: APAC II | D35: =1200/1200 -> 1 | E35: USD | F35: USD | G35: 1200 | H35: 1200 | I35: 1
A36: Bulgaria | B36: Eurozone | C36: EMEA I | D36: =900/1200 -> 0.75 | E36: EUR | F36: EUR | G36: 1200 | H36: 900 | I36: 0.75
A37: Burkina Faso | B37: Africa | C37: EMEA II | D37: =1200/1200 -> 1 | E37: USD | F37: USD | G37: 1200 | H37: 1200 | I37: 1
A38: Burundi | B38: Africa | C38: EMEA II | D38: 1 | E38: USD | F38: USD | G38: 1200 | H38: 1200 | I38: 1
A39: Cambodia | B39: South East Asia | C39: APAC II | D39: 1 | E39: USD | F39: USD | G39: 1200 | H39: 1200 | I39: 1
A40: Cameroon | B40: Africa | C40: EMEA II | D40: 1 | E40: USD | F40: USD | G40: 1200 | H40: 1200 | I40: 1
A41: Canada | B41: Canada | C41: NAOM | D41: 1 | E41: CAD | F41: CAD | G41: 1200 | H41: 1200 | I41: 1.204081633
A42: Cape Verde | B42: Africa | C42: EMEA II | D42: 1 | E42: USD | F42: USD | G42: 1200 | H42: 1200 | I42: 1
A43: Cayman Islands | B43: Latam PR/BM/CI/VI | C43: LATAM II | D43: 1 | E43: USD | F43: USD | G43: 1200 | H43: 966 | I43: 0.805
A44: Central African Republic | B44: Africa | C44: EMEA II | D44: 1 | E44: USD | F44: USD | G44: 1200 | H44: 1200 | I44: 1
A45: Chad | B45: Africa | C45: EMEA II | D45: 1 | E45: USD | F45: USD | G45: 1200 | H45: 1200 | I45: 1
A46: Chile | B46: Rest of Latam | C46: LATAM I | D46: =966/1200 -> 0.805 | E46: USD | F46: USD | G46: 1200 | H46: 966 | I46: 0.805
A47: China | B47: China | C47: China | D47: =7800/1200 -> 6.5 | E47: RMB | F47: RMB | G47: 1200 | H47: 7800 | I47: 6.5
A48: Christmas Island | B48: Australia | C48: APAC I | D48: =1200/1200 -> 1 | E48: AUD | F48: AUD | G48: 1200 | H48: 1200 | I48: 1
A49: Cocos (Keeling) Islands | B49: Australia | C49: APAC I | D49: =1200/1200 -> 1 | E49: AUD | F49: AUD | G49: 1200 | H49: 1200 | I49: 1
A50: Colombia | B50: Rest of Latam | C50: LATAM I | D50: =966/1200 -> 0.805 | E50: USD | F50: USD | G50: 1200 | H50: 966 | I50: 0.805
A51: Comoros | B51: Africa | C51: EMEA II | D51: =1200/1200 -> 1 | E51: USD | F51: USD | G51: 1200 | H51: 1200 | I51: 1
A52: Congo | B52: Africa | C52: EMEA II | D52: =1200/1200 -> 1 | E52: USD | F52: USD | G52: 1200 | H52: 1200 | I52: 1
A53: Congo (DRC) | B53: Africa | C53: EMEA II | D53: =1200/1200 -> 1 | E53: USD | F53: USD | G53: 1200 | H53: 1200 | I53: 1
A54: Cook Islands | B54: New Zealand | C54: APAC II | D54: =1560/1200 -> 1.3 | E54: NZD | F54: NZD | G54: 1200 | H54: 1560 | I54: 1.3
A55: Costa Rica | B55: Rest of Latam | C55: LATAM I | D55: =966/1200 -> 0.805 | E55: USD | F55: USD | G55: 1200 | H55: 966 | I55: 0.805
A56: Côte d'Ivoire | B56: Africa | C56: EMEA II | D56: =1200/1200 -> 1 | E56: USD | F56: USD | G56: 1200 | H56: 1200 | I56: 1
A57: Croatia | B57: Eurozone | C57: EMEA I | D57: =900/1200 -> 0.75 | E57: EUR | F57: EUR | G57: 1200 | H57: 900 | I57: 0.75
A58: Cyprus | B58: Eurozone | C58: EMEA I | D58: =900/1200 -> 0.75 | E58: EUR | F58: EUR | G58: 1200 | H58: 900 | I58: 0.75
A59: Czech Republic | B59: Eurozone | C59: EMEA I | D59: =900/1200 -> 0.75 | E59: EUR | F59: EUR | G59: 1200 | H59: 900 | I59: 0.75
A60: Denmark | B60: Eurozone | C60: EMEA I | D60: =900/1200 -> 0.75 | E60: EUR | F60: DKK | G60: 1200 | H60: 6700 | I60: 5.583333333
A61: Djibouti | B61: Africa | C61: EMEA II | D61: =1200/1200 -> 1 | E61: USD | F61: USD | G61: 1200 | H61: 1200 | I61: 1
A62: Dominica | B62: Latam Caribbean | C62: LATAM I | D62: =966/1200 -> 0.805 | E62: USD | F62: USD | G62: 1200 | H62: 966 | I62: 0.805
A63: Dominican Republic | B63: Rest of Latam | C63: LATAM I | D63: =966/1200 -> 0.805 | E63: USD | F63: USD | G63: 1200 | H63: 966 | I63: 0.805
A64: Ecuador | C64: LATAM I | D64: =966/1200 -> 0.805 | E64: USD | F64: USD | G64: 1200 | H64: 966 | I64: 0.805
A65: Egypt | B65: Africa | C65: EMEA II | D65: =1200/1200 -> 1 | E65: USD | F65: USD | G65: 1200 | H65: 1200 | I65: 1
A66: El Salvador | B66: Rest of Latam | C66: LATAM I | D66: =966/1200 -> 0.805 | E66: USD | F66: USD | G66: 1200 | H66: 966 | I66: 0.805
A67: Equatorial Guinea | B67: Africa | C67: EMEA II | D67: =1200/1200 -> 1 | E67: USD | F67: USD | G67: 1200 | H67: 1200 | I67: 1
A68: Eritrea | B68: Africa | C68: EMEA II | D68: =1200/1200 -> 1 | E68: USD | F68: USD | G68: 1200 | H68: 1200 | I68: =H68/G68 -> 1
A69: Estonia | B69: Eurozone | C69: EMEA I | D69: =900/1200 -> 0.75 | E69: EUR | F69: EUR | G69: 1200 | H69: 900 | I69: 0.75
A70: Ethiopia | B70: Africa | C70: EMEA II | D70: =1200/1200 -> 1 | E70: USD | F70: USD | G70: 1200 | H70: 1200 | I70: 1
A71: Falkland Islands (Islas Malvinas) | B71: Rest of Latam | C71: LATAM I | D71: =966/1200 -> 0.805 | E71: USD | F71: USD | G71: 1200 | H71: 966 | I71: 0.805
A72: Faroe Islands | B72: Eurozone | C72: EMEA I | D72: =900/1200 -> 0.75 | E72: EUR | F72: DKK | G72: 1200 | H72: 6700 | I72: 5.583333333
A73: Fiji Islands | B73: South East Asia | C73: APAC II | D73: =1200/1200 -> 1 | E73: USD | F73: USD | G73: 1200 | H73: 1200 | I73: 1
A74: Finland | B74: Eurozone | C74: EMEA I | D74: =900/1200 -> 0.75 | E74: EUR | F74: EUR | G74: 1200 | H74: 900 | I74: 0.75
A75: France | B75: Eurozone | C75: EMEA I | D75: =900/1200 -> 0.75 | E75: EUR | F75: EUR | G75: 1200 | H75: 900 | I75: 0.75
A76: French Guiana | B76: Eurozone | C76: EMEA I | D76: =900/1200 -> 0.75 | E76: EUR | F76: EUR | G76: 1200 | H76: 900 | I76: 0.75
A77: French Polynesia | B77: Africa | C77: EMEA II | D77: =1200/1200 -> 1 | E77: USD | F77: USD | G77: 1200 | H77: 1200 | I77: 1
A78: French Southern and Antarctic Lands | B78: YTDB | C78: EMEA I | D78: =900/1200 -> 0.75 | E78: EUR | F78: EUR | G78: 1200 | H78: 900 | I78: 0.75
A79: Gabon | B79: Africa | C79: EMEA II | D79: =1200/1200 -> 1 | E79: USD | F79: USD | G79: 1200 | H79: 1200 | I79: 1
A80: Gambia, The | B80: Africa | C80: EMEA II | D80: =1200/1200 -> 1 | E80: USD | F80: USD | G80: 1200 | H80: 1200 | I80: 1
A81: Gaza Strip | B81: N/A | C81: EMEA II | D81: =1200/1200 -> 1 | E81: USD | F81: USD | G81: 1200 | H81: 1200 | I81: 1
A82: Georgia | B82: Eastern Europe | C82: EMEA II | D82: =1200/1200 -> 1 | E82: USD | F82: USD | G82: 1200 | H82: 1200 | I82: 1
A83: Germany | B83: Eurozone | C83: EMEA I | D83: =900/1200 -> 0.75 | E83: EUR | F83: EUR | G83: 1200 | H83: 900 | I83: 0.75
A84: Ghana | B84: Africa | C84: EMEA II | D84: =1200/1200 -> 1 | E84: USD | F84: USD | G84: 1200 | H84: 1200 | I84: 1
A85: Gibraltar | B85: Eurozone | C85: EMEA I | D85: =900/1200 -> 0.75 | E85: EUR | F85: EUR | G85: 1200 | H85: 900 | I85: 0.75
A86: Greece | B86: Eurozone | C86: EMEA I | D86: =900/1200 -> 0.75 | E86: EUR | F86: EUR | G86: 1200 | H86: 900 | I86: 0.75
A87: Greenland | B87: Eurozone | C87: EMEA I | D87: =900/1200 -> 0.75 | E87: EUR | F87: DKK | G87: 1200 | H87: 6700 | I87: 5.583333333
A88: Grenada | B88: Latam Caribbean | C88: LATAM I | D88: =966/1200 -> 0.805 | E88: USD | F88: USD | G88: 1200 | H88: 966 | I88: 0.805
A89: Guadeloupe | B89: Eurozone | C89: EMEA I | D89: =900/1200 -> 0.75 | E89: EUR | F89: EUR | G89: 1200 | H89: 900 | I89: 0.75
A90: Guam | B90: APOC United States | C90: APAC I | D90: =1200/1200 -> 1 | E90: USD | F90: USD | G90: 1200 | H90: 1200 | I90: 1
A91: Guatemala | B91: Rest of Latam | C91: LATAM I | D91: =966/1200 -> 0.805 | E91: USD | F91: USD | G91: 1200 | H91: 966 | I91: 0.805
A92: Guinea | B92: Africa | C92: EMEA II | D92: =1200/1200 -> 1 | E92: USD | F92: USD | G92: 1200 | H92: 1200 | I92: 1
A93: Guinea-Bissau | B93: Africa | C93: EMEA II | D93: =1200/1200 -> 1 | E93: USD | F93: USD | G93: 1200 | H93: 1200 | I93: 1
A94: Guyana | B94: Latam Caribbean | C94: LATAM I | D94: =966/1200 -> 0.805 | E94: USD | F94: USD | G94: 1200 | H94: 966 | I94: 0.805
A95: Haiti | B95: Latam Caribbean | C95: LATAM I | D95: =966/1200 -> 0.805 | E95: USD | F95: USD | G95: 1200 | H95: 966 | I95: 0.805
A96: Heard Island and McDonald Islands | B96: Australia | C96: APAC I | D96: =1200/1200 -> 1 | E96: AUD | F96: AUD | G96: 1200 | H96: 1200 | I96: 1
A97: Honduras | B97: Rest of Latam | C97: LATAM I | D97: =966/1200 -> 0.805 | E97: USD | F97: USD | G97: 1200 | H97: 966 | I97: 0.805
A98: Hong Kong SAR | B98: South East Asia | C98: APAC II | D98: =1200/1200 -> 1 | E98: USD | F98: USD | G98: 1200 | H98: 1200 | I98: 1
A99: Hungary | B99: Eurozone | C99: EMEA I | D99: =900/1200 -> 0.75 | E99: EUR | F99: EUR | G99: 1200 | H99: 900 | I99: 0.75
A100: Iceland | B100: Eurozone | C100: EMEA I | D100: =900/1200 -> 0.75 | E100: EUR | F100: EUR | G100: 1200 | H100: 900 | I100: 0.75
A101: India | B101: India | C101: India | D101: =53988/1200 -> 44.99 | E101: INR | F101: INR | G101: 1200 | H101: 53988 | I101: 44.99
A102: Indonesia | B102: South East Asia | C102: APAC II | D102: =1200/1200 -> 1 | E102: USD | F102: USD | G102: 1200 | H102: 1200 | I102: 1
A103: Iran | B103: N/A | C103: EMEA II | D103: =1200/1200 -> 1 | E103: USD | F103: USD | G103: 1200 | H103: 1200 | I103: 1
A104: Iraq | B104: Middle East | C104: EMEA II | D104: =1200/1200 -> 1 | E104: USD | F104: USD | G104: 1200 | H104: 1200 | I104: 1
A105: Ireland | B105: Eurozone | C105: EMEA I | D105: =900/1200 -> 0.75 | E105: EUR | F105: EUR | G105: 1200 | H105: 900 | I105: 0.75
A106: Israel | B106: Middle East | C106: EMEA II | D106: =1200/1200 -> 1 | E106: USD | F106: USD | G106: 1200 | H106: 1200 | I106: 1
A107: Italy | B107: Eurozone | C107: EMEA I | D107: =900/1200 -> 0.75 | E107: EUR | F107: EUR | G107: 1200 | H107: 900 | I107: 0.75
A108: Jamaica | B108: Latam Caribbean | C108: LATAM I | D108: =966/1200 -> 0.805 | E108: USD | F108: USD | G108: 1200 | H108: 966 | I108: 0.805
A109: Jan Mayen | B109: Eurozone | C109: EMEA I | D109: =900/1200 -> 0.75 | E109: EUR | F109: EUR | G109: 1200 | H109: 900 | I109: 0.75
A110: Japan | B110: Japan | C110: Japan | D110: =99600/1200 -> 83 | E110: JPY | F110: JPY | G110: 1200 | H110: 99600 | I110: 83
A111: Jordan | B111: Middle East | C111: EMEA II | D111: =1200/1200 -> 1 | E111: USD | F111: USD | G111: 1200 | H111: 1200 | I111: 1
A112: Kazakhstan | B112: Central Asia | C112: EMEA II | D112: 1 | E112: USD | F112: USD | G112: 1200 | H112: 1200 | I112: 1
A113: Kenya | B113: Africa | C113: EMEA II | D113: 1 | E113: USD | F113: USD | G113: 1200 | H113: 1200 | I113: 1
A114: Kiribati | B114: Australia | C114: APAC I | D114: 1 | E114: AUD | F114: AUD | G114: 1200 | H114: 1200 | I114: 1
A115: Korea, South | B115: South East Asia | C115: APAC II | D115: 1 | E115: USD | F115: USD | G115: 1200 | H115: 1200 | I115: 1
A116: Kuwait | B116: Middle East | C116: EMEA II | D116: 1 | E116: USD | F116: USD | G116: 1200 | H116: 1200 | I116: 1
A117: Kyrgyzstan | B117: Central Asia | C117: EMEA II | D117: 1 | E117: USD | F117: USD | G117: 1200 | H117: 1200 | I117: 1
A118: Laos | B118: South East Asia | C118: APAC II | D118: 1 | E118: USD | F118: USD | G118: 1200 | H118: 1200 | I118: 1
A119: Latvia | B119: Eurozone | C119: EMEA I | D119: =900/1200 -> 0.75 | E119: EUR | F119: EUR | G119: 1200 | H119: 900 | I119: 0.75
A120: Lebanon | B120: Middle East | C120: EMEA II | D120: =1200/1200 -> 1 | E120: USD | F120: USD | G120: 1200 | H120: 1200 | I120: 1
A121: Lesotho | B121: Africa | C121: EMEA II | D121: =1200/1200 -> 1 | E121: USD | F121: USD | G121: 1200 | H121: 1200 | I121: 1
A122: Liberia | B122: Africa | C122: EMEA II | D122: =1200/1200 -> 1 | E122: USD | F122: USD | G122: 1200 | H122: 1200 | I122: 1
A123: Libya | B123: Africa | C123: EMEA II | D123: =1200/1200 -> 1 | E123: USD | F123: USD | G123: 1200 | H123: 1200 | I123: 1
A124: Liechtenstein | B124: Eurozone | C124: EMEA I | D124: =900/1200 -> 0.75 | E124: EUR | F124: CHF | G124: 1200 | H124: 978 | I124: 0.815
A125: Lithuania | B125: Eurozone | C125: EMEA I | D125: =900/1200 -> 0.75 | E125: EUR | F125: EUR | G125: 1200 | H125: 900 | I125: 0.75
A126: Luxembourg | B126: Eurozone | C126: EMEA I | D126: =900/1200 -> 0.75 | E126: EUR | F126: EUR | G126: 1200 | H126: 900 | I126: 0.75
A127: Macao SAR | B127: South East Asia | C127: APAC II | D127: =1200/1200 -> 1 | E127: USD | F127: USD | G127: 1200 | H127: 1200 | I127: 1
A128: Macedonia, FYROM | B128: Eastern Europe | C128: EMEA II | D128: 1 | E128: USD | F128: USD | G128: 1200 | H128: 1200 | I128: 1
A129: Madagascar | B129: Africa | C129: EMEA II | D129: 1 | E129: USD | F129: USD | G129: 1200 | H129: 1200 | I129: 1
A130: Malawi | B130: Africa | C130: EMEA II | D130: 1 | E130: USD | F130: USD | G130: 1200 | H130: 1200 | I130: 1
A131: Malaysia | B131: South East Asia | C131: APAC II | D131: 1 | E131: USD | F131: USD | G131: 1200 | H131: 1200 | I131: 1
A132: Maldives | B132: South East Asia | C132: APAC II | D132: 1 | E132: USD | F132: USD | G132: 1200 | H132: 1200 | I132: =H132/G132 -> 1
A133: Mali | B133: Africa | C133: EMEA II | D133: 1 | E133: USD | F133: USD | G133: 1200 | H133: 1200 | I133: 1
A134: Malta | B134: Eurozone | C134: EMEA I | D134: =900/1200 -> 0.75 | E134: EUR | F134: EUR | G134: 1200 | H134: 900 | I134: 0.75
A135: Marshall Islands | B135: APOC United States | C135: APAC I | D135: =1200/1200 -> 1 | E135: USD | F135: USD | G135: 1200 | H135: 1200 | I135: 1
A136: Martinique | B136: Eurozone | C136: EMEA I | D136: =900/1200 -> 0.75 | E136: EUR | F136: EUR | G136: 1200 | H136: 900 | I136: 0.75
A137: Mauritania | B137: Africa | C137: EMEA II | D137: =1200/1200 -> 1 | E137: USD | F137: USD | G137: 1200 | H137: 1200 | I137: 1
A138: Mauritius | B138: Africa | C138: EMEA II | D138: =1200/1200 -> 1 | E138: USD | F138: USD | G138: 1200 | H138: 1200 | I138: 1
A139: Mayotte | B139: Eurozone | C139: EMEA I | D139: =900/1200 -> 0.75 | E139: EUR | F139: EUR | G139: 1200 | H139: 900 | I139: 0.75
A140: Mexico | B140: Rest of Latam | C140: LATAM I | D140: =966/1200 -> 0.805 | E140: USD | F140: USD | G140: 1200 | H140: 966 | I140: 0.805
A141: Micronesia | B141: South East Asia | C141: APAC II | D141: =1200/1200 -> 1 | E141: USD | F141: USD | G141: 1200 | H141: 1200 | I141: 1
A142: Moldova | B142: Eastern Europe | C142: EMEA II | D142: =1200/1200 -> 1 | E142: USD | F142: USD | G142: 1200 | H142: 1200 | I142: 1
A143: Monaco | B143: Eurozone | C143: EMEA I | D143: =900/1200 -> 0.75 | E143: EUR | F143: EUR | G143: 1200 | H143: 900 | I143: 0.75
A144: Mongolia | B144: Central Asia | C144: EMEA II | D144: =1200/1200 -> 1 | E144: USD | F144: USD | G144: 1200 | H144: 1200 | I144: 1
A145: Montenegro | B145: Eastern Europe | C145: EMEA II | D145: =1200/1200 -> 1 | E145: USD | F145: USD | G145: 1200 | H145: 1200 | I145: 1
A146: Montserrat | B146: Latam Caribbean | C146: LATAM I | D146: =966/1200 -> 0.805 | E146: USD | F146: USD | G146: 1200 | H146: 966 | I146: 0.805
A147: Morocco | B147: Africa | C147: EMEA II | D147: =1200/1200 -> 1 | E147: USD | F147: USD | G147: 1200 | H147: 1200 | I147: 1
A148: Mozambique | B148: Africa | C148: EMEA II | D148: 1 | E148: USD | F148: USD | G148: 1200 | H148: 1200 | I148: 1
A149: Myanmar | B149: South East Asia | C149: APAC II | D149: 1 | E149: USD | F149: USD | G149: 1200 | H149: 1200 | I149: 1
A150: Namibia | B150: Africa | C150: EMEA II | D150: 1 | E150: USD | F150: USD | G150: 1200 | H150: 1200 | I150: 1
A151: Nauru | B151: Australia | C151: APAC I | D151: 1 | E151: AUD | F151: AUD | G151: 1200 | H151: 1200 | I151: 1
A152: Nepal | B152: South East Asia | C152: APAC II | D152: 1 | E152: USD | F152: USD | G152: 1200 | H152: 1200 | I152: 1
A153: Netherlands Antilles | B153: Latam Caribbean | C153: LATAM I | D153: =966/1200 -> 0.805 | E153: USD | F153: USD | G153: 1200 | H153: 966 | I153: 0.805
A154: Netherlands, The | B154: Eurozone | C154: EMEA I | D154: =900/1200 -> 0.75 | E154: EUR | F154: EUR | G154: 1200 | H154: 900 | I154: 0.75
A155: New Caledonia | B155: Africa | C155: EMEA II | D155: =1200/1200 -> 1 | E155: USD | F155: USD | G155: 1200 | H155: 1200 | I155: 1
A156: New Zealand | B156: New Zealand | C156: APAC II | D156: =1560/1200 -> 1.3 | E156: NZD | F156: NZD | G156: 1200 | H156: 1560 | I156: 1.3
A157: Nicaragua | B157: Rest of Latam | C157: LATAM I | D157: =966/1200 -> 0.805 | E157: USD | F157: USD | G157: 1200 | H157: 966 | I157: 0.805
A158: Niger | B158: Africa | C158: EMEA II | D158: =1200/1200 -> 1 | E158: USD | F158: USD | G158: 1200 | H158: 1200 | I158: 1
A159: Nigeria | B159: Africa | C159: EMEA II | D159: =1200/1200 -> 1 | E159: USD | F159: USD | G159: 1200 | H159: 1200 | I159: 1
A160: Niue | B160: New Zealand | C160: APAC II | D160: =1560/1200 -> 1.3 | E160: NZD | F160: NZD | G160: 1200 | H160: 1560 | I160: 1.3
A161: Norfolk Island | B161: Australia | C161: APAC I | D161: =1200/1200 -> 1 | E161: AUD | F161: AUD | G161: 1200 | H161: 1200 | I161: 1
A162: Northern Mariana Islands | B162: APOC United States | C162: APAC I | D162: =1200/1200 -> 1 | E162: USD | F162: USD | G162: 1200 | H162: 1200 | I162: 1
A163: Norway | B163: Eurozone | C163: EMEA I | D163: =900/1200 -> 0.75 | E163: EUR | F163: NOK | G163: 1200 | H163: 8562 | I163: 7.135
A164: Oman | B164: Middle East | C164: EMEA II | D164: =1200/1200 -> 1 | E164: USD | F164: USD | G164: 1200 | H164: 1200 | I164: 1
A165: Pakistan | B165: Central Asia | C165: EMEA II | D165: =1200/1200 -> 1 | E165: USD | F165: USD | G165: 1200 | H165: 1200 | I165: 1
A166: Palau | B166: South East Asia | C166: APAC II | D166: =1200/1200 -> 1 | E166: USD | F166: USD | G166: 1200 | H166: 1200 | I166: 1
A167: Panama | B167: Rest of Latam | C167: LATAM I | D167: =966/1200 -> 0.805 | E167: USD | F167: USD | G167: 1200 | H167: 966 | I167: 0.805
A168: Papua New Guinea | B168: South East Asia | C168: APAC II | D168: =1200/1200 -> 1 | E168: USD | F168: USD | G168: 1200 | H168: 1200 | I168: 1
A169: Paraguay | B169: Rest of Latam | C169: LATAM I | D169: =966/1200 -> 0.805 | E169: USD | F169: USD | G169: 1200 | H169: 966 | I169: 0.805
A170: Peru | B170: Rest of Latam | C170: LATAM I | D170: =966/1200 -> 0.805 | E170: USD | F170: USD | G170: 1200 | H170: 966 | I170: 0.805
A171: Philippines | B171: South East Asia | C171: APAC II | D171: =1200/1200 -> 1 | E171: USD | F171: USD | G171: 1200 | H171: 1200 | I171: 1
A172: Pitcairn Islands | B172: South East Asia | C172: APAC II | D172: =1200/1200 -> 1 | E172: USD | F172: USD | G172: 1200 | H172: 1200 | I172: 1
A173: Poland | B173: Eurozone | C173: EMEA I | D173: =900/1200 -> 0.75 | E173: EUR | F173: EUR | G173: 1200 | H173: 900 | I173: 0.75
A174: Portugal | B174: Eurozone | C174: EMEA I | D174: =900/1200 -> 0.75 | E174: EUR | F174: EUR | G174: 1200 | H174: 900 | I174: 0.75
A175: Puerto Rico | B175: Latam PR/BM/CI/VI | C175: LATAM II | D175: =1200/1200 -> 1 | E175: USD | F175: USD | G175: 1200 | H175: 1200 | I175: 1
A176: Qatar | B176: Middle East | C176: EMEA II | D176: =1200/1200 -> 1 | E176: USD | F176: USD | G176: 1200 | H176: 1200 | I176: 1
A177: Reunion | B177: Eurozone | C177: EMEA I | D177: =900/1200 -> 0.75 | E177: EUR | F177: EUR | G177: 1200 | H177: 900 | I177: 0.75
A178: Romania | B178: Eurozone | C178: EMEA I | D178: =900/1200 -> 0.75 | E178: EUR | F178: EUR | G178: 1200 | H178: 900 | I178: 0.75
A179: Russia | B179: Russia | C179: EMEA I | D179: =56385/1200 -> 46.9875 | E179: RUB | F179: RUB | G179: 1200 | H179: 56385 | I179: 46.9875
A180: Rwanda | B180: Africa | C180: EMEA II | D180: =1200/1200 -> 1 | E180: USD | F180: USD | G180: 1200 | H180: 1200 | I180: 1
A181: Saint Helena | B181: Eurozone | C181: EMEA I | D181: =900/1200 -> 0.75 | E181: EUR | F181: GBP | G181: 1200 | H181: 805 | I181: 0.6708333333
A182: Saint Kitts and Nevis | B182: Latam Caribbean | C182: LATAM I | D182: =966/1200 -> 0.805 | E182: USD | F182: USD | G182: 1200 | H182: 966 | I182: 0.805
A183: Saint Lucia | B183: Latam Caribbean | C183: LATAM I | D183: =966/1200 -> 0.805 | E183: USD | F183: USD | G183: 1200 | H183: 966 | I183: 0.805
A184: Saint Pierre and Miquelon | B184: Canada | C184: NAOM | D184: =1200/1200 -> 1 | E184: CAD | F184: CAD | G184: 1200 | H184: 1200 | I184: 1.204081633
A185: Saint Vincent and the Grenadines | B185: Latam Caribbean | C185: LATAM I | D185: =966/1200 -> 0.805 | E185: USD | F185: USD | G185: 1200 | H185: 966 | I185: 0.805
A186: Samoa | B186: South East Asia | C186: APAC II | D186: =1200/1200 -> 1 | E186: USD | F186: USD | G186: 1200 | H186: 1200 | I186: 1
A187: San Marino | B187: Eurozone | C187: EMEA I | D187: =900/1200 -> 0.75 | E187: EUR | F187: EUR | G187: 1200 | H187: 900 | I187: 0.75
A188: Sao Tomé and Príncipe | B188: Africa | C188: EMEA II | D188: =1200/1200 -> 1 | E188: USD | F188: USD | G188: 1200 | H188: 1200 | I188: 1
A189: Saudi Arabia | B189: Middle East | C189: EMEA II | D189: 1 | E189: USD | F189: USD | G189: 1200 | H189: 1200 | I189: 1
A190: Senegal | B190: Africa | C190: EMEA II | D190: 1 | E190: USD | F190: USD | G190: 1200 | H190: 1200 | I190: 1
A191: Serbia | B191: Eastern Europe | C191: EMEA II | D191: 1 | E191: USD | F191: USD | G191: 1200 | H191: 1200 | I191: 1
A192: Seychelles | B192: Africa | C192: EMEA II | D192: 1 | E192: USD | F192: USD | G192: 1200 | H192: 1200 | I192: 1
A193: Sierra Leone | B193: Africa | C193: EMEA II | D193: 1 | E193: USD | F193: USD | G193: 1200 | H193: 1200 | I193: 1
A194: Singapore | B194: South East Asia | C194: APAC II | D194: 1 | E194: USD | F194: USD | G194: 1200 | H194: 1200 | I194: 1
A195: Slovakia | B195: Eurozone | C195: EMEA I | D195: =900/1200 -> 0.75 | E195: EUR | F195: EUR | G195: 1200 | H195: 900 | I195: 0.75
A196: Slovenia | B196: Eurozone | C196: EMEA I | D196: =900/1200 -> 0.75 | E196: EUR | F196: EUR | G196: 1200 | H196: 900 | I196: =H196/G196 -> 0.75
A197: Solomon Islands | B197: South East Asia | C197: APAC II | D197: =1200/1200 -> 1 | E197: USD | F197: USD | G197: 1200 | H197: 1200 | I197: 1
A198: Somalia | B198: Africa | C198: EMEA II | D198: =1200/1200 -> 1 | E198: USD | F198: USD | G198: 1200 | H198: 1200 | I198: 1
A199: South Africa | B199: South Africa | C199: EMEA II | D199: =1200/1200 -> 1 | E199: USD | F199: USD | G199: 1200 | H199: 1200 | I199: 1
A200: South Georgia and the South Sandwich Islands | B200: Rest of Latam | C200: LATAM I | D200: =966/1200 -> 0.805 | E200: USD | F200: USD | G200: 1200 | H200: 966 | I200: 0.805
... 41 more rows

Sheet Factor (hidden)
A1: =' Monthly LS Central on BC SaaS'!C4 -> United States | B1: =VLOOKUP($A1,$A4:$J241,2) -> United States | C1: =VLOOKUP($A1,$A4:$J241,3) -> NAOM | D1: =VLOOKUP($A1,$A4:$J241,4) -> 1 | E1: =VLOOKUP($A1,$A4:$J241,5) -> USD | F1: =IF(K1,E1,VLOOKUP($A1,$A4:$J241,6)) -> USD | G1: =VLOOKUP($A1,$A4:$J241,7) -> 1200 | H1: =VLOOKUP($A1,$A4:$J241,8) -> 1200 | I1: =IF(K1,D1,VLOOKUP($A1,$A4:$J241,9)) -> 1 | J1: =VLOOKUP($A1,$A4:$J241,10) -> 0 | K1: =IF(N1="EUR",TRUE,FALSE) -> FALSE | L1: TRUE | M1: =IF(COUNTIF(Lists!H3:H6,VLOOKUP($A1,$A4:$J242,6))=1,VLOOKUP($A1,$A4:$J242,6),"") ->  | P1: =' Monthly LS Central on BC SaaS'!C10 -> USD | Q1: =VLOOKUP(P1,P3:Q6,2,FALSE) -> 1 | R1: =+' Monthly LS Central on BC SaaS'!C10 -> USD | S1: =VLOOKUP(R1,R3:S6,2,FALSE) -> 1
M2: =IF(COUNTIF(Lists!H3:H6,VLOOKUP($A1,$A4:$J242,6))=1,E1,"") ->  | P2: ='BTC2 Computation'!C9 -> USD | Q2: =VLOOKUP(P1,P3:Q6,2,FALSE) -> 1 | R2: ='LS Central on BC SaaS edit'!C5 -> USD | S2: =VLOOKUP(R1,R3:S6,2,FALSE) -> 1
A3: Country | B3: LS Retail Region | C3: Microsoft region | D3: Factor vegna mism gjaldmiðla | E3: Currencey vegna mis gjaldmiðla | F3: Currency | G3: USD verð | H3: Landa verð | I3: Factor Store | P3: USD | Q3: 1 | R3: USD | S3: 1
A4: Afghanistan | B4: Central Asia | C4: EMEA II | D4: =1200/1200 -> 1 | E4: USD | F4: USD | G4: 1200 | H4: 1200 | I4: =H4/G4 -> 1 | P4: CAD | Q4: =+Q12/Q11 -> 1.279591837 | R4: CAD | S4: =+Q4 -> 1.279591837
A5: Albania | B5: Eastern Europe | C5: EMEA II | D5: =1200/1200 -> 1 | E5: USD | F5: USD | G5: 1200 | H5: 1200 | I5: 1 | P5: EUR | Q5: =+Q13/Q11 -> 0.8432653061 | R5: EUR | S5: =+Q5 -> 0.8432653061
A6: Algeria | B6: Africa | C6: EMEA II | D6: =1200/1200 -> 1 | E6: USD | F6: USD | G6: 1200 | H6: 1200 | I6: 1 | P6: GBP | Q6: =+Q14/Q11 -> 0.7540816327 | R6: GBP | S6: =+Q6 -> 0.7540816327
A7: American Samoa | B7: APOC United States | C7: APAC I | D7: =1200/1200 -> 1 | E7: USD | F7: USD | G7: 1200 | H7: 1200 | I7: 1
A8: Andorra | B8: Eurozone | C8: EMEA I | D8: =900/1200 -> 0.75 | E8: EUR | F8: EUR | G8: 1200 | H8: 900 | I8: 0.75
A9: Angola | B9: Africa | C9: EMEA II | D9: =1200/1200 -> 1 | E9: USD | F9: USD | G9: 1200 | H9: 1200 | I9: 1
A10: Anguilla | B10: Latam Caribbean | C10: LATAM I | D10: =966/1200 -> 0.805 | E10: USD | F10: USD | G10: 1200 | H10: 966 | I10: 0.805 | N10: list price | Q10: Essential | R10: Premium | S10: Team member | T10: Device Cost | U10: Device Selling | X10: usd | Y10: cad | Z10: eur | AA10: gbp
A11: Antarctica | B11: Rest of Latam | C11: LATAM I | D11: =966/1200 -> 0.805 | E11: USD | F11: USD | G11: 1200 | H11: 966 | I11: 0.805 | P11: USD | Q11: 49 | R11: 70 | S11: 5.6 | T11: 28 | U11: 85 | W11: Monthly | X11: =U11 -> 85 | Y11: =U12 -> 108.8 | Z11: =U13 -> 72.25 | AA11: =U14 -> 63.75
A12: Antigua and Barbuda | B12: Latam Caribbean | C12: LATAM I | D12: =966/1200 -> 0.805 | E12: USD | F12: USD | G12: 1200 | H12: 966 | I12: 0.805 | P12: CAD | Q12: 62.7 | R12: 89.6 | S12: 7.2 | T12: 35.8 | U12: =AD16 -> 108.8 | W12: Yearly | X12: =X11*12 -> 1020 | Y12: =Y11*12 -> 1305.6 | Z12: 867 | AA12: 765
A13: Argentina | B13: Rest of Latam | C13: LATAM I | D13: =966/1200 -> 0.805 | E13: USD | F13: USD | G13: 1200 | H13: 966 | I13: 0.805 | P13: EUR | Q13: 41.32 | R13: 59.03 | S13: 4.73 | T13: 23.6 | U13: =AD17 -> 72.25
A14: Armenia | B14: Eastern Europe | C14: EMEA II | D14: =1200/1200 -> 1 | E14: USD | F14: USD | G14: 1200 | H14: 1200 | I14: 1 | P14: GBP | Q14: 36.95 | R14: 52.78 | S14: 4.22 | T14: 21.1 | U14: 63.75
A15: Aruba | B15: Latam Caribbean | C15: LATAM I | D15: =966/1200 -> 0.805 | E15: USD | F15: USD | G15: 1200 | H15: 966 | I15: 0.805 | AC15: Prices until July 1st. | AD15: Prices after July 1st.
A16: Australia | B16: Australia | C16: APAC I | D16: =1200/1200 -> 1 | E16: AUD | F16: AUD | G16: 1200 | H16: 1200 | I16: 1 | N16: factor | P16: CAD | Q16: =+Q12/$Q$11 -> 1.279591837 | R16: =+R12/$R$11 -> 1.28 | S16: =+S12/$S$11 -> 1.285714286 | T16: =R16 -> 1.28 | AB16: CAD | AC16: =79*T16 -> 101.12 | AD16: =85*T16 -> 108.8
A17: Austria | B17: Eurozone | C17: EMEA I | D17: =900/1200 -> 0.75 | E17: EUR | F17: EUR | G17: 1200 | H17: 900 | I17: 0.75 | P17: EUR | Q17: =+Q13/$Q$11 -> 0.8432653061 | R17: =+R13/$R$11 -> 0.8432857143 | S17: =+S13/$S$11 -> 0.8446428571 | T17: 0.85 | AB17: EUR | AC17: =79*T17 -> 67.15 | AD17: =85*T17 -> 72.25
A18: Azerbaijan | B18: Central Asia | C18: EMEA II | D18: =1200/1200 -> 1 | E18: USD | F18: USD | G18: 1200 | H18: 1200 | I18: 1 | P18: GBP | Q18: =+Q14/$Q$11 -> 0.7540816327 | R18: 0.754 | S18: 0.7535714286 | T18: 0.75 | W18: =119*0.75 -> 89.25 | AB18: GBP | AC18: =79*T18 -> 59.25 | AD18: =85*T18 -> 63.75
A19: Bahamas, The | B19: Latam Caribbean | C19: LATAM I | D19: =966/1200 -> 0.805 | E19: USD | F19: USD | G19: 1200 | H19: 966 | I19: 0.805
A20: Bahrain | B20: Middle East | C20: EMEA II | D20: =1200/1200 -> 1 | E20: USD | F20: USD | G20: 1200 | H20: 1200 | I20: 1 | Q20: 1.215918367 | R20: 1.215857143 | S20: 1.216071429 | T20: 1.216
A21: Bangladesh | B21: South East Asia | C21: APAC II | D21: =1200/1200 -> 1 | E21: USD | F21: USD | G21: 1200 | H21: 1200 | I21: 1 | Q21: 0.8432653061 | R21: 0.8432857143 | S21: 0.8446428571
A22: Barbados | B22: Latam Caribbean | C22: LATAM I | D22: =966/1200 -> 0.805 | E22: USD | F22: USD | G22: 1200 | H22: 966 | I22: 0.805 | Q22: 0.7540816327 | R22: 0.754 | S22: 0.7535714286
A23: Belarus | B23: Eastern Europe | C23: EMEA II | D23: =1200/1200 -> 1 | E23: USD | F23: USD | G23: 1200 | H23: 1200 | I23: 1
A24: Belgium | B24: Eurozone | C24: EMEA I | D24: =900/1200 -> 0.75 | E24: EUR | F24: EUR | G24: 1200 | H24: 900 | I24: 0.75
A25: Belize | B25: Rest of Latam | C25: LATAM I | D25: =966/1200 -> 0.805 | E25: USD | F25: USD | G25: 1200 | H25: 966 | I25: 0.805
A26: Benin | B26: Africa | C26: EMEA II | D26: =1200/1200 -> 1 | E26: USD | F26: USD | G26: 1200 | H26: 1200 | I26: 1
A27: Bermuda | B27: Latam PR/BM/CI/VI | C27: LATAM II | D27: =1200/1200 -> 1 | E27: USD | F27: USD | G27: 1200 | H27: 966 | I27: 0.805 | N27: erp price | Q27: Essential | R27: Premium | S27: Team member | T27: Device
A28: Bhutan | B28: South East Asia | C28: APAC II | D28: =1200/1200 -> 1 | E28: USD | F28: USD | G28: 1200 | H28: 1200 | I28: 1 | P28: USD | Q28: 70 | R28: 100 | S28: 8 | T28: 40
A29: Bolivia | B29: Rest of Latam | C29: LATAM I | D29: =966/1200 -> 0.805 | E29: USD | F29: USD | G29: 1200 | H29: 966 | I29: 0.805 | P29: CAD | Q29: 89.6 | R29: 128 | S29: 10.2 | T29: 51.2
A30: Bosnia and Herzegovina | B30: Eastern Europe | C30: EMEA II | D30: =1200/1200 -> 1 | E30: USD | F30: USD | G30: 1200 | H30: 1200 | I30: 1 | P30: EUR | Q30: 59 | R30: 84.3 | S30: 6.7 | T30: 33.7
A31: Botswana | B31: Africa | C31: EMEA II | D31: =1200/1200 -> 1 | E31: USD | F31: USD | G31: 1200 | H31: 1200 | I31: 1 | P31: GBP | Q31: 52.8 | R31: 75.4 | S31: 6 | T31: 30.2
A32: Bouvet Island | B32: Eurozone | C32: EMEA I | D32: =900/1200 -> 0.75 | E32: EUR | F32: NOK | G32: 1200 | H32: 8562 | I32: 7.135
A33: Brazil | B33: Rest of Latam | C33: LATAM I | D33: =966/1200 -> 0.805 | E33: USD | F33: USD | G33: 1200 | H33: 966 | I33: 0.805
A34: British Indian Ocean Territory | B34: South East Asia | C34: APAC II | D34: =1200/1200 -> 1 | E34: USD | F34: USD | G34: 1200 | H34: 1200 | I34: 1
A35: Brunei | B35: South East Asia | C35: APAC II | D35: =1200/1200 -> 1 | E35: USD | F35: USD | G35: 1200 | H35: 1200 | I35: 1
A36: Bulgaria | B36: Eurozone | C36: EMEA I | D36: =900/1200 -> 0.75 | E36: EUR | F36: EUR | G36: 1200 | H36: 900 | I36: 0.75
A37: Burkina Faso | B37: Africa | C37: EMEA II | D37: =1200/1200 -> 1 | E37: USD | F37: USD | G37: 1200 | H37: 1200 | I37: 1
A38: Burundi | B38: Africa | C38: EMEA II | D38: 1 | E38: USD | F38: USD | G38: 1200 | H38: 1200 | I38: 1
A39: Cambodia | B39: South East Asia | C39: APAC II | D39: 1 | E39: USD | F39: USD | G39: 1200 | H39: 1200 | I39: 1
A40: Cameroon | B40: Africa | C40: EMEA II | D40: 1 | E40: USD | F40: USD | G40: 1200 | H40: 1200 | I40: 1
A41: Canada | B41: Canada | C41: NAOM | D41: 1 | E41: CAD | F41: CAD | G41: 1200 | H41: 1200 | I41: 1.204081633
A42: Cape Verde | B42: Africa | C42: EMEA II | D42: 1 | E42: USD | F42: USD | G42: 1200 | H42: 1200 | I42: 1
A43: Cayman Islands | B43: Latam PR/BM/CI/VI | C43: LATAM II | D43: 1 | E43: USD | F43: USD | G43: 1200 | H43: 966 | I43: 0.805
A44: Central African Republic | B44: Africa | C44: EMEA II | D44: 1 | E44: USD | F44: USD | G44: 1200 | H44: 1200 | I44: 1
A45: Chad | B45: Africa | C45: EMEA II | D45: 1 | E45: USD | F45: USD | G45: 1200 | H45: 1200 | I45: 1
A46: Chile | B46: Rest of Latam | C46: LATAM I | D46: =966/1200 -> 0.805 | E46: USD | F46: USD | G46: 1200 | H46: 966 | I46: 0.805
A47: China | B47: China | C47: China | D47: =7800/1200 -> 6.5 | E47: RMB | F47: RMB | G47: 1200 | H47: 7800 | I47: 6.5
A48: Christmas Island | B48: Australia | C48: APAC I | D48: =1200/1200 -> 1 | E48: AUD | F48: AUD | G48: 1200 | H48: 1200 | I48: 1
A49: Cocos (Keeling) Islands | B49: Australia | C49: APAC I | D49: =1200/1200 -> 1 | E49: AUD | F49: AUD | G49: 1200 | H49: 1200 | I49: 1
A50: Colombia | B50: Rest of Latam | C50: LATAM I | D50: =966/1200 -> 0.805 | E50: USD | F50: USD | G50: 1200 | H50: 966 | I50: 0.805
A51: Comoros | B51: Africa | C51: EMEA II | D51: =1200/1200 -> 1 | E51: USD | F51: USD | G51: 1200 | H51: 1200 | I51: 1
A52: Congo | B52: Africa | C52: EMEA II | D52: =1200/1200 -> 1 | E52: USD | F52: USD | G52: 1200 | H52: 1200 | I52: 1
A53: Congo (DRC) | B53: Africa | C53: EMEA II | D53: =1200/1200 -> 1 | E53: USD | F53: USD | G53: 1200 | H53: 1200 | I53: 1
A54: Cook Islands | B54: New Zealand | C54: APAC II | D54: =1560/1200 -> 1.3 | E54: NZD | F54: NZD | G54: 1200 | H54: 1560 | I54: 1.3
A55: Costa Rica | B55: Rest of Latam | C55: LATAM I | D55: =966/1200 -> 0.805 | E55: USD | F55: USD | G55: 1200 | H55: 966 | I55: 0.805
A56: Côte d'Ivoire | B56: Africa | C56: EMEA II | D56: =1200/1200 -> 1 | E56: USD | F56: USD | G56: 1200 | H56: 1200 | I56: 1
A57: Croatia | B57: Eurozone | C57: EMEA I | D57: =900/1200 -> 0.75 | E57: EUR | F57: EUR | G57: 1200 | H57: 900 | I57: 0.75
A58: Cyprus | B58: Eurozone | C58: EMEA I | D58: =900/1200 -> 0.75 | E58: EUR | F58: EUR | G58: 1200 | H58: 900 | I58: 0.75
A59: Czech Republic | B59: Eurozone | C59: EMEA I | D59: =900/1200 -> 0.75 | E59: EUR | F59: EUR | G59: 1200 | H59: 900 | I59: 0.75
A60: Denmark | B60: Eurozone | C60: EMEA I | D60: =900/1200 -> 0.75 | E60: EUR | F60: DKK | G60: 1200 | H60: 6700 | I60: 5.583333333
A61: Djibouti | B61: Africa | C61: EMEA II | D61: =1200/1200 -> 1 | E61: USD | F61: USD | G61: 1200 | H61: 1200 | I61: 1
A62: Dominica | B62: Latam Caribbean | C62: LATAM I | D62: =966/1200 -> 0.805 | E62: USD | F62: USD | G62: 1200 | H62: 966 | I62: 0.805
A63: Dominican Republic | B63: Rest of Latam | C63: LATAM I | D63: =966/1200 -> 0.805 | E63: USD | F63: USD | G63: 1200 | H63: 966 | I63: 0.805
A64: Ecuador | C64: LATAM I | D64: =966/1200 -> 0.805 | E64: USD | F64: USD | G64: 1200 | H64: 966 | I64: 0.805
A65: Egypt | B65: Africa | C65: EMEA II | D65: =1200/1200 -> 1 | E65: USD | F65: USD | G65: 1200 | H65: 1200 | I65: 1
A66: El Salvador | B66: Rest of Latam | C66: LATAM I | D66: =966/1200 -> 0.805 | E66: USD | F66: USD | G66: 1200 | H66: 966 | I66: 0.805
A67: Equatorial Guinea | B67: Africa | C67: EMEA II | D67: =1200/1200 -> 1 | E67: USD | F67: USD | G67: 1200 | H67: 1200 | I67: 1
A68: Eritrea | B68: Africa | C68: EMEA II | D68: =1200/1200 -> 1 | E68: USD | F68: USD | G68: 1200 | H68: 1200 | I68: =H68/G68 -> 1
A69: Estonia | B69: Eurozone | C69: EMEA I | D69: =900/1200 -> 0.75 | E69: EUR | F69: EUR | G69: 1200 | H69: 900 | I69: 0.75
A70: Ethiopia | B70: Africa | C70: EMEA II | D70: =1200/1200 -> 1 | E70: USD | F70: USD | G70: 1200 | H70: 1200 | I70: 1
A71: Falkland Islands (Islas Malvinas) | B71: Rest of Latam | C71: LATAM I | D71: =966/1200 -> 0.805 | E71: USD | F71: USD | G71: 1200 | H71: 966 | I71: 0.805
A72: Faroe Islands | B72: Eurozone | C72: EMEA I | D72: =900/1200 -> 0.75 | E72: EUR | F72: DKK | G72: 1200 | H72: 6700 | I72: 5.583333333
A73: Fiji Islands | B73: South East Asia | C73: APAC II | D73: =1200/1200 -> 1 | E73: USD | F73: USD | G73: 1200 | H73: 1200 | I73: 1
A74: Finland | B74: Eurozone | C74: EMEA I | D74: =900/1200 -> 0.75 | E74: EUR | F74: EUR | G74: 1200 | H74: 900 | I74: 0.75
A75: France | B75: Eurozone | C75: EMEA I | D75: =900/1200 -> 0.75 | E75: EUR | F75: EUR | G75: 1200 | H75: 900 | I75: 0.75
A76: French Guiana | B76: Eurozone | C76: EMEA I | D76: =900/1200 -> 0.75 | E76: EUR | F76: EUR | G76: 1200 | H76: 900 | I76: 0.75
A77: French Polynesia | B77: Africa | C77: EMEA II | D77: =1200/1200 -> 1 | E77: USD | F77: USD | G77: 1200 | H77: 1200 | I77: 1
A78: French Southern and Antarctic Lands | B78: YTDB | C78: EMEA I | D78: =900/1200 -> 0.75 | E78: EUR | F78: EUR | G78: 1200 | H78: 900 | I78: 0.75
A79: Gabon | B79: Africa | C79: EMEA II | D79: =1200/1200 -> 1 | E79: USD | F79: USD | G79: 1200 | H79: 1200 | I79: 1
A80: Gambia, The | B80: Africa | C80: EMEA II | D80: =1200/1200 -> 1 | E80: USD | F80: USD | G80: 1200 | H80: 1200 | I80: 1
A81: Gaza Strip | B81: N/A | C81: EMEA II | D81: =1200/1200 -> 1 | E81: USD | F81: USD | G81: 1200 | H81: 1200 | I81: 1
A82: Georgia | B82: Eastern Europe | C82: EMEA II | D82: =1200/1200 -> 1 | E82: USD | F82: USD | G82: 1200 | H82: 1200 | I82: 1
A83: Germany | B83: Eurozone | C83: EMEA I | D83: =900/1200 -> 0.75 | E83: EUR | F83: EUR | G83: 1200 | H83: 900 | I83: 0.75
A84: Ghana | B84: Africa | C84: EMEA II | D84: =1200/1200 -> 1 | E84: USD | F84: USD | G84: 1200 | H84: 1200 | I84: 1
A85: Gibraltar | B85: Eurozone | C85: EMEA I | D85: =900/1200 -> 0.75 | E85: EUR | F85: EUR | G85: 1200 | H85: 900 | I85: 0.75
A86: Greece | B86: Eurozone | C86: EMEA I | D86: =900/1200 -> 0.75 | E86: EUR | F86: EUR | G86: 1200 | H86: 900 | I86: 0.75
A87: Greenland | B87: Eurozone | C87: EMEA I | D87: =900/1200 -> 0.75 | E87: EUR | F87: DKK | G87: 1200 | H87: 6700 | I87: 5.583333333
A88: Grenada | B88: Latam Caribbean | C88: LATAM I | D88: =966/1200 -> 0.805 | E88: USD | F88: USD | G88: 1200 | H88: 966 | I88: 0.805
A89: Guadeloupe | B89: Eurozone | C89: EMEA I | D89: =900/1200 -> 0.75 | E89: EUR | F89: EUR | G89: 1200 | H89: 900 | I89: 0.75
A90: Guam | B90: APOC United States | C90: APAC I | D90: =1200/1200 -> 1 | E90: USD | F90: USD | G90: 1200 | H90: 1200 | I90: 1
A91: Guatemala | B91: Rest of Latam | C91: LATAM I | D91: =966/1200 -> 0.805 | E91: USD | F91: USD | G91: 1200 | H91: 966 | I91: 0.805
A92: Guinea | B92: Africa | C92: EMEA II | D92: =1200/1200 -> 1 | E92: USD | F92: USD | G92: 1200 | H92: 1200 | I92: 1
A93: Guinea-Bissau | B93: Africa | C93: EMEA II | D93: =1200/1200 -> 1 | E93: USD | F93: USD | G93: 1200 | H93: 1200 | I93: 1
A94: Guyana | B94: Latam Caribbean | C94: LATAM I | D94: =966/1200 -> 0.805 | E94: USD | F94: USD | G94: 1200 | H94: 966 | I94: 0.805
A95: Haiti | B95: Latam Caribbean | C95: LATAM I | D95: =966/1200 -> 0.805 | E95: USD | F95: USD | G95: 1200 | H95: 966 | I95: 0.805
A96: Heard Island and McDonald Islands | B96: Australia | C96: APAC I | D96: =1200/1200 -> 1 | E96: AUD | F96: AUD | G96: 1200 | H96: 1200 | I96: 1
A97: Honduras | B97: Rest of Latam | C97: LATAM I | D97: =966/1200 -> 0.805 | E97: USD | F97: USD | G97: 1200 | H97: 966 | I97: 0.805
A98: Hong Kong SAR | B98: South East Asia | C98: APAC II | D98: =1200/1200 -> 1 | E98: USD | F98: USD | G98: 1200 | H98: 1200 | I98: 1
A99: Hungary | B99: Eurozone | C99: EMEA I | D99: =900/1200 -> 0.75 | E99: EUR | F99: EUR | G99: 1200 | H99: 900 | I99: 0.75
A100: Iceland | B100: Eurozone | C100: EMEA I | D100: =900/1200 -> 0.75 | E100: EUR | F100: EUR | G100: 1200 | H100: 900 | I100: 0.75
A101: India | B101: India | C101: India | D101: =53988/1200 -> 44.99 | E101: INR | F101: INR | G101: 1200 | H101: 53988 | I101: 44.99
A102: Indonesia | B102: South East Asia | C102: APAC II | D102: =1200/1200 -> 1 | E102: USD | F102: USD | G102: 1200 | H102: 1200 | I102: 1
A103: Iran | B103: N/A | C103: EMEA II | D103: =1200/1200 -> 1 | E103: USD | F103: USD | G103: 1200 | H103: 1200 | I103: 1
A104: Iraq | B104: Middle East | C104: EMEA II | D104: =1200/1200 -> 1 | E104: USD | F104: USD | G104: 1200 | H104: 1200 | I104: 1
A105: Ireland | B105: Eurozone | C105: EMEA I | D105: =900/1200 -> 0.75 | E105: EUR | F105: EUR | G105: 1200 | H105: 900 | I105: 0.75
A106: Israel | B106: Middle East | C106: EMEA II | D106: =1200/1200 -> 1 | E106: USD | F106: USD | G106: 1200 | H106: 1200 | I106: 1
A107: Italy | B107: Eurozone | C107: EMEA I | D107: =900/1200 -> 0.75 | E107: EUR | F107: EUR | G107: 1200 | H107: 900 | I107: 0.75
A108: Jamaica | B108: Latam Caribbean | C108: LATAM I | D108: =966/1200 -> 0.805 | E108: USD | F108: USD | G108: 1200 | H108: 966 | I108: 0.805
A109: Jan Mayen | B109: Eurozone | C109: EMEA I | D109: =900/1200 -> 0.75 | E109: EUR | F109: EUR | G109: 1200 | H109: 900 | I109: 0.75
A110: Japan | B110: Japan | C110: Japan | D110: =99600/1200 -> 83 | E110: JPY | F110: JPY | G110: 1200 | H110: 99600 | I110: 83
A111: Jordan | B111: Middle East | C111: EMEA II | D111: =1200/1200 -> 1 | E111: USD | F111: USD | G111: 1200 | H111: 1200 | I111: 1
A112: Kazakhstan | B112: Central Asia | C112: EMEA II | D112: 1 | E112: USD | F112: USD | G112: 1200 | H112: 1200 | I112: 1
A113: Kenya | B113: Africa | C113: EMEA II | D113: 1 | E113: USD | F113: USD | G113: 1200 | H113: 1200 | I113: 1
A114: Kiribati | B114: Australia | C114: APAC I | D114: 1 | E114: AUD | F114: AUD | G114: 1200 | H114: 1200 | I114: 1
A115: Korea, South | B115: South East Asia | C115: APAC II | D115: 1 | E115: USD | F115: USD | G115: 1200 | H115: 1200 | I115: 1
A116: Kuwait | B116: Middle East | C116: EMEA II | D116: 1 | E116: USD | F116: USD | G116: 1200 | H116: 1200 | I116: 1
A117: Kyrgyzstan | B117: Central Asia | C117: EMEA II | D117: 1 | E117: USD | F117: USD | G117: 1200 | H117: 1200 | I117: 1
A118: Laos | B118: South East Asia | C118: APAC II | D118: 1 | E118: USD | F118: USD | G118: 1200 | H118: 1200 | I118: 1
A119: Latvia | B119: Eurozone | C119: EMEA I | D119: =900/1200 -> 0.75 | E119: EUR | F119: EUR | G119: 1200 | H119: 900 | I119: 0.75
A120: Lebanon | B120: Middle East | C120: EMEA II | D120: =1200/1200 -> 1 | E120: USD | F120: USD | G120: 1200 | H120: 1200 | I120: 1
A121: Lesotho | B121: Africa | C121: EMEA II | D121: =1200/1200 -> 1 | E121: USD | F121: USD | G121: 1200 | H121: 1200 | I121: 1
A122: Liberia | B122: Africa | C122: EMEA II | D122: =1200/1200 -> 1 | E122: USD | F122: USD | G122: 1200 | H122: 1200 | I122: 1
A123: Libya | B123: Africa | C123: EMEA II | D123: =1200/1200 -> 1 | E123: USD | F123: USD | G123: 1200 | H123: 1200 | I123: 1
A124: Liechtenstein | B124: Eurozone | C124: EMEA I | D124: =900/1200 -> 0.75 | E124: EUR | F124: CHF | G124: 1200 | H124: 978 | I124: 0.815
A125: Lithuania | B125: Eurozone | C125: EMEA I | D125: =900/1200 -> 0.75 | E125: EUR | F125: EUR | G125: 1200 | H125: 900 | I125: 0.75
A126: Luxembourg | B126: Eurozone | C126: EMEA I | D126: =900/1200 -> 0.75 | E126: EUR | F126: EUR | G126: 1200 | H126: 900 | I126: 0.75
A127: Macao SAR | B127: South East Asia | C127: APAC II | D127: =1200/1200 -> 1 | E127: USD | F127: USD | G127: 1200 | H127: 1200 | I127: 1
A128: Macedonia, FYROM | B128: Eastern Europe | C128: EMEA II | D128: 1 | E128: USD | F128: USD | G128: 1200 | H128: 1200 | I128: 1
A129: Madagascar | B129: Africa | C129: EMEA II | D129: 1 | E129: USD | F129: USD | G129: 1200 | H129: 1200 | I129: 1
A130: Malawi | B130: Africa | C130: EMEA II | D130: 1 | E130: USD | F130: USD | G130: 1200 | H130: 1200 | I130: 1
A131: Malaysia | B131: South East Asia | C131: APAC II | D131: 1 | E131: USD | F131: USD | G131: 1200 | H131: 1200 | I131: 1
A132: Maldives | B132: South East Asia | C132: APAC II | D132: 1 | E132: USD | F132: USD | G132: 1200 | H132: 1200 | I132: =H132/G132 -> 1
A133: Mali | B133: Africa | C133: EMEA II | D133: 1 | E133: USD | F133: USD | G133: 1200 | H133: 1200 | I133: 1
A134: Malta | B134: Eurozone | C134: EMEA I | D134: =900/1200 -> 0.75 | E134: EUR | F134: EUR | G134: 1200 | H134: 900 | I134: 0.75
A135: Marshall Islands | B135: APOC United States | C135: APAC I | D135: =1200/1200 -> 1 | E135: USD | F135: USD | G135: 1200 | H135: 1200 | I135: 1
A136: Martinique | B136: Eurozone | C136: EMEA I | D136: =900/1200 -> 0.75 | E136: EUR | F136: EUR | G136: 1200 | H136: 900 | I136: 0.75
A137: Mauritania | B137: Africa | C137: EMEA II | D137: =1200/1200 -> 1 | E137: USD | F137: USD | G137: 1200 | H137: 1200 | I137: 1
A138: Mauritius | B138: Africa | C138: EMEA II | D138: =1200/1200 -> 1 | E138: USD | F138: USD | G138: 1200 | H138: 1200 | I138: 1
A139: Mayotte | B139: Eurozone | C139: EMEA I | D139: =900/1200 -> 0.75 | E139: EUR | F139: EUR | G139: 1200 | H139: 900 | I139: 0.75
A140: Mexico | B140: Rest of Latam | C140: LATAM I | D140: =966/1200 -> 0.805 | E140: USD | F140: USD | G140: 1200 | H140: 966 | I140: 0.805
A141: Micronesia | B141: South East Asia | C141: APAC II | D141: =1200/1200 -> 1 | E141: USD | F141: USD | G141: 1200 | H141: 1200 | I141: 1
A142: Moldova | B142: Eastern Europe | C142: EMEA II | D142: =1200/1200 -> 1 | E142: USD | F142: USD | G142: 1200 | H142: 1200 | I142: 1
A143: Monaco | B143: Eurozone | C143: EMEA I | D143: =900/1200 -> 0.75 | E143: EUR | F143: EUR | G143: 1200 | H143: 900 | I143: 0.75
A144: Mongolia | B144: Central Asia | C144: EMEA II | D144: =1200/1200 -> 1 | E144: USD | F144: USD | G144: 1200 | H144: 1200 | I144: 1
A145: Montenegro | B145: Eastern Europe | C145: EMEA II | D145: =1200/1200 -> 1 | E145: USD | F145: USD | G145: 1200 | H145: 1200 | I145: 1
A146: Montserrat | B146: Latam Caribbean | C146: LATAM I | D146: =966/1200 -> 0.805 | E146: USD | F146: USD | G146: 1200 | H146: 966 | I146: 0.805
A147: Morocco | B147: Africa | C147: EMEA II | D147: =1200/1200 -> 1 | E147: USD | F147: USD | G147: 1200 | H147: 1200 | I147: 1
A148: Mozambique | B148: Africa | C148: EMEA II | D148: 1 | E148: USD | F148: USD | G148: 1200 | H148: 1200 | I148: 1
A149: Myanmar | B149: South East Asia | C149: APAC II | D149: 1 | E149: USD | F149: USD | G149: 1200 | H149: 1200 | I149: 1
A150: Namibia | B150: Africa | C150: EMEA II | D150: 1 | E150: USD | F150: USD | G150: 1200 | H150: 1200 | I150: 1
A151: Nauru | B151: Australia | C151: APAC I | D151: 1 | E151: AUD | F151: AUD | G151: 1200 | H151: 1200 | I151: 1
A152: Nepal | B152: South East Asia | C152: APAC II | D152: 1 | E152: USD | F152: USD | G152: 1200 | H152: 1200 | I152: 1
A153: Netherlands Antilles | B153: Latam Caribbean | C153: LATAM I | D153: =966/1200 -> 0.805 | E153: USD | F153: USD | G153: 1200 | H153: 966 | I153: 0.805
A154: Netherlands, The | B154: Eurozone | C154: EMEA I | D154: =900/1200 -> 0.75 | E154: EUR | F154: EUR | G154: 1200 | H154: 900 | I154: 0.75
A155: New Caledonia | B155: Africa | C155: EMEA II | D155: =1200/1200 -> 1 | E155: USD | F155: USD | G155: 1200 | H155: 1200 | I155: 1
A156: New Zealand | B156: New Zealand | C156: APAC II | D156: =1560/1200 -> 1.3 | E156: NZD | F156: NZD | G156: 1200 | H156: 1560 | I156: 1.3
A157: Nicaragua | B157: Rest of Latam | C157: LATAM I | D157: =966/1200 -> 0.805 | E157: USD | F157: USD | G157: 1200 | H157: 966 | I157: 0.805
A158: Niger | B158: Africa | C158: EMEA II | D158: =1200/1200 -> 1 | E158: USD | F158: USD | G158: 1200 | H158: 1200 | I158: 1
A159: Nigeria | B159: Africa | C159: EMEA II | D159: =1200/1200 -> 1 | E159: USD | F159: USD | G159: 1200 | H159: 1200 | I159: 1
A160: Niue | B160: New Zealand | C160: APAC II | D160: =1560/1200 -> 1.3 | E160: NZD | F160: NZD | G160: 1200 | H160: 1560 | I160: 1.3
A161: Norfolk Island | B161: Australia | C161: APAC I | D161: =1200/1200 -> 1 | E161: AUD | F161: AUD | G161: 1200 | H161: 1200 | I161: 1
A162: Northern Mariana Islands | B162: APOC United States | C162: APAC I | D162: =1200/1200 -> 1 | E162: USD | F162: USD | G162: 1200 | H162: 1200 | I162: 1
A163: Norway | B163: Eurozone | C163: EMEA I | D163: =900/1200 -> 0.75 | E163: EUR | F163: NOK | G163: 1200 | H163: 8562 | I163: 7.135
A164: Oman | B164: Middle East | C164: EMEA II | D164: =1200/1200 -> 1 | E164: USD | F164: USD | G164: 1200 | H164: 1200 | I164: 1
A165: Pakistan | B165: Central Asia | C165: EMEA II | D165: =1200/1200 -> 1 | E165: USD | F165: USD | G165: 1200 | H165: 1200 | I165: 1
A166: Palau | B166: South East Asia | C166: APAC II | D166: =1200/1200 -> 1 | E166: USD | F166: USD | G166: 1200 | H166: 1200 | I166: 1
A167: Panama | B167: Rest of Latam | C167: LATAM I | D167: =966/1200 -> 0.805 | E167: USD | F167: USD | G167: 1200 | H167: 966 | I167: 0.805
A168: Papua New Guinea | B168: South East Asia | C168: APAC II | D168: =1200/1200 -> 1 | E168: USD | F168: USD | G168: 1200 | H168: 1200 | I168: 1
A169: Paraguay | B169: Rest of Latam | C169: LATAM I | D169: =966/1200 -> 0.805 | E169: USD | F169: USD | G169: 1200 | H169: 966 | I169: 0.805
A170: Peru | B170: Rest of Latam | C170: LATAM I | D170: =966/1200 -> 0.805 | E170: USD | F170: USD | G170: 1200 | H170: 966 | I170: 0.805
A171: Philippines | B171: South East Asia | C171: APAC II | D171: =1200/1200 -> 1 | E171: USD | F171: USD | G171: 1200 | H171: 1200 | I171: 1
A172: Pitcairn Islands | B172: South East Asia | C172: APAC II | D172: =1200/1200 -> 1 | E172: USD | F172: USD | G172: 1200 | H172: 1200 | I172: 1
A173: Poland | B173: Eurozone | C173: EMEA I | D173: =900/1200 -> 0.75 | E173: EUR | F173: EUR | G173: 1200 | H173: 900 | I173: 0.75
A174: Portugal | B174: Eurozone | C174: EMEA I | D174: =900/1200 -> 0.75 | E174: EUR | F174: EUR | G174: 1200 | H174: 900 | I174: 0.75
A175: Puerto Rico | B175: Latam PR/BM/CI/VI | C175: LATAM II | D175: =1200/1200 -> 1 | E175: USD | F175: USD | G175: 1200 | H175: 1200 | I175: 1
A176: Qatar | B176: Middle East | C176: EMEA II | D176: =1200/1200 -> 1 | E176: USD | F176: USD | G176: 1200 | H176: 1200 | I176: 1
A177: Reunion | B177: Eurozone | C177: EMEA I | D177: =900/1200 -> 0.75 | E177: EUR | F177: EUR | G177: 1200 | H177: 900 | I177: 0.75
A178: Romania | B178: Eurozone | C178: EMEA I | D178: =900/1200 -> 0.75 | E178: EUR | F178: EUR | G178: 1200 | H178: 900 | I178: 0.75
A179: Russia | B179: Russia | C179: EMEA I | D179: =56385/1200 -> 46.9875 | E179: RUB | F179: RUB | G179: 1200 | H179: 56385 | I179: 46.9875
A180: Rwanda | B180: Africa | C180: EMEA II | D180: =1200/1200 -> 1 | E180: USD | F180: USD | G180: 1200 | H180: 1200 | I180: 1
A181: Saint Helena | B181: Eurozone | C181: EMEA I | D181: =900/1200 -> 0.75 | E181: EUR | F181: GBP | G181: 1200 | H181: 805 | I181: 0.6708333333
A182: Saint Kitts and Nevis | B182: Latam Caribbean | C182: LATAM I | D182: =966/1200 -> 0.805 | E182: USD | F182: USD | G182: 1200 | H182: 966 | I182: 0.805
A183: Saint Lucia | B183: Latam Caribbean | C183: LATAM I | D183: =966/1200 -> 0.805 | E183: USD | F183: USD | G183: 1200 | H183: 966 | I183: 0.805
A184: Saint Pierre and Miquelon | B184: Canada | C184: NAOM | D184: =1200/1200 -> 1 | E184: CAD | F184: CAD | G184: 1200 | H184: 1200 | I184: 1.204081633
A185: Saint Vincent and the Grenadines | B185: Latam Caribbean | C185: LATAM I | D185: =966/1200 -> 0.805 | E185: USD | F185: USD | G185: 1200 | H185: 966 | I185: 0.805
A186: Samoa | B186: South East Asia | C186: APAC II | D186: =1200/1200 -> 1 | E186: USD | F186: USD | G186: 1200 | H186: 1200 | I186: 1
A187: San Marino | B187: Eurozone | C187: EMEA I | D187: =900/1200 -> 0.75 | E187: EUR | F187: EUR | G187: 1200 | H187: 900 | I187: 0.75
A188: Sao Tomé and Príncipe | B188: Africa | C188: EMEA II | D188: =1200/1200 -> 1 | E188: USD | F188: USD | G188: 1200 | H188: 1200 | I188: 1
A189: Saudi Arabia | B189: Middle East | C189: EMEA II | D189: 1 | E189: USD | F189: USD | G189: 1200 | H189: 1200 | I189: 1
A190: Senegal | B190: Africa | C190: EMEA II | D190: 1 | E190: USD | F190: USD | G190: 1200 | H190: 1200 | I190: 1
A191: Serbia | B191: Eastern Europe | C191: EMEA II | D191: 1 | E191: USD | F191: USD | G191: 1200 | H191: 1200 | I191: 1
A192: Seychelles | B192: Africa | C192: EMEA II | D192: 1 | E192: USD | F192: USD | G192: 1200 | H192: 1200 | I192: 1
A193: Sierra Leone | B193: Africa | C193: EMEA II | D193: 1 | E193: USD | F193: USD | G193: 1200 | H193: 1200 | I193: 1
A194: Singapore | B194: South East Asia | C194: APAC II | D194: 1 | E194: USD | F194: USD | G194: 1200 | H194: 1200 | I194: 1
A195: Slovakia | B195: Eurozone | C195: EMEA I | D195: =900/1200 -> 0.75 | E195: EUR | F195: EUR | G195: 1200 | H195: 900 | I195: 0.75
A196: Slovenia | B196: Eurozone | C196: EMEA I | D196: =900/1200 -> 0.75 | E196: EUR | F196: EUR | G196: 1200 | H196: 900 | I196: =H196/G196 -> 0.75
A197: Solomon Islands | B197: South East Asia | C197: APAC II | D197: =1200/1200 -> 1 | E197: USD | F197: USD | G197: 1200 | H197: 1200 | I197: 1
A198: Somalia | B198: Africa | C198: EMEA II | D198: =1200/1200 -> 1 | E198: USD | F198: USD | G198: 1200 | H198: 1200 | I198: 1
A199: South Africa | B199: South Africa | C199: EMEA II | D199: =1200/1200 -> 1 | E199: USD | F199: USD | G199: 1200 | H199: 1200 | I199: 1
A200: South Georgia and the South Sandwich Islands | B200: Rest of Latam | C200: LATAM I | D200: =966/1200 -> 0.805 | E200: USD | F200: USD | G200: 1200 | H200: 966 | I200: 0.805
... 41 more rows

Sheet Price List (hidden)
C1: SKU | D1: USD | E1: CAD | F1: EUR | G1: GBP | H1: AUD | I1: NZD | M1: MS pricelist | AB1: Should receive these prices in the future once Embed is ready
E2: =1.28*1.06 -> 1.3568 | F2: 0.85 | G2: 0.76 | H2: =1.373*1.09 -> 1.49657 | I2: =1.52*1.07 -> 1.6264 | O2: USD | P2: USD | Q2: CAD | R2: CAD | S2: EUR | T2: EUR | U2: GBP | V2: GBP | W2: AUD | X2: AUD | Y2: NZD | Z2: NZD | AB2: USD | AC2: CAD | AD2: EUR | AE2: GBP
B3: ERP Users | M3: Offer Display Name | N3: Offer ID | O3: List Price | P3: ERP Price | Q3: List Price | R3: ERP Price | S3: List Price | T3: ERP Price | U3: List Price | V3: ERP Price | W3: List Price | X3: ERP Price | Y3: List Price | Z3: ERP Price | AB3: LS Retail price | AC3: LS Retail price | AD3: LS Retail price | AE3: LS Retail price
B4: Dynamics 365 Business Central Essential | C4: BC-D365-SAAS-E | D4: 84 | E4: =+D4*$E$2 -> 113.9712 | F4: =+D4*$F$2*1.11 -> 79.254 | G4: =+D4*$G$2*1.09 -> 69.5856 | H4: =+D4*$H$2 -> 125.71188 | I4: =D4*$I$2 -> 136.6176 | M4: Dynamics 365 Business Central Essential | N4: 70ec2332-e230-4c53-837d-75dfb54cefe8 | O4: =+FactorOld!Q11 -> 49 | P4: =+FactorOld!W22 -> 70 | Q4: 62.72 | R4: 89.6 | S4: =+FactorOld!Y11 -> 45.8652 | T4: =+FactorOld!Y22 -> 65.49 | U4: =+FactorOld!Z11 -> 37 | V4: =+FactorOld!Z22 -> 52.8 | W4: 67.3 | X4: 96.1 | Y4: 74.1 | Z4: 105.8 | AB4: =P4*(1-0.5) -> 35 | AC4: =Q4*(1-0.5) -> 31.36 | AD4: =R4*(1-0.5) -> 44.8 | AE4: =S4*(1-0.5) -> 22.9326
B5: Dynamics 365 Business Central Premium | C5: BC-D365-SAAS-P | D5: 120 | E5: =+D5*$E$2 -> 162.816 | F5: 113.22 | G5: 99.408 | H5: =+D5*$H$2 -> 179.5884 | I5: =D5*$I$2 -> 195.168 | M5: Dynamics 365 Business Central Premium | N5: C9F0BDF2-3679-4F9A-8E69-0DC52C5E9E52 | O5: =+FactorOld!W12 -> 70 | P5: =+FactorOld!W23 -> 100 | Q5: 89.6 | R5: 128 | S5: =+FactorOld!Y12 -> 65.5233 | T5: =+FactorOld!Y23 -> 93.573 | U5: =+FactorOld!Z12 -> 52.78 | V5: =+FactorOld!Z23 -> 75.4 | W5: 96.1 | X5: 137.3 | Y5: 105.8 | Z5: 151.2 | AB5: =P5*(1-0.5) -> 50 | AC5: 44.8 | AD5: 64 | AE5: 32.76165
B6: Dynamics 365 Business Central Team Member | C6: BC-D365-SAAS-TM | D6: 9.6 | E6: 13.02528 | F6: 9.0576 | G6: 7.95264 | H6: 14.367072 | I6: 15.61344 | M6: Dynamics 365 Business Central Team Member | N6: 70DE61E8-402B-4665-B80E-97FC39323B81 | O6: =+FactorOld!W13 -> 5.6 | P6: =+FactorOld!W24 -> 8 | Q6: 7.17 | R6: 10.2 | S6: =+FactorOld!Y13 -> 5.2503 | T6: =+FactorOld!Y24 -> 7.548 | U6: =+FactorOld!Z13 -> 4.22 | V6: =+FactorOld!Z24 -> 6 | W6: 7.7 | X6: 11 | Y6: 8.5 | Z6: 12.1 | AB6: 4 | AC6: =Q6*(1-0.5) -> 3.585 | AD6: 5.1 | AE6: 2.62515
B7: Dynamics 365 Business Central External Accountant | C7: BC-D365-SAAS-EA | D7: 0 | E7: 0 | F7: 0 | G7: 0 | H7: 0 | I7: 0 | M7: Dynamics 365 Business Central External Accountant | N7: 88F9EB8A-0636-45E8-A601-553E0A48AA9E | O7: 0 | P7: 0 | Q7: 0 | R7: 0 | S7: 0 | T7: 0 | U7: 0 | V7: 0 | W7: 0 | X7: 0 | Y7: 0 | Z7: 0 | AB7: 0 | AC7: =Q7*(1-0.5) -> 0 | AD7: 0 | AE7: 0
B8: Dynamics 365 Business Central Sales Professional attach | C8: BC-D365-SAAS-SPA | D8: 24 | E8: 32.5632 | F8: 22.644 | G8: 19.8816 | H8: 35.91768 | I8: 39.0336 | M8: Dynamics 365 Sales Professional Attach to Qualifying Dynamics 365 Base Offer | N8: 62ba2336-d7be-4339-9a52-727e7cc7c0fe | O8: 15 | P8: 20
B9: Dynamics 365 Business Central Customer Service Professional attach | C9: BC-D365-SAAS-CSPA | D9: 24 | E9: 32.5632 | F9: 22.644 | G9: 19.8816 | H9: 35.91768 | I9: 39.0336 | M9: Dynamics 365 Customer Service Professional Attach to Qualifying Dynamics 365 Base Offer | N9: 41791076-9613-40e3-b1c4-7ba8c2c95e60 | O9: 15 | P9: 20
B10: Yearly | I10: 0 | AB10: =P7*(1-0.5) -> 0 | AC10: =Q7*(1-0.5) -> 0 | AD10: =R7*(1-0.5) -> 0 | AE10: =S7*(1-0.5) -> 0
B11: Dynamics 365 Business Central Essential | C11: BC-D365-SAAS-E | D11: 840 | E11: 1140 | F11: =+D11*$F$2*1.11 -> 792.54 | G11: =+D11*$G$2*1.09 -> 695.856 | H11: 1257.1188 | I11: 1366.176 | M11: Dynamics 365 Business Central Essential | N11: 70ec2332-e230-4c53-837d-75dfb54cefe8 | O11: =O4*12 -> 588 | P11: =FactorOld!AC16 -> 840 | Q11: =Q4*12 -> 752.64 | R11: 1075.2 | S11: =FactorOld!AE11 -> 550.3824 | T11: =FactorOld!AE16 -> 785.88 | U11: =FactorOld!AF11 -> 444 | V11: =FactorOld!AF16 -> 633.6 | AB11: =P11*(1-0.5) -> 420 | AC11: =Q11*(1-0.5) -> 376.32 | AD11: =R11*(1-0.5) -> 537.6 | AE11: =S11*(1-0.5) -> 275.1912
B12: Dynamics 365 Business Central Premium | C12: BC-D365-SAAS-P | D12: 1200 | E12: 1628.4 | F12: 1132.2 | G12: 994.08 | H12: =+D12*$H$2 -> 1795.884 | I12: 1951.68 | M12: Dynamics 365 Business Central Premium | N12: C9F0BDF2-3679-4F9A-8E69-0DC52C5E9E52 | O12: =O5*12 -> 840 | P12: =FactorOld!AC17 -> 1200 | Q12: 1075.2 | R12: 1536 | S12: =FactorOld!AE12 -> 786.2796 | T12: =FactorOld!AE17 -> 1122.876 | U12: =FactorOld!AF12 -> 633.36 | V12: =FactorOld!AF17 -> 904.8 | AB12: =P12*(1-0.5) -> 600 | AC12: =Q12*(1-0.5) -> 537.6 | AD12: 768 | AE12: 393.1398
B13: Dynamics 365 Business Central Team Member | C13: BC-D365-SAAS-TM | D13: 96 | E13: 130.8 | F13: 90.576 | G13: 79.5264 | H13: 143.67072 | I13: 156.1344 | M13: Dynamics 365 Business Central Team Member | N13: 70DE61E8-402B-4665-B80E-97FC39323B81 | O13: 67.2 | P13: =FactorOld!AC18 -> 96 | Q13: 86.04 | R13: 122.4 | S13: =FactorOld!AE13 -> 63.0036 | T13: =FactorOld!AE18 -> 90.576 | U13: =FactorOld!AF13 -> 50.64 | V13: =FactorOld!AF18 -> 72 | AB13: 48 | AC13: =Q13*(1-0.5) -> 43.02 | AD13: 61.2 | AE13: 31.5018
B14: Dynamics 365 Business Central External Accountant | C14: BC-D365-SAAS-EA | D14: 0 | E14: 0 | F14: 0 | G14: 0 | H14: 0 | I14: 0 | M14: Dynamics 365 Business Central External Accountant | N14: 88F9EB8A-0636-45E8-A601-553E0A48AA9E | O14: 0 | P14: 0 | Q14: 0 | R14: 0 | S14: 0 | T14: 0 | U14: 0 | V14: 0 | AB14: 0 | AC14: =Q14*(1-0.5) -> 0 | AD14: 0 | AE14: 0
B15: Dynamics 365 Business Central Sales Professional attach | C15: BC-D365-SAAS-SPA | D15: 240 | E15: 325.632 | F15: 226.44 | G15: 198.816 | H15: 359.1768 | I15: 390.336 | M15: Dynamics 365 Sales Professional Attach to Qualifying Dynamics 365 Base Offer | N15: 62ba2336-d7be-4339-9a52-727e7cc7c0fe | O15: =O8*12 -> 180 | P15: 240
B16: Dynamics 365 Business Central Customer Service Professional attach | C16: BC-D365-SAAS-CSPA | D16: 240 | E16: 325.632 | F16: 226.44 | G16: 198.816 | H16: 359.1768 | I16: 390.336 | M16: Dynamics 365 Customer Service Professional Attach to Qualifying Dynamics 365 Base Offer | N16: 41791076-9613-40e3-b1c4-7ba8c2c95e60 | O16: 180 | P16: 240
I17: 0
B18: Other Modules
B19: Dynamics 365 Business Central Database Capacity | C19: BC-D365-SAAS-CDC | D19: 12 | E19: =+D19*$E$2 -> 16.2816 | F19: =+D19*$F$2*1.11 -> 11.322 | G19: =+D19*$G$2*1.09 -> 9.9408 | H19: =+D19*$H$2 -> 17.95884 | I19: 19.5168 | M19: Common Data Service Database Capacity | N19: D31FCBC0-AAF7-48B7-AF12-900C05A60594 | O19: 7 | P19: 10 | Q19: 38.4 | R19: 51.2 | S19: =25.3*1.11 -> 28.083 | T19: =33.7*1.11 -> 37.407 | U19: 22.6 | V19: 30.2 | W19: 38.4 | X19: 54.9 | Y19: 42.3 | Z19: 60.5
B20: Dynamics 365 Business Central Database Capacity Additional 100 GB | C20: BC-D365-SAAS-CDCA | D20: 600 | E20: =+D20*$E$2 -> 814.08 | F20: =+D20*$F$2*1.11 -> 566.1 | G20: =+D20*$G$2*1.09 -> 497.04 | H20: =+D20*$H$2 -> 897.942 | I20: =D20*$I$2 -> 975.84 | M20: Common Data Service Database Capacity Additional 100 GB | O20: =P20*0.7 -> 350 | P20: 500
B21: Dynamics 365 Business Central Database Capacity Overage | C21: BC-D365-SAAS-CDCO | D21: 6 | E21: =+D21*$E$2 -> 8.1408 | F21: =+D21*$F$2*1.11 -> 5.661 | G21: =+D21*$G$2*1.09 -> 4.9704 | H21: =+D21*$H$2 -> 8.97942 | I21: =D21*$I$2 -> 9.7584 | O21: 3.5 | P21: 5
B22: Dynamics 365 Business Central Additional Environment Addon* | C22: BC-D365-SAAS-CAE | D22: 360 | E22: =$D$22*E2 -> 488.448 | F22: =+D22*$F$2*1.11 -> 339.66 | G22: =+D22*$G$2*1.09 -> 298.224 | H22: =$D$22*H2 -> 538.7652 | I22: 585.504 | M22: Dynamics 365 Business Central Additional Environment Addon | N22: 642447e8-06fe-4176-b0e4-8745aa293722 | O22: 210 | P22: 300 | Q22: =R22*0.7 -> 448 | R22: 640 | S22: =T22*0.7 -> 330.225 | T22: =425*1.11 -> 471.75 | U22: =V22*0.7 -> 266 | V22: 380 | W22: 480.6 | X22: 686.5 | Y22: 529.2 | Z22: 756
B23: Yearly
B24: Dynamics 365 Business Central Database Capacity | C24: BC-D365-SAAS-CDC | D24: 120 | E24: 163.2 | F24: =+D24*$F$2*1.11 -> 113.22 | G24: =+D24*$G$2*1.09 -> 99.408 | H24: =+D24*$H$2 -> 179.5884 | I24: 195.168 | M24: Common Data Service Database Capacity | N24: D31FCBC0-AAF7-48B7-AF12-900C05A60594 | O24: =O19*12 -> 84 | P24: 120
B25: Dynamics 365 Business Central Database Capacity Additional 100 GB | C25: BC-D365-SAAS-CDCA | D25: 6000 | E25: 8140.8 | F25: =+D25*$F$2*1.11 -> 5661 | G25: =+D25*$G$2*1.09 -> 4970.4 | H25: =+D25*$H$2 -> 8979.42 | I25: =D25*$I$2 -> 9758.4 | O25: =O20*12 -> 4200 | P25: 6000
B26: Dynamics 365 Business Central Database Capacity Overage | C26: BC-D365-SAAS-CDCO | D26: 60 | E26: 81.6 | F26: =+D26*$F$2*1.11 -> 56.61 | G26: =+D26*$G$2*1.09 -> 49.704 | H26: =+D26*$H$2 -> 89.7942 | I26: =D26*$I$2 -> 97.584 | O26: =O21*12 -> 42 | P26: =P21*12 -> 60
B27: Dynamics 365 Business Central Additional Environment Addon* | C27: BC-D365-SAAS-CAE | D27: 3600 | E27: 4884 | F27: =+D27*$F$2*1.11 -> 3396.6 | G27: =+D27*$G$2*1.09 -> 2982.24 | H27: =$D$27*H2 -> 5387.652 | I27: 5855.04 | M27: Dynamics 365 Business Central Additional Environment Addon | N27: 642447e8-06fe-4176-b0e4-8745aa293722 | O27: =O22*12 -> 2520 | P27: 3600
B29: Base
B30: LS Central Base - Per Full User | C30: BC-D365-SAAS-BASE | D30: 36 | E30: =+D30*$E$2 -> 48.8448 | F30: =+D30*$F$2*1.11 -> 33.966 | G30: =+D30*$G$2*1.09 -> 29.8224 | H30: =+D30*$H$2 -> 53.87652 | I30: =D30*$I$2 -> 58.5504
B31: Yearly | I31: 0
B32: LS Central Base - Per Full User | C32: BC-D365-SAAS-BASE | D32: 360 | E32: 488.5 | F32: =+D32*$F$2*1.11 -> 339.66 | G32: =+D32*$G$2*1.09 -> 298.224 | H32: =+D32*$H$2 -> 538.7652 | I32: =D32*$I$2 -> 585.504
I33: 0
B34: Stores
B35: Online Store | C35: BC-D365-SAAS-STOREON | D35: 0 | E35: =+D35*$E$2 -> 0 | F35: =+D35*$F$2*1.11 -> 0 | G35: =+D35*$G$2*1.09 -> 0 | H35: =+D35*$H$2 -> 0 | I35: 0
B36: Offline Store | C36: BC-D365-SAAS-STOREOFF | D36: 6 | E36: 8.1408 | F36: =+D36*$F$2*1.11 -> 5.661 | G36: =+D36*$G$2*1.09 -> 4.9704 | H36: 8.97942 | I36: 9.7584
B37: Yearly | I37: 0
B38: Online Store | C38: BC-D365-SAAS-STOREON | D38: 0 | E38: =+D38*$E$2 -> 0 | F38: =+D38*$F$2*1.11 -> 0 | G38: =+D38*$G$2*1.09 -> 0 | H38: =+D38*$H$2 -> 0 | I38: 0
B39: Offline Store | C39: BC-D365-SAAS-STOREOFF | D39: 60 | E39: 81.4 | F39: =+D39*$F$2*1.11 -> 56.61 | G39: =+D39*$G$2*1.09 -> 49.704 | H39: 89.7942 | I39: 97.584
I40: 0
B41: Devices
B42: Device SAL for Retail & Hospitality | C42: BC-D365-SAAS-POS | D42: 102 | E42: =+D42*$E$2 -> 138.3936 | F42: =+D42*$F$2*1.11 -> 96.237 | G42: =+D42*$G$2*1.09 -> 84.4968 | H42: =+D42*$H$2 -> 152.65014 | I42: 165.8928 | M42: Dynamics 365 Business Central Device | N42: 92e2abd3-f3c5-488d-9d66-4957ed81ffe2 | O42: 28 | P42: 40 | AB42: =P42*(1-0.5) -> 20 | AC42: =Q42*(1-0.5) -> 0 | AD42: 0 | AE42: 0
B43: Device SAL for Mobile POS App | C43: BC-D365-SAAS-MPOS | D43: 102 | E43: 138.3936 | F43: 96.237 | G43: 84.4968 | H43: 152.65014 | I43: 165.8928 | M43: Dynamics 365 Business Central Device | N43: 92e2abd3-f3c5-488d-9d66-4957ed81ffe2 | O43: 28 | P43: 40 | Q43: 35.8 | R43: 51.2 | S43: =23.61*1.11 -> 26.2071 | T43: =33.7*1.11 -> 37.407 | U43: 21.1 | V43: 30.2 | W43: 38.4 | X43: 54.9 | Y43: 42.3 | Z43: 60.5 | AB43: =P43*(1-0.5) -> 20 | AC43: =Q43*(1-0.5) -> 17.9 | AD43: 25.6 | AE43: 13.10355
B44: Device SAL for Mobile Inventory App | C44: BC-D365-SAAS-MI | D44: 102 | E44: 138.3936 | F44: 96.237 | G44: 84.4968 | H44: 152.65014 | I44: 165.8928 | M44: Dynamics 365 Business Central Device | N44: 92e2abd3-f3c5-488d-9d66-4957ed81ffe2 | O44: 28 | P44: 40 | Q44: 4.13 | R44: 5.8 | S44: =2.87*1.11 -> 3.1857 | T44: =4.1*1.11 -> 4.551 | U44: 2.57 | V44: 3.6 | AB44: =P44*(1-0.5) -> 20 | AC44: 2.065 | AD44: 2.9 | AE44: 1.59285
B45: Device SAL for Kitchen Display Server | C45: BC-D365-SAAS-KDS | D45: 102 | E45: 138.3936 | F45: 96.237 | G45: 84.4968 | H45: 152.65014 | I45: 165.8928 | M45: Dynamics 365 Business Central Device | N45: 92e2abd3-f3c5-488d-9d66-4957ed81ffe2 | O45: 28 | P45: 40
B46: Device SAL for Back Office | C46: BC-D365-SAAS-BACK | D46: 102 | E46: 138.3936 | F46: 96.237 | G46: 84.4968 | H46: 152.65014 | I46: 165.8928 | M46: Dynamics 365 Business Central Device | N46: 92e2abd3-f3c5-488d-9d66-4957ed81ffe2 | O46: 28 | P46: 40
B47: Self Checkout Connector Device | C47: BC-D365-SAAS-SCC | D47: 102 | E47: =+D47*$E$2 -> 138.3936 | F47: 96.237 | G47: 84.4968 | H47: =+D47*$H$2 -> 152.65014 | I47: =D47*$I$2 -> 165.8928
B48: Yearly | I48: 0
B49: Device SAL for Retail & Hospitality | C49: BC-D365-SAAS-POS | D49: 1020 | E49: 1384 | F49: =+D49*$F$2*1.11 -> 962.37 | G49: =+D49*$G$2*1.09 -> 844.968 | H49: =+D49*$H$2 -> 1526.5014 | I49: 1658.928 | M49: Dynamics 365 Business Central Device | N49: 92e2abd3-f3c5-488d-9d66-4957ed81ffe2 | O49: =O42*12 -> 336 | P49: 480 | AB49: =P49*(1-0.5) -> 240 | AC49: =Q49*(1-0.5) -> 0 | AD49: =R49*(1-0.5) -> 0 | AE49: =S49*(1-0.5) -> 0
B50: Device SAL for Mobile POS App | C50: BC-D365-SAAS-MPOS | D50: 1020 | E50: 1384 | F50: 962.37 | G50: 844.968 | H50: 1526.5014 | I50: 1658.928 | M50: Dynamics 365 Business Central Device | N50: 92e2abd3-f3c5-488d-9d66-4957ed81ffe2 | O50: 336 | P50: 480 | Q50: =Q43*12 -> 429.6 | R50: 614.4 | S50: 314.4852 | T50: 448.884 | U50: 253.2 | V50: 362.4 | AB50: =P50*(1-0.5) -> 240 | AC50: =Q50*(1-0.5) -> 214.8 | AD50: 307.2 | AE50: 157.2426
B51: Device SAL for Mobile Inventory App | C51: BC-D365-SAAS-MI | D51: 1020 | E51: 1384 | F51: 962.37 | G51: 844.968 | H51: 1526.5014 | I51: 1658.928 | M51: Dynamics 365 Business Central Device | N51: 92e2abd3-f3c5-488d-9d66-4957ed81ffe2 | O51: 336 | P51: 480 | Q51: 49.56 | R51: 69.6 | S51: 38.2284 | T51: 54.612 | U51: 30.84 | V51: 43.2 | AB51: =P51*(1-0.5) -> 240 | AC51: =Q51*(1-0.5) -> 24.78 | AD51: 34.8 | AE51: 19.1142
B52: Device SAL for Kitchen Display Server | C52: BC-D365-SAAS-KDS | D52: 1020 | E52: 1384 | F52: 962.37 | G52: 844.968 | H52: 1526.5014 | I52: 1658.928 | M52: Dynamics 365 Business Central Device | N52: 92e2abd3-f3c5-488d-9d66-4957ed81ffe2 | O52: 336 | P52: 480
B53: Device SAL for Back Office | C53: BC-D365-SAAS-BACK | D53: 1020 | E53: 1384 | F53: 962.37 | G53: 844.968 | H53: 1526.5014 | I53: 1658.928 | M53: Dynamics 365 Business Central Device | N53: 92e2abd3-f3c5-488d-9d66-4957ed81ffe2 | O53: 336 | P53: 480
B54: Self Checkout Connector Device | C54: BC-D365-SAAS-SCC | D54: 1020 | E54: 1384 | F54: 962.37 | G54: 844.968 | H54: =+D54*$H$2 -> 1526.5014 | I54: =D54*$I$2 -> 1658.928
I55: 0
B56: Below items are not in pricelist - only used for existing customers allready with these products
B57: Office 365 Business Premium | C57: BC-D365-SAAS-O365BP | D57: 15 | E57: =+D57*$E$2 -> 20.352 | F57: =+D57*$F$2*1.11 -> 14.1525 | G57: =+D57*$G$2*1.09 -> 12.426 | H57: =+D57*$H$2 -> 22.44855 | I57: 24.396 | M57: Office 365 Business Premium | N57: 031C9E47-4802-4248-838E-778FB1D2CC05 | O57: 10 | P57: 12.5 | Q57: 12.16 | R57: 15.2 | S57: =8.43*1.11 -> 9.3573 | T57: =10.55*1.11 -> 11.7105 | U57: 7.54 | V57: 9.4 | AB57: =O57 -> 10 | AC57: =Q57 -> 12.16 | AD57: =S57 -> 9.3573 | AE57: =U57 -> 7.54
B58: Power BI Pro | C58: BC-D365-SaaS-PBP | D58: 12 | E58: 16.2816 | F58: =+D58*$F$2*1.11 -> 11.322 | G58: =+D58*$G$2*1.09 -> 9.9408 | H58: 17.95884 | I58: 19.5168 | M58: Power BI Pro | N58: 800F4F3B-CFE1-42C1-9CEA-675512810488 | O58: 8 | P58: 10 | Q58: 9.71 | R58: 12.1 | S58: =6.73*1.11 -> 7.4703 | T58: =8.4*1.11 -> 9.324 | U58: 6.02 | V58: 7.5 | AB58: =O58 -> 8 | AC58: =Q58 -> 9.71 | AD58: =S58 -> 7.4703 | AE58: =U58 -> 6.02
B59: Yearly | I59: 0
B60: Office 365 Business Premium | C60: BC-D365-SAAS-O365BP | D60: 150 | E60: =+D60*$E$2 -> 203.52 | F60: =+D60*$F$2*1.11 -> 141.525 | G60: =+D60*$G$2*1.09 -> 124.26 | H60: =+D60*$H$2 -> 224.4855 | I60: 243.96 | M60: Office 365 Business Premium | N60: 031C9E47-4802-4248-838E-778FB1D2CC05 | O60: =O57*12 -> 120 | P60: =P57*12 -> 150 | Q60: 145.92 | R60: 182.4 | S60: 112.2876 | T60: 140.526 | U60: 90.48 | V60: 112.8 | AB60: =O60 -> 120 | AC60: =Q60 -> 145.92 | AD60: =S60 -> 112.2876 | AE60: =U60 -> 90.48
B61: Power BI Pro | C61: BC-D365-SaaS-PBP | D61: 120 | E61: 162.816 | F61: =+D61*$F$2*1.11 -> 113.22 | G61: =+D61*$G$2*1.09 -> 99.408 | H61: 179.5884 | I61: 195.168 | M61: Power BI Pro | N61: 800F4F3B-CFE1-42C1-9CEA-675512810488 | O61: =O58*12 -> 96 | P61: =P58*12 -> 120 | Q61: 116.52 | R61: 145.2 | S61: 89.6436 | T61: 111.888 | U61: 72.24 | V61: 90 | AB61: =O61 -> 96 | AC61: =Q61 -> 116.52 | AD61: =S61 -> 89.6436 | AE61: =U61 -> 72.24
B62: LS Central Modules | D62: Not in Microsoft pricelists - only available for selected partners
B63: Scan Pay Go - per Usage | C63: BC-D365-SAAS-SPG | D63: 0.01 | E63: =+D63*$E$2 -> 0.013568 | F63: =+D63*$F$2*1.11 -> 0.009435 | G63: =+D63*$G$2*1.09 -> 0.008284 | H63: =+D63*$H$2 -> 0.0149657 | I63: =D63*$I$2 -> 0.016264
B64: Analytics | C64: BC-D365-SAAS-ANALYTI | D64: 0 | I64: =D64*$I$2 -> 0
B65: Hotels - per Property | C65: BC-D365-SAAS-HOTEL-P | D65: 163.2 | E65: 221.42976 | F65: 153.9792 | G65: 135.19488 | H65: =+D65*$H$2 -> 244.240224 | I65: =+D65*$I$2 -> 265.42848
B66: Hotels - per Room | C66: BC-D365-SAAS-HOTEL-R | D66: =7 -> 7 | E66: 9.4976 | F66: 6.6045 | G66: 5.7988 | H66: 10.47599 | I66: =+D66*$I$2 -> 11.3848
B67: Hotels - per Power App User | C67: BC-D365-SAAS-HOTEL-PAU | D67: =15 -> 15 | E67: 20.352 | F67: 14.1525 | G67: 12.426 | H67: 22.44855 | I67: 24.396
B68: Bookings - per Location | C68: BC-D365-SAAS-APL | D68: =15 -> 15 | E68: 20.352 | F68: 14.1525 | G68: 12.426 | H68: 22.44855 | I68: 24.396
B69: Bookings - per Device | C69: BC-D365-SAAS-APOS | D69: =12 -> 12 | E69: 16.2816 | F69: 11.322 | G69: =+D69*$G$2*1.09+0.01 -> 9.9508 | H69: =+D69*$H$2 -> 17.95884 | I69: =D69*$I$2 -> 19.5168 | M69: Finding the prices by using this formula, but typing in so it appears correctly =+$E26*Factor!$T$18
B70: Staff Management - per Employee | C70: BC-D365-SAAS-SPE | D70: =2 -> 2 | E70: =+D70*$E$2 -> 2.7136 | F70: 1.887 | G70: 1.6568 | H70: =+D70*$H$2 -> 2.99314 | I70: 3.2528 | M70: Finding the prices by using this formula, but typing in so it appears correctly =+$E26*Factor!$T$18
B71: LS Pay - per Device | C71: BC-D365-SAAS-PAY | D71: 12 | E71: =+D71*$E$2 -> 16.2816 | F71: 11.322 | G71: 9.9408 | H71: =+D71*$H$2 -> 17.95884 | I71: 19.5168 | M71: Finding the prices by using this formula, but typing in so it appears correctly =+$E26*Factor!$T$18
B72: LS Central Loss Prevention - per Device | D72: 9.6 | E72: 13.02528 | F72: =+D72*$F$2 -> 8.16 | G72: =+D72*$G$2 -> 7.296 | H72: 14.367072 | I72: 15.61344 | M72: Finding the prices by using this formula, but typing in so it appears correctly =+$E26*Factor!$T$18
B73: LS Central Loyalty - per License | D73: 142.8 | E73: 193.75104 | F73: 121.38 | G73: 108.528 | H73: 213.710196 | I73: 232.24992 | M73: Finding the prices by using this formula, but typing in so it appears correctly =+$E26*Factor!$T$18
B74: LS Central Additional Loyalty Concurrent Users (500) | D74: 142.8 | E74: 193.75104 | F74: 121.38 | G74: 108.528 | H74: 213.710196 | I74: 232.24992 | M74: Finding the prices by using this formula, but typing in so it appears correctly =+$E26*Factor!$T$18
B75: LS Central eCommerce Integration Framework - nopCommerce | D75: 610.8 | E75: 828.73344 | F75: 519.18 | G75: 464.208 | H75: 914.104956 | I75: 993.40512 | M75: Finding the prices by using this formula, but typing in so it appears correctly =+$E26*Factor!$T$18
B76: eCommerce Base - Please select a Framework | C76: BC-D365-SAAS-E3RD | D76: =163.2 -> 163.2 | E76: 221.42976 | F76: =+D76*$F$2*1.11 -> 153.9792 | G76: =+D76*$G$2*1.09 -> 135.19488 | H76: 244.240224 | I76: 265.42848 | M76: Finding the prices by using this formula, but typing in so it appears correctly =+$E26*Factor!$T$18
B77: eCommerce Base - Magento/Adobe Commerce | C77: BC-D365-SAAS-EMAG | D77: =163.2 -> 163.2 | E77: 221.42976 | F77: =+D77*$F$2*1.11 -> 153.9792 | G77: =+D77*$G$2*1.09 -> 135.19488 | H77: 244.240224 | I77: 265.42848 | M77: Finding the prices by using this formula, but typing in so it appears correctly =+$E26*Factor!$T$18
B78: eCommerce Base - Shopify | C78: BC-D365C-SAAS-ESHOP | D78: =163.2 -> 163.2 | E78: 221.42976 | F78: =+D78*$F$2*1.11 -> 153.9792 | G78: =+D78*$G$2*1.09 -> 135.19488 | H78: 244.240224 | I78: 265.42848 | M78: Finding the prices by using this formula, but typing in so it appears correctly =+$E26*Factor!$T$18
B79: eCommerce Base - 3rd Party | C79: BC-D365-SAAS-E3RD | D79: =163.2 -> 163.2 | E79: =+D79*$E$2 -> 221.42976 | F79: =+D79*$F$2*1.11 -> 153.9792 | G79: =+D79*$G$2*1.09 -> 135.19488 | H79: =+D79*$H$2 -> 244.240224 | I79: =D79*$I$2 -> 265.42848
B80: eCommerce per Device | C80: BC-D365-SAAS-EPOS | D80: 3.6 | E80: 4.88448 | F80: =+D80*$F$2*1.11 -> 3.3966 | G80: =+D80*$G$2*1.09 -> 2.98224 | H80: 5.387652 | I80: 5.85504
B81: LS Central Additional Language Layer | D81: 24 | E81: 32.5632 | F81: 20.4 | G81: 18.24 | H81: 35.91768 | I81: =D81*$I$2 -> 39.0336 | M81: Finding the prices by using this formula, but typing in so it appears correctly =+$E26*Factor!$T$18
B82: Yearly
B83: Scan Pay Go - per Usage | C83: BC-D365-SAAS-SPG | D83: 0.01
B84: Analytics | C84: BC-D365-SAAS-ANALYTI | D84: 0 | I84: =D84*$I$2 -> 0
B85: Pharmacies Base - W1 | C85: BC-D365-SAAS-PHBW1 | D85: 6000 | E85: =+D85*$E$2 -> 8140.8 | F85: =+D85*$F$2*1.11 -> 5661 | G85: =+D85*$G$2*1.09 -> 4970.4 | H85: =+D85*$H$2 -> 8979.42 | I85: =D85*$I$2 -> 9758.4
B86: Pharmacies per Device | C86: BC-D365-SAAS-PHDW1 | D86: 480 | E86: 651.264 | F86: 452.88 | G86: 397.632 | H86: 718.3536 | I86: 780.672
B87: Forecourt base | C87: BC-D365-SAAS-FCB | D87: 1632 | E87: =+D87*$E$2 -> 2214.2976 | F87: =+D87*$F$2*1.11 -> 1539.792 | G87: =+D87*$G$2*1.09 -> 1351.9488 | H87: =+D87*$H$2 -> 2442.40224 | I87: =D87*$I$2 -> 2654.2848
B88: Forecourt per device | C88: BC-D365-SAAS-FCD | D88: 212.4 | E88: 288.18432 | F88: 200.3994 | G88: 175.95216 | H88: 317.871468 | I88: 345.44736
B89: Hotels - per Property | C89: BC-D365-SAAS-HOTEL-P | D89: =136*12 -> 1632 | E89: =+$D$89*E2 -> 2214.2976 | F89: =+$D89*F$2*1.11 -> 1539.792 | G89: =+$D$89*G2*1.09 -> 1351.9488 | H89: =+$D$89*H2 -> 2442.40224 | I89: =+$D$89*I2 -> 2654.2848
B90: Hotels - per Room | C90: BC-D365-SAAS-HOTEL-R | D90: =7*12 -> 84 | E90: =+D90*$E$2 -> 113.9712 | F90: 79.254 | G90: =+D90*$G$2*1.09 -> 69.5856 | H90: =+D90*$H$2 -> 125.71188 | I90: =+D90*$I$2 -> 136.6176
B91: Hotels - per Power App User | C91: BC-D365-SAAS-HOTEL-PAU | D91: =15*12 -> 180 | E91: =+D91*$E$2 -> 244.224 | F91: 169.83 | G91: 149.112 | H91: =+D91*$H$2 -> 269.3826 | I91: =+D91*$I$2 -> 292.752
B92: Bookings - per Location | C92: BC-D365-SAAS-BPL | D92: =15*12 -> 180 | E92: 244.224 | F92: 169.83 | G92: 149.112 | H92: 269.3826 | I92: 292.752
B93: Bookings - per Device | C93: BC-D365-SAAS-BPOS | D93: =12*12 -> 144 | E93: 195.3792 | F93: 135.864 | G93: =+D93*$G$2*1.09+0.1 -> 119.3896 | H93: 215.50608 | I93: 234.2016 | M93: Finding the prices by using this formula, but typing in so it appears correctly =+$E26*Factor!$T$18
B94: Staff Management - per Employee | C94: BC-D365-SAAS-SPE | D94: =2*12 -> 24 | E94: =+D94*$E$2 -> 32.5632 | F94: 22.644 | G94: 19.8816 | H94: =+D94*$H$2 -> 35.91768 | I94: 39.0336 | M94: Finding the prices by using this formula, but typing in so it appears correctly =+$E26*Factor!$T$18
B95: LS Pay - per Device | C95: BC-D365-SAAS-PAY | D95: =10*12 -> 120 | E95: =+D95*$E$2 -> 162.816 | F95: 113.22 | G95: 99.408 | H95: =+D95*$H$2 -> 179.5884 | I95: 195.168 | M95: Finding the prices by using this formula, but typing in so it appears correctly =+$E26*Factor!$T$18
B96: LS Central Loss Prevention - per Device | D96: =(D72*12)*0.8 -> 92.16 | E96: 125.042688 | F96: =+D96*$F$2 -> 78.336 | G96: =+D96*$G$2 -> 70.0416 | H96: 137.9238912 | I96: 149.889024 | M96: Finding the prices by using this formula, but typing in so it appears correctly =+$E26*Factor!$T$18
B97: LS Central Loyalty - per License | D97: =(D73*12)*0.8 -> 1370.88 | E97: 1860.009984 | F97: 1165.248 | G97: 1041.8688 | H97: 2051.617882 | I97: 2229.599232 | M97: Finding the prices by using this formula, but typing in so it appears correctly =+$E26*Factor!$T$18
B98: LS Central Additional Loyalty Concurrent Users (500) | D98: =(D74*12)*0.8 -> 1370.88 | E98: 1860.009984 | F98: 1165.248 | G98: 1041.8688 | H98: 2051.617882 | I98: 2229.599232 | M98: Finding the prices by using this formula, but typing in so it appears correctly =+$E26*Factor!$T$18
B99: LS Central eCommerce Integration Framework - nopCommerce | D99: =(D75*12)*0.8 -> 5863.68 | E99: 7955.841024 | F99: 4984.128 | G99: 4456.3968 | H99: 8775.407578 | I99: 9536.689152 | M99: Finding the prices by using this formula, but typing in so it appears correctly =+$E26*Factor!$T$18
B100: eCommerce Base - Please select a Framework | C100: BC-D365-SAAS-E3RD | D100: =136*12 -> 1632 | E100: 2214.2976 | F100: =+D100*$F$2*1.11 -> 1539.792 | G100: =+D100*$G$2*1.09 -> 1351.9488 | H100: 2442.40224 | I100: 2654.2848 | M100: LS eCommerce Base - DynamicWeb Removed from the pricelist in February 2022
B101: eCommerce Base - Magento/Adobe Commerce | C101: BC-D365-SAAS-EMAG | D101: =136*12 -> 1632 | E101: 2214.2976 | F101: =+D101*$F$2*1.11 -> 1539.792 | G101: =+D101*$G$2*1.09 -> 1351.9488 | H101: 2442.40224 | I101: 2654.2848 | M101: Finding the prices by using this formula, but typing in so it appears correctly =+$E26*Factor!$T$18
B102: eCommerce Base - Shopify* | C102: BC-D365C-SAAS-ESHOP | D102: =136*12 -> 1632 | E102: =+D102*$E$2 -> 2214.2976 | F102: =+D102*$F$2*1.11 -> 1539.792 | G102: =+D102*$G$2*1.09 -> 1351.9488 | H102: =+D102*$H$2 -> 2442.40224 | I102: =D102*$I$2 -> 2654.2848 | M102: Finding the prices by using this formula, but typing in so it appears correctly =+$E26*Factor!$T$18
B103: eCommerce Base - 3rd Party | C103: BC-D365-SAAS-E3RD | D103: =136*12 -> 1632 | E103: 2214.2976 | F103: =+D103*$F$2*1.11 -> 1539.792 | G103: =+D103*$G$2*1.09 -> 1351.9488 | H103: 2442.40224 | I103: 2654.2848
B104: eCommerce per Device | C104: BC-D365-SAAS-EPOS | D104: =3*12 -> 36 | E104: 48.8448 | F104: =+D104*$F$2*1.11 -> 33.966 | G104: =+D104*$G$2*1.09 -> 29.8224 | H104: 53.87652 | I104: 58.5504
B105: LS Central Additional Language Layer - Yearly | D105: =D81*12 -> 288 | E105: 390.7584 | F105: 244.8 | G105: 218.88 | H105: 431.01216 | I105: 468.4032 | M105: Finding the prices by using this formula, but typing in so it appears correctly =+$E26*Factor!$T$18
D108: =D85/12 -> 500 | E108: =E85/12 -> 678.4 | F108: 471.75 | G108: 414.2 | H108: 748.285 | I108: 813.2
D109: =D86/12 -> 40 | E109: =E86/12 -> 54.272 | F109: 37.74 | G109: 33.136 | H109: 59.8628 | I109: 65.056
N110: Comment from Sigrun dated 16.11.2018
N133: Dynamics 365 Business Central Device | O133: 5b04b78c-fd36-4cf3-a7a5-3457991c8b79 | P133: Corporate | Q133: 1 Month(s) | R133: NON-SPECIFIC | S133: CLOUD RESELLER CORPORATE | T133: 35.8 | U133: 51.2
C134: SKU | D134: USD | N134: Dynamics 365 Business Central Device from DPL or Bus Ed (Qualified Offer) | O134: a8f4144e-d1d9-48d7-8966-dc6a32d28a30 | P134: Corporate | Q134: 1 Month(s) | R134: NON-SPECIFIC | S134: CLOUD RESELLER CORPORATE | T134: 21.5 | U134: 30.7
B139: Removed from pricelist
A140: LSPO-5466 | B140: LS eCommerce Base - Avensia Storefront | C140: BC-D365-SAAS-EAVE | D140: =163.2 -> 163.2 | E140: =+D140*$E$2 -> 221.42976 | F140: =+D140*$F$2 -> 138.72 | G140: =+D140*$G$2 -> 124.032 | H140: =+D140*$H$2 -> 244.240224 | I140: =D140*$I$2 -> 265.42848 | M140: Finding the prices by using this formula, but typing in so it appears correctly =+$E26*Factor!$T$18
A141: LSPO-5466 | B141: LS eCommerce Base - Avensia Storefront - Yearly | C141: BC-D365-SAAS-EAVE | D141: =136*12 -> 1632 | E141: 2214.2976 | F141: 1387.2 | G141: 1240.32 | H141: 2442.40224 | I141: 2654.2848 | M141: Finding the prices by using this formula, but typing in so it appears correctly =+$E26*Factor!$T$18

Sheet Lists (hidden)
B2: OrderType | H2: Currency List | K2: Link To Existing SaaS Active Directory
B3: New License | H3: AUD | K3: Yes
B4: Additional modules | H4: CAD | K4: No
H5: DKK
H6: EUR | N6: If yes, <existing AAD Name>
H7: GBP | N7: If no, <preferred AAD Name>
H8: INR
H9: NOK
H10: NZD
H11: SEK
H12: USD
H14: Price Guarantee Monthly
H15: FALSE
L17: Effective
B18: MA/GVA/PVLA | H18: Price Guarantee Yearly | L18: Effective from 1 September 2023
B19: No | H19: FALSE
B20: Global Volume Agreement
B21: Multisite Agreement
B22: Perpertual Volume Licensing Agreement
B23: Volume Agreement | H23: Subscription Term/Billing
H24: Triennial
B25: Enhancement plan Required for | H25: Annual
B26: 1 Year | H26: Monthly
B27: 3 Year annual
B28: 3 Year upfront
H30: Special Deal /Promo
H31: BTC2 Promo - SH0084
B32: Product Line
B33: LS Central on Business Central SaaS
H35: First Registration Date
H37: Before September 1, 2022
H38: On or after September 1, 2022
B40: Version
B41: LS Central on Busines Central (13)
B57: TypeBusiness
B58: 1 Supermarkets/Groceries/Convenience
B59: 2 Department stores
B60: 3 Consumer electronics/Home appliances/Technology
B61: 4 Fashion/Apparel/Accessories
B62: 5 Furniture/Housing
B63: 6 Hardware/DIY/Garden Centers
B64: 7 Hospitality - Restaurants, Fast Food, Catering
B65: 8 Others
B66: 9 Duty free/Airport/Travel Retail
B67: 10 Hospitality - Hotels and Resorts
B68: 11 Pharmacies/Drugstores
B69: 12 Sport- clothing/equipment
B70: 13 Bookstores/Stationary/Newsstands
B71: 14 Forecourt and Gas stations
B72: 15 Entertainment: Museums, Casinos, Stadiums
B73: 16 Jewelry Stores
B74: 17 Pet Stores
B75: 18 Shoe Stores
B76: 19 Cars/Automotive
B77: 20 Importer/Seller/Supplier/Wholesaler
B78: 21 Wineries/Liquor Stores
B79: 22 Photo Shops
B80: 23 Specialty Retail/Boutiques
B81: 24 Optical Stores
B82: 25 Trade companies/Service Provider/Consultancy
B83: 26 NGO/Government/Schools
B84: 27 Health/Beauty/Cosmetics
B85: Please select the correct Type of Business
B90: NaceCode

Sheet Change Log (hidden)
A1: Pricelist Change History:
B3: Date | C3: Affected Countries | D3: Type of Change | E3: Summary of Change
